{"text_format":"3","workbook":"xlsx","n_sheets":5,"sheets":["ROZPOCZĘCIE","WYDATKI PLANOWANE","WYDATKI RZECZYWISTE","ODCHYLENIA WYDATKÓW","ANALIZA WYDATKÓW"],"not_rendered":{"charts":3,"images":2,"defined_names":1},"read":"whole","date_system":"1900"}

{"sheet":"ROZPOCZĘCIE","index":0,"n_rows":8,"n_cols":2,"rows_kept":8}
[null,"INFORMACJE O TYM SZABLONIE"]
[null,"Ten skoroszyt Budżet wydatków służbowych umożliwia śledzenie wydatków planowanych i rzeczywistych oraz odchyleń."]
[null,"Wpisz nazwa firmy i dodaj Logo."]
[null,"Wprowadź szczegóły w tabelach w arkuszach Wydatki planowane i Wydatki rzeczywiste."]
[null,"Tabele w arkuszu Odchylenia wydatków i wykresy w arkuszu Analiza wydatków są aktualizowane automatycznie"]
[null,"Uwaga: "]
[null,"W kolumnie A w każdym arkuszu podano dodatkowe instrukcje. Ten tekst celowo został ukryty. Aby usunąć tekst, zaznacz kolumnę A, a następnie naciśnij klawisz DELETE. Aby odkryć tekst, zaznacz kolumnę A, a następnie zmień kolor czcionki."]
[null,"Aby uzyskać więcej informacji o tabelach, w tabeli naciśnij klawisz SHIFT, a następnie F10, wybierz pozycję TABELA, a następnie TEKST ALTERNATYWNY"]

{"sheet":"WYDATKI PLANOWANE","index":1,"n_rows":37,"n_cols":18,"rows_kept":37,"merged":[[1,1,2,3],[1,9,1,12],[1,13,2,14],[2,9,2,12],[3,17,12,19],[8,1,8,2],[19,1,19,2],[28,1,28,2],[33,1,33,2]]}
["W tabelach w tym arkuszu wprowadź planowane koszty pracowników, koszty biura, koszty marketingu i koszty szkoleń lub podróży. Sumy są obliczane automatycznie. W komórkach w tej kolumnie podano przydatne instrukcje na temat korzystania z tego arkusza. Naciśnij strzałkę w dół, aby rozpocząć pracę.",{"$nulls":14}," "]
["W komórce po prawej stronie wprowadź nazwa firmy, a w komórce N2 — logo. Tytuł tego arkusza znajduje się w komórce K2.","Nazwa firmy",{"$nulls":7},"Szczegółowe szacunki wydatków",{"$nulls":3},"W tej komórce znajduje się symbol zastępczy logo."]
["W komórce K3 znajduje się porada.",{"$nulls":8},"Komórki cieniowane zawierają obliczenia."]
["W komórce po prawej stronie znajduje się etykieta Wydatki planowane, w komórkach od C4 do N4 — etykiety miesięcy, w komórce O4 — etykieta Rok, a w komórce R4 — instrukcje „Jak używać tego szablonu”.","WYDATKI PLANOWANE","STY","LUT","MAR","KWI","MAJ","CZE","LIP","SIE","WRZ","PAŹ","LIS","GRU","ROK",null,null,"Porada: JAK UŻYWAĆ TEGO SZABLONU\nWprowadź dane w białych komórkach w arkuszach WYDATKI PLANOWANE i WYDATKI RZECZYWISTE, a wartości ODCHYLENIA WYDATKÓW i ANALIZA WYDATKÓW zostaną obliczone automatycznie. Dodanie wiersza w jednym arkuszu spowoduje odpowiednie dostosowanie innych arkuszy."]
["W tabeli Pracownicy — plan zaczynającej się w komórce po prawej stronie wprowadź koszty pracowników. Dalsze instrukcje znajdują się w komórce A10.","Koszty pracowników","Sty","Lut","Mar","Kwi","Maj","Cze","Lip","Sie","Wrz","Paź","Lis","Gru","ROK"]
[null,"Pensje",{"v":85000,"d":"85,000.00 zł"},{"v":85000,"d":"85,000.00 zł"},{"v":85000,"d":"85,000.00 zł"},{"v":87500,"d":"87,500.00 zł"},{"v":87500,"d":"87,500.00 zł"},{"v":87500,"d":"87,500.00 zł"},{"v":87500,"d":"87,500.00 zł"},{"v":92400,"d":"92,400.00 zł"},{"v":92400,"d":"92,400.00 zł"},{"v":92400,"d":"92,400.00 zł"},{"v":92400,"d":"92,400.00 zł"},{"v":92400,"d":"92,400.00 zł"},{"$f":"SUM(C6:N6)","v":{"v":1067000,"d":"1,067,000.00 zł"}}]
[null,"Świadczenia",{"$f":"C6*0.27","v":{"v":22950,"d":"22,950.00 zł"}},{"v":22950,"d":"22,950.00 zł"},{"v":22950,"d":"22,950.00 zł"},{"v":23625,"d":"23,625.00 zł"},{"v":23625,"d":"23,625.00 zł"},{"v":23625,"d":"23,625.00 zł"},{"v":23625,"d":"23,625.00 zł"},{"v":24948,"d":"24,948.00 zł"},{"v":24948,"d":"24,948.00 zł"},{"v":24948,"d":"24,948.00 zł"},{"v":24948,"d":"24,948.00 zł"},{"v":24948,"d":"24,948.00 zł"},{"$f":"SUM(C7:N7)","v":{"v":288090,"d":"288,090.00 zł"}}]
[null,"Suma częściowa",{"$f":"SUBTOTAL(109,Pracownicy_plan[Sty])","v":{"v":107950,"d":"107,950.00 zł"}},{"$f":"SUBTOTAL(109,Pracownicy_plan[Lut])","v":{"v":107950,"d":"107,950.00 zł"}},{"$f":"SUBTOTAL(109,Pracownicy_plan[Mar])","v":{"v":107950,"d":"107,950.00 zł"}},{"$f":"SUBTOTAL(109,Pracownicy_plan[Kwi])","v":{"v":111125,"d":"111,125.00 zł"}},{"$f":"SUBTOTAL(109,Pracownicy_plan[Maj])","v":{"v":111125,"d":"111,125.00 zł"}},{"$f":"SUBTOTAL(109,Pracownicy_plan[Cze])","v":{"v":111125,"d":"111,125.00 zł"}},{"$f":"SUBTOTAL(109,Pracownicy_plan[Lip])","v":{"v":111125,"d":"111,125.00 zł"}},{"$f":"SUBTOTAL(109,Pracownicy_plan[Sie])","v":{"v":117348,"d":"117,348.00 zł"}},{"$f":"SUBTOTAL(109,Pracownicy_plan[Wrz])","v":{"v":117348,"d":"117,348.00 zł"}},{"$f":"SUBTOTAL(109,Pracownicy_plan[Paź])","v":{"v":117348,"d":"117,348.00 zł"}},{"$f":"SUBTOTAL(109,Pracownicy_plan[Lis])","v":{"v":117348,"d":"117,348.00 zł"}},{"$f":"SUBTOTAL(109,Pracownicy_plan[Gru])","v":{"v":117348,"d":"117,348.00 zł"}},{"$f":"SUBTOTAL(109,Pracownicy_plan[ROK])","v":{"v":1355090,"d":"1,355,090.00 zł"}}]
[]
["W tabeli Biuro — plan zaczynającej się w komórce po prawej stronie wprowadź koszty biura. Dalsze instrukcje znajdują się w komórce A21.","Koszty biura","Sty","Lut","Mar","Kwi","Maj","Cze","Lip","Sie","Wrz","Paź","Lis","Gru","ROK"]
[null,"Wynajem biura",{"v":9800,"d":"9,800.00 zł"},{"v":9800,"d":"9,800.00 zł"},{"v":9800,"d":"9,800.00 zł"},{"v":9800,"d":"9,800.00 zł"},{"v":9800,"d":"9,800.00 zł"},{"v":9800,"d":"9,800.00 zł"},{"v":9800,"d":"9,800.00 zł"},{"v":9800,"d":"9,800.00 zł"},{"v":9800,"d":"9,800.00 zł"},{"v":9800,"d":"9,800.00 zł"},{"v":9800,"d":"9,800.00 zł"},{"v":9800,"d":"9,800.00 zł"},{"$f":"SUM(C11:N11)","v":{"v":117600,"d":"117,600.00 zł"}}]
[null,"Paliwo",null,{"v":400,"d":"400.00 zł"},{"v":400,"d":"400.00 zł"},{"v":100,"d":"100.00 zł"},{"v":100,"d":"100.00 zł"},{"v":100,"d":"100.00 zł"},{"v":100,"d":"100.00 zł"},{"v":100,"d":"100.00 zł"},{"v":100,"d":"100.00 zł"},{"v":100,"d":"100.00 zł"},{"v":400,"d":"400.00 zł"},{"v":400,"d":"400.00 zł"},{"v":2300,"d":"2,300.00 zł"}]
[null,"Prąd",{"v":300,"d":"300.00 zł"},{"v":300,"d":"300.00 zł"},{"v":300,"d":"300.00 zł"},{"v":300,"d":"300.00 zł"},{"v":300,"d":"300.00 zł"},{"v":300,"d":"300.00 zł"},{"v":300,"d":"300.00 zł"},{"v":300,"d":"300.00 zł"},{"v":300,"d":"300.00 zł"},{"v":300,"d":"300.00 zł"},{"v":300,"d":"300.00 zł"},{"v":300,"d":"300.00 zł"},{"v":3600,"d":"3,600.00 zł"}]
[null,"Woda",{"v":40,"d":"40.00 zł"},{"v":40,"d":"40.00 zł"},{"v":40,"d":"40.00 zł"},{"v":40,"d":"40.00 zł"},{"v":40,"d":"40.00 zł"},{"v":40,"d":"40.00 zł"},{"v":40,"d":"40.00 zł"},{"v":40,"d":"40.00 zł"},{"v":40,"d":"40.00 zł"},{"v":40,"d":"40.00 zł"},{"v":40,"d":"40.00 zł"},{"v":40,"d":"40.00 zł"},{"v":480,"d":"480.00 zł"}]
[null,"Telefon",{"v":250,"d":"250.00 zł"},{"v":250,"d":"250.00 zł"},{"v":250,"d":"250.00 zł"},{"v":250,"d":"250.00 zł"},{"v":250,"d":"250.00 zł"},{"v":250,"d":"250.00 zł"},{"v":250,"d":"250.00 zł"},{"v":250,"d":"250.00 zł"},{"v":250,"d":"250.00 zł"},{"v":250,"d":"250.00 zł"},{"v":250,"d":"250.00 zł"},{"v":250,"d":"250.00 zł"},{"v":3000,"d":"3,000.00 zł"}]
[null,"Dostęp do Internetu",{"v":180,"d":"180.00 zł"},{"v":180,"d":"180.00 zł"},{"v":180,"d":"180.00 zł"},{"v":180,"d":"180.00 zł"},{"v":180,"d":"180.00 zł"},{"v":180,"d":"180.00 zł"},{"v":180,"d":"180.00 zł"},{"v":180,"d":"180.00 zł"},{"v":180,"d":"180.00 zł"},{"v":180,"d":"180.00 zł"},{"v":180,"d":"180.00 zł"},{"v":180,"d":"180.00 zł"},{"v":2160,"d":"2,160.00 zł"}]
[null,"Materiały biurowe",{"v":200,"d":"200.00 zł"},{"v":200,"d":"200.00 zł"},{"v":200,"d":"200.00 zł"},{"v":200,"d":"200.00 zł"},{"v":200,"d":"200.00 zł"},{"v":200,"d":"200.00 zł"},{"v":200,"d":"200.00 zł"},{"v":200,"d":"200.00 zł"},{"v":200,"d":"200.00 zł"},{"v":200,"d":"200.00 zł"},{"v":200,"d":"200.00 zł"},{"v":200,"d":"200.00 zł"},{"v":2400,"d":"2,400.00 zł"}]
[null,"Zabezpieczenia",{"v":600,"d":"600.00 zł"},{"v":600,"d":"600.00 zł"},{"v":600,"d":"600.00 zł"},{"v":600,"d":"600.00 zł"},{"v":600,"d":"600.00 zł"},{"v":600,"d":"600.00 zł"},{"v":600,"d":"600.00 zł"},{"v":600,"d":"600.00 zł"},{"v":600,"d":"600.00 zł"},{"v":600,"d":"600.00 zł"},{"v":600,"d":"600.00 zł"},{"v":600,"d":"600.00 zł"},{"v":7200,"d":"7,200.00 zł"}]
[null,"Suma częściowa",{"$f":"SUBTOTAL(109,Biuro_plan[Sty])","v":{"v":11370,"d":"11,370.00 zł"}},{"$f":"SUBTOTAL(109,Biuro_plan[Lut])","v":{"v":11770,"d":"11,770.00 zł"}},{"$f":"SUBTOTAL(109,Biuro_plan[Mar])","v":{"v":11770,"d":"11,770.00 zł"}},{"$f":"SUBTOTAL(109,Biuro_plan[Kwi])","v":{"v":11470,"d":"11,470.00 zł"}},{"$f":"SUBTOTAL(109,Biuro_plan[Maj])","v":{"v":11470,"d":"11,470.00 zł"}},{"$f":"SUBTOTAL(109,Biuro_plan[Cze])","v":{"v":11470,"d":"11,470.00 zł"}},{"$f":"SUBTOTAL(109,Biuro_plan[Lip])","v":{"v":11470,"d":"11,470.00 zł"}},{"$f":"SUBTOTAL(109,Biuro_plan[Sie])","v":{"v":11470,"d":"11,470.00 zł"}},{"$f":"SUBTOTAL(109,Biuro_plan[Wrz])","v":{"v":11470,"d":"11,470.00 zł"}},{"$f":"SUBTOTAL(109,Biuro_plan[Paź])","v":{"v":11470,"d":"11,470.00 zł"}},{"$f":"SUBTOTAL(109,Biuro_plan[Lis])","v":{"v":11770,"d":"11,770.00 zł"}},{"$f":"SUBTOTAL(109,Biuro_plan[Gru])","v":{"v":11770,"d":"11,770.00 zł"}},{"$f":"SUBTOTAL(109,Biuro_plan[ROK])","v":{"v":138740,"d":"138,740.00 zł"}}]
[]
["W tabeli Marketing — plan zaczynającej się w komórce po prawej stronie wprowadź koszty marketingu. Dalsze instrukcje znajdują się w komórce A30.","Koszty marketingu","Sty","Lut","Mar","Kwi","Maj","Cze","Lip","Sie","Wrz","Paź","Lis","Gru","ROK"]
[null,"Hosting witryny internetowej",{"v":500,"d":"500.00 zł"},{"v":500,"d":"500.00 zł"},{"v":500,"d":"500.00 zł"},{"v":500,"d":"500.00 zł"},{"v":500,"d":"500.00 zł"},{"v":500,"d":"500.00 zł"},{"v":500,"d":"500.00 zł"},{"v":500,"d":"500.00 zł"},{"v":500,"d":"500.00 zł"},{"v":500,"d":"500.00 zł"},{"v":500,"d":"500.00 zł"},{"v":500,"d":"500.00 zł"},{"$f":"SUM(C22:N22)","v":{"v":6000,"d":"6,000.00 zł"}}]
[null,"Aktualizacje witryny internetowej",{"v":200,"d":"200.00 zł"},{"v":200,"d":"200.00 zł"},{"v":200,"d":"200.00 zł"},{"v":200,"d":"200.00 zł"},{"v":200,"d":"200.00 zł"},{"v":1000,"d":"1,000.00 zł"},{"v":200,"d":"200.00 zł"},{"v":200,"d":"200.00 zł"},{"v":200,"d":"200.00 zł"},{"v":200,"d":"200.00 zł"},{"v":200,"d":"200.00 zł"},{"v":1000,"d":"1,000.00 zł"},{"v":4000,"d":"4,000.00 zł"}]
[null,"Przygotowywanie materiałów dodatkowych",{"v":5000,"d":"5,000.00 zł"},{"v":0,"d":"0.00 zł"},{"v":0,"d":"0.00 zł"},{"v":5000,"d":"5,000.00 zł"},{"v":0,"d":"0.00 zł"},{"v":0,"d":"0.00 zł"},{"v":5000,"d":"5,000.00 zł"},{"v":0,"d":"0.00 zł"},{"v":0,"d":"0.00 zł"},{"v":5000,"d":"5,000.00 zł"},{"v":0,"d":"0.00 zł"},{"v":0,"d":"0.00 zł"},{"v":20000,"d":"20,000.00 zł"}]
[null,"Drukowanie materiałów dodatkowych",{"v":200,"d":"200.00 zł"},{"v":200,"d":"200.00 zł"},{"v":200,"d":"200.00 zł"},{"v":200,"d":"200.00 zł"},{"v":200,"d":"200.00 zł"},{"v":200,"d":"200.00 zł"},{"v":200,"d":"200.00 zł"},{"v":200,"d":"200.00 zł"},{"v":200,"d":"200.00 zł"},{"v":200,"d":"200.00 zł"},{"v":200,"d":"200.00 zł"},{"v":200,"d":"200.00 zł"},{"v":2400,"d":"2,400.00 zł"}]
[null,"Wydarzenia marketingowe",{"v":2000,"d":"2,000.00 zł"},{"v":2000,"d":"2,000.00 zł"},{"v":2000,"d":"2,000.00 zł"},{"v":5000,"d":"5,000.00 zł"},{"v":2000,"d":"2,000.00 zł"},{"v":2000,"d":"2,000.00 zł"},{"v":2000,"d":"2,000.00 zł"},{"v":5000,"d":"5,000.00 zł"},{"v":2000,"d":"2,000.00 zł"},{"v":2000,"d":"2,000.00 zł"},{"v":2000,"d":"2,000.00 zł"},{"v":5000,"d":"5,000.00 zł"},{"v":33000,"d":"33,000.00 zł"}]
[null,"Różne wydatki",{"v":200,"d":"200.00 zł"},{"v":200,"d":"200.00 zł"},{"v":200,"d":"200.00 zł"},{"v":200,"d":"200.00 zł"},{"v":200,"d":"200.00 zł"},{"v":200,"d":"200.00 zł"},{"v":200,"d":"200.00 zł"},{"v":200,"d":"200.00 zł"},{"v":200,"d":"200.00 zł"},{"v":200,"d":"200.00 zł"},{"v":200,"d":"200.00 zł"},{"v":200,"d":"200.00 zł"},{"v":2400,"d":"2,400.00 zł"}]
[null,"Suma częściowa",{"$f":"SUBTOTAL(109,Marketing_plan[Sty])","v":{"v":8100,"d":"8,100.00 zł"}},{"$f":"SUBTOTAL(109,Marketing_plan[Lut])","v":{"v":3100,"d":"3,100.00 zł"}},{"$f":"SUBTOTAL(109,Marketing_plan[Mar])","v":{"v":3100,"d":"3,100.00 zł"}},{"$f":"SUBTOTAL(109,Marketing_plan[Kwi])","v":{"v":11100,"d":"11,100.00 zł"}},{"$f":"SUBTOTAL(109,Marketing_plan[Maj])","v":{"v":3100,"d":"3,100.00 zł"}},{"$f":"SUBTOTAL(109,Marketing_plan[Cze])","v":{"v":3900,"d":"3,900.00 zł"}},{"$f":"SUBTOTAL(109,Marketing_plan[Lip])","v":{"v":8100,"d":"8,100.00 zł"}},{"$f":"SUBTOTAL(109,Marketing_plan[Sie])","v":{"v":6100,"d":"6,100.00 zł"}},{"$f":"SUBTOTAL(109,Marketing_plan[Wrz])","v":{"v":3100,"d":"3,100.00 zł"}},{"$f":"SUBTOTAL(109,Marketing_plan[Paź])","v":{"v":8100,"d":"8,100.00 zł"}},{"$f":"SUBTOTAL(109,Marketing_plan[Lis])","v":{"v":3100,"d":"3,100.00 zł"}},{"$f":"SUBTOTAL(109,Marketing_plan[Gru])","v":{"v":6900,"d":"6,900.00 zł"}},{"$f":"SUBTOTAL(109,Marketing_plan[ROK])","v":{"v":67800,"d":"67,800.00 zł"}}]
[]
["W tabeli Szkolenia i podróże — plan zaczynającej się w komórce po prawej stronie wprowadź koszty szkoleń i podróży. Dalsze instrukcje znajdują się w komórce A35.","Szkolenia/podróże","Sty","Lut","Mar","Kwi","Maj","Cze","Lip","Sie","Wrz","Paź","Lis","Gru","ROK"]
[null,"Zajęcia szkoleniowe",{"v":2000,"d":"2,000.00 zł"},{"v":2000,"d":"2,000.00 zł"},{"v":2000,"d":"2,000.00 zł"},{"v":2000,"d":"2,000.00 zł"},{"v":2000,"d":"2,000.00 zł"},{"v":2000,"d":"2,000.00 zł"},{"v":2000,"d":"2,000.00 zł"},{"v":2000,"d":"2,000.00 zł"},{"v":2000,"d":"2,000.00 zł"},{"v":2000,"d":"2,000.00 zł"},{"v":2000,"d":"2,000.00 zł"},{"v":2000,"d":"2,000.00 zł"},{"$f":"SUM(C31:N31)","v":{"v":24000,"d":"24,000.00 zł"}}]
[null,"Koszty podróży związane ze szkoleniami",{"v":2000,"d":"2,000.00 zł"},{"v":2000,"d":"2,000.00 zł"},{"v":2000,"d":"2,000.00 zł"},{"v":2000,"d":"2,000.00 zł"},{"v":2000,"d":"2,000.00 zł"},{"v":2000,"d":"2,000.00 zł"},{"v":2000,"d":"2,000.00 zł"},{"v":2000,"d":"2,000.00 zł"},{"v":2000,"d":"2,000.00 zł"},{"v":2000,"d":"2,000.00 zł"},{"v":2000,"d":"2,000.00 zł"},{"v":2000,"d":"2,000.00 zł"},{"$f":"SUM(C32:N32)","v":{"v":24000,"d":"24,000.00 zł"}}]
[null,"Suma częściowa",{"$f":"SUBTOTAL(109,Szkolenia_i_podróże_plan[Sty])","v":{"v":4000,"d":"4,000.00 zł"}},{"$f":"SUBTOTAL(109,Szkolenia_i_podróże_plan[Lut])","v":{"v":4000,"d":"4,000.00 zł"}},{"$f":"SUBTOTAL(109,Szkolenia_i_podróże_plan[Mar])","v":{"v":4000,"d":"4,000.00 zł"}},{"$f":"SUBTOTAL(109,Szkolenia_i_podróże_plan[Kwi])","v":{"v":4000,"d":"4,000.00 zł"}},{"$f":"SUBTOTAL(109,Szkolenia_i_podróże_plan[Maj])","v":{"v":4000,"d":"4,000.00 zł"}},{"$f":"SUBTOTAL(109,Szkolenia_i_podróże_plan[Cze])","v":{"v":4000,"d":"4,000.00 zł"}},{"$f":"SUBTOTAL(109,Szkolenia_i_podróże_plan[Lip])","v":{"v":4000,"d":"4,000.00 zł"}},{"$f":"SUBTOTAL(109,Szkolenia_i_podróże_plan[Sie])","v":{"v":4000,"d":"4,000.00 zł"}},{"$f":"SUBTOTAL(109,Szkolenia_i_podróże_plan[Wrz])","v":{"v":4000,"d":"4,000.00 zł"}},{"$f":"SUBTOTAL(109,Szkolenia_i_podróże_plan[Paź])","v":{"v":4000,"d":"4,000.00 zł"}},{"$f":"SUBTOTAL(109,Szkolenia_i_podróże_plan[Lis])","v":{"v":4000,"d":"4,000.00 zł"}},{"$f":"SUBTOTAL(109,Szkolenia_i_podróże_plan[Gru])","v":{"v":4000,"d":"4,000.00 zł"}},{"$f":"SUBTOTAL(109,Szkolenia_i_podróże_plan[ROK])","v":{"v":48000,"d":"48,000.00 zł"}}]
[]
["W tabeli Suma planowanych zaczynającej się w komórce po prawej stronie są automatycznie obliczane sumy.","SUMY","Sty","Lut","Mar","Kwi","Maj","Cze","Lip","Sie","Wrz","Paź","Lis","Gru","Rok"]
[null,"Planowane wydatki miesięczne",{"$f":"Szkolenia_i_podróże_plan[[#Totals],[Sty]]+Marketing_plan[[#Totals],[Sty]]+Biuro_plan[[#Totals],[Sty]]+Pracownicy_plan[[#Totals],[Sty]]","v":{"v":131420,"d":"131,420.00 zł"}},{"$f":"Szkolenia_i_podróże_plan[[#Totals],[Lut]]+Marketing_plan[[#Totals],[Lut]]+Biuro_plan[[#Totals],[Lut]]+Pracownicy_plan[[#Totals],[Lut]]","v":{"v":126820,"d":"126,820.00 zł"}},{"$f":"Szkolenia_i_podróże_plan[[#Totals],[Mar]]+Marketing_plan[[#Totals],[Mar]]+Biuro_plan[[#Totals],[Mar]]+Pracownicy_plan[[#Totals],[Mar]]","v":{"v":126820,"d":"126,820.00 zł"}},{"$f":"Szkolenia_i_podróże_plan[[#Totals],[Kwi]]+Marketing_plan[[#Totals],[Kwi]]+Biuro_plan[[#Totals],[Kwi]]+Pracownicy_plan[[#Totals],[Kwi]]","v":{"v":137695,"d":"137,695.00 zł"}},{"$f":"Szkolenia_i_podróże_plan[[#Totals],[Maj]]+Marketing_plan[[#Totals],[Maj]]+Biuro_plan[[#Totals],[Maj]]+Pracownicy_plan[[#Totals],[Maj]]","v":{"v":129695,"d":"129,695.00 zł"}},{"$f":"Szkolenia_i_podróże_plan[[#Totals],[Cze]]+Marketing_plan[[#Totals],[Cze]]+Biuro_plan[[#Totals],[Cze]]+Pracownicy_plan[[#Totals],[Cze]]","v":{"v":130495,"d":"130,495.00 zł"}},{"$f":"Szkolenia_i_podróże_plan[[#Totals],[Lip]]+Marketing_plan[[#Totals],[Lip]]+Biuro_plan[[#Totals],[Lip]]+Pracownicy_plan[[#Totals],[Lip]]","v":{"v":134695,"d":"134,695.00 zł"}},{"$f":"Szkolenia_i_podróże_plan[[#Totals],[Sie]]+Marketing_plan[[#Totals],[Sie]]+Biuro_plan[[#Totals],[Sie]]+Pracownicy_plan[[#Totals],[Sie]]","v":{"v":138918,"d":"138,918.00 zł"}},{"$f":"Szkolenia_i_podróże_plan[[#Totals],[Wrz]]+Marketing_plan[[#Totals],[Wrz]]+Biuro_plan[[#Totals],[Wrz]]+Pracownicy_plan[[#Totals],[Wrz]]","v":{"v":135918,"d":"135,918.00 zł"}},{"$f":"Szkolenia_i_podróże_plan[[#Totals],[Paź]]+Marketing_plan[[#Totals],[Paź]]+Biuro_plan[[#Totals],[Paź]]+Pracownicy_plan[[#Totals],[Paź]]","v":{"v":140918,"d":"140,918.00 zł"}},{"$f":"Szkolenia_i_podróże_plan[[#Totals],[Lis]]+Marketing_plan[[#Totals],[Lis]]+Biuro_plan[[#Totals],[Lis]]+Pracownicy_plan[[#Totals],[Lis]]","v":{"v":136218,"d":"136,218.00 zł"}},{"$f":"Szkolenia_i_podróże_plan[[#Totals],[Gru]]+Marketing_plan[[#Totals],[Gru]]+Biuro_plan[[#Totals],[Gru]]+Pracownicy_plan[[#Totals],[Gru]]","v":{"v":140018,"d":"140,018.00 zł"}},{"$f":"Szkolenia_i_podróże_plan[[#Totals],[ROK]]+Marketing_plan[[#Totals],[ROK]]+Biuro_plan[[#Totals],[ROK]]+Pracownicy_plan[[#Totals],[ROK]]","v":{"v":1609630,"d":"1,609,630.00 zł"}}]
[null,"SUMA wydatków planowanych",{"$f":"SUM($C$36:C36)","v":{"v":131420,"d":"131,420.00 zł"}},{"$f":"SUM($C$36:D36)","v":{"v":258240,"d":"258,240.00 zł"}},{"$f":"SUM($C$36:E36)","v":{"v":385060,"d":"385,060.00 zł"}},{"$f":"SUM($C$36:F36)","v":{"v":522755,"d":"522,755.00 zł"}},{"$f":"SUM($C$36:G36)","v":{"v":652450,"d":"652,450.00 zł"}},{"$f":"SUM($C$36:H36)","v":{"v":782945,"d":"782,945.00 zł"}},{"$f":"SUM($C$36:I36)","v":{"v":917640,"d":"917,640.00 zł"}},{"$f":"SUM($C$36:J36)","v":{"v":1056558,"d":"1,056,558.00 zł"}},{"$f":"SUM($C$36:K36)","v":{"v":1192476,"d":"1,192,476.00 zł"}},{"$f":"SUM($C$36:L36)","v":{"v":1333394,"d":"1,333,394.00 zł"}},{"$f":"SUM($C$36:M36)","v":{"v":1469612,"d":"1,469,612.00 zł"}},{"$f":"SUM($C$36:N36)","v":{"v":1609630,"d":"1,609,630.00 zł"}}]

{"sheet":"WYDATKI RZECZYWISTE","index":2,"n_rows":37,"n_cols":16,"rows_kept":37,"merged":[[1,1,2,3],[1,9,1,12],[1,13,2,14],[2,9,2,12],[8,1,8,2],[19,1,19,2],[28,1,28,2],[33,1,33,2]]}
["W tabelach w tym arkuszu wprowadź rzeczywiste koszty pracowników, koszty biura, koszty marketingu i koszty szkoleń lub podróży. Sumy są obliczane automatycznie. W komórkach w tej kolumnie podano przydatne instrukcje na temat korzystania z tego arkusza. Naciśnij strzałkę w dół, aby rozpocząć pracę.",{"$nulls":14}," "]
["W komórce po prawej stronie jest automatycznie aktualizowana nazwa firmy. Tytuł tego arkusza znajduje się w komórce K2. W komórce N2 wprowadź Logo.",{"$f":"'WYDATKI PLANOWANE'!B2:D3","v":"Nazwa firmy"},{"$nulls":7},{"$f":"_xlnm.Sheet_Title","v":"Szczegółowe szacunki wydatków"},{"$nulls":3},"W tej komórce znajduje się symbol zastępczy logo."]
["W komórce K3 znajduje się porada.",{"$nulls":8},"Komórki cieniowane zawierają obliczenia."]
["W komórce po prawej stronie znajduje się etykieta Wydatki rzeczywiste, w komórkach od C4 do N4 — etykiety miesięcy, a w komórce O4 — etykieta Rok.","WYDATKI RZECZYWISTE","STY","LUT","MAR","KWI","MAJ","CZE","LIP","SIE","WRZ","PAŹ","LIS","GRU","ROK"]
["W tabeli Pracownicy — rzeczywiste zaczynającej się w komórce po prawej stronie wprowadź koszty pracowników. Dalsze instrukcje znajdują się w komórce A10.","Koszty pracowników","Sty","Lut","Mar","Kwi","Maj","Cze","Lip","Sie","Wrz","Paź","Lis","Gru","ROK"]
[null,"Pensje",{"v":85000,"d":"85,000.00 zł"},{"v":85000,"d":"85,000.00 zł"},{"v":85000,"d":"85,000.00 zł"},{"v":88000,"d":"88,000.00 zł"},{"v":88000,"d":"88,000.00 zł"},{"v":88000,"d":"88,000.00 zł"},{"$nulls":6},{"$f":"SUM(C6:N6)","v":{"v":519000,"d":"519,000.00 zł"}}]
[null,"Świadczenia",{"$f":"C6*0.27","v":{"v":22950,"d":"22,950.00 zł"}},{"v":22950,"d":"22,950.00 zł"},{"v":22950,"d":"22,950.00 zł"},{"v":23760,"d":"23,760.00 zł"},{"v":23760,"d":"23,760.00 zł"},{"v":23760,"d":"23,760.00 zł"},{"v":0,"d":"0.00 zł"},{"v":0,"d":"0.00 zł"},{"v":0,"d":"0.00 zł"},{"v":0,"d":"0.00 zł"},{"v":0,"d":"0.00 zł"},{"v":0,"d":"0.00 zł"},{"$f":"SUM(C7:N7)","v":{"v":140130,"d":"140,130.00 zł"}}]
[null,"Suma częściowa",{"$f":"SUBTOTAL(109,Pracownicy_rzeczywiste[Sty])","v":{"v":107950,"d":"107,950.00 zł"}},{"$f":"SUBTOTAL(109,Pracownicy_rzeczywiste[Lut])","v":{"v":107950,"d":"107,950.00 zł"}},{"$f":"SUBTOTAL(109,Pracownicy_rzeczywiste[Mar])","v":{"v":107950,"d":"107,950.00 zł"}},{"$f":"SUBTOTAL(109,Pracownicy_rzeczywiste[Kwi])","v":{"v":111760,"d":"111,760.00 zł"}},{"$f":"SUBTOTAL(109,Pracownicy_rzeczywiste[Maj])","v":{"v":111760,"d":"111,760.00 zł"}},{"$f":"SUBTOTAL(109,Pracownicy_rzeczywiste[Cze])","v":{"v":111760,"d":"111,760.00 zł"}},{"$f":"SUBTOTAL(109,Pracownicy_rzeczywiste[Lip])","v":{"v":0,"d":"0.00 zł"}},{"$f":"SUBTOTAL(109,Pracownicy_rzeczywiste[Sie])","v":{"v":0,"d":"0.00 zł"}},{"$f":"SUBTOTAL(109,Pracownicy_rzeczywiste[Wrz])","v":{"v":0,"d":"0.00 zł"}},{"$f":"SUBTOTAL(109,Pracownicy_rzeczywiste[Paź])","v":{"v":0,"d":"0.00 zł"}},{"$f":"SUBTOTAL(109,Pracownicy_rzeczywiste[Lis])","v":{"v":0,"d":"0.00 zł"}},{"$f":"SUBTOTAL(109,Pracownicy_rzeczywiste[Gru])","v":{"v":0,"d":"0.00 zł"}},{"$f":"SUBTOTAL(109,Pracownicy_rzeczywiste[ROK])","v":{"v":659130,"d":"659,130.00 zł"}}]
[]
["W tabeli Biuro — rzeczywiste zaczynającej się w komórce po prawej stronie wprowadź koszty biura. Dalsze instrukcje znajdują się w komórce A21.","Koszty biura","Sty","Lut","Mar","Kwi","Maj","Cze","Lip","Sie","Wrz","Paź","Lis","Gru","ROK"]
[null,"Wynajem biura",{"v":9800,"d":"9,800.00 zł"},{"v":9800,"d":"9,800.00 zł"},{"v":9800,"d":"9,800.00 zł"},{"v":9800,"d":"9,800.00 zł"},{"v":9800,"d":"9,800.00 zł"},{"v":9800,"d":"9,800.00 zł"},{"$nulls":6},{"$f":"SUM(C11:N11)","v":{"v":58800,"d":"58,800.00 zł"}}]
[null,"Paliwo",{"v":4,"d":"4.00 zł"},{"v":430,"d":"430.00 zł"},{"v":385,"d":"385.00 zł"},{"v":230,"d":"230.00 zł"},{"v":87,"d":"87.00 zł"},{"v":88,"d":"88.00 zł"},{"$nulls":6},{"v":1224,"d":"1,224.00 zł"}]
[null,"Prąd",{"v":288,"d":"288.00 zł"},{"v":278,"d":"278.00 zł"},{"v":268,"d":"268.00 zł"},{"v":299,"d":"299.00 zł"},{"v":306,"d":"306.00 zł"},{"v":290,"d":"290.00 zł"},{"$nulls":6},{"v":1729,"d":"1,729.00 zł"}]
[null,"Woda",{"v":35,"d":"35.00 zł"},{"v":33,"d":"33.00 zł"},{"v":34,"d":"34.00 zł"},{"v":36,"d":"36.00 zł"},{"v":34,"d":"34.00 zł"},{"v":36,"d":"36.00 zł"},{"$nulls":6},{"v":208,"d":"208.00 zł"}]
[null,"Telefon",{"v":224,"d":"224.00 zł"},{"v":235,"d":"235.00 zł"},{"v":265,"d":"265.00 zł"},{"v":245,"d":"245.00 zł"},{"v":245,"d":"245.00 zł"},{"v":220,"d":"220.00 zł"},{"$nulls":6},{"v":1434,"d":"1,434.00 zł"}]
[null,"Dostęp do Internetu",{"v":180,"d":"180.00 zł"},{"v":180,"d":"180.00 zł"},{"v":180,"d":"180.00 zł"},{"v":180,"d":"180.00 zł"},{"v":180,"d":"180.00 zł"},{"v":180,"d":"180.00 zł"},{"$nulls":6},{"v":1080,"d":"1,080.00 zł"}]
[null,"Materiały biurowe",{"v":256,"d":"256.00 zł"},{"v":142,"d":"142.00 zł"},{"v":160,"d":"160.00 zł"},{"v":221,"d":"221.00 zł"},{"v":256,"d":"256.00 zł"},{"v":240,"d":"240.00 zł"},{"$nulls":6},{"v":1275,"d":"1,275.00 zł"}]
[null,"Zabezpieczenia",{"v":600,"d":"600.00 zł"},{"v":600,"d":"600.00 zł"},{"v":600,"d":"600.00 zł"},{"v":600,"d":"600.00 zł"},{"v":600,"d":"600.00 zł"},{"v":600,"d":"600.00 zł"},{"$nulls":6},{"v":3600,"d":"3,600.00 zł"}]
[null,"Suma częściowa",{"$f":"SUBTOTAL(109,Biuro_rzeczywiste[Sty])","v":{"v":11387,"d":"11,387.00 zł"}},{"$f":"SUBTOTAL(109,Biuro_rzeczywiste[Lut])","v":{"v":11698,"d":"11,698.00 zł"}},{"$f":"SUBTOTAL(109,Biuro_rzeczywiste[Mar])","v":{"v":11692,"d":"11,692.00 zł"}},{"$f":"SUBTOTAL(109,Biuro_rzeczywiste[Kwi])","v":{"v":11611,"d":"11,611.00 zł"}},{"$f":"SUBTOTAL(109,Biuro_rzeczywiste[Maj])","v":{"v":11508,"d":"11,508.00 zł"}},{"$f":"SUBTOTAL(109,Biuro_rzeczywiste[Cze])","v":{"v":11454,"d":"11,454.00 zł"}},{"$f":"SUBTOTAL(109,Biuro_rzeczywiste[Lip])","v":{"v":0,"d":"0.00 zł"}},{"$f":"SUBTOTAL(109,Biuro_rzeczywiste[Sie])","v":{"v":0,"d":"0.00 zł"}},{"$f":"SUBTOTAL(109,Biuro_rzeczywiste[Wrz])","v":{"v":0,"d":"0.00 zł"}},{"$f":"SUBTOTAL(109,Biuro_rzeczywiste[Paź])","v":{"v":0,"d":"0.00 zł"}},{"$f":"SUBTOTAL(109,Biuro_rzeczywiste[Lis])","v":{"v":0,"d":"0.00 zł"}},{"$f":"SUBTOTAL(109,Biuro_rzeczywiste[Gru])","v":{"v":0,"d":"0.00 zł"}},{"$f":"SUBTOTAL(109,Biuro_rzeczywiste[ROK])","v":{"v":69350,"d":"69,350.00 zł"}}]
[]
["W tabeli Marketing — rzeczywiste zaczynającej się w komórce po prawej stronie wprowadź koszty marketingu. Dalsze instrukcje znajdują się w komórce A30.","Koszty marketingu","Sty","Lut","Mar","Kwi","Maj","Cze","Lip","Sie","Wrz","Paź","Lis","Gru","ROK"]
[null,"Hosting witryny internetowej",{"v":500,"d":"500.00 zł"},{"v":500,"d":"500.00 zł"},{"v":500,"d":"500.00 zł"},{"v":500,"d":"500.00 zł"},{"v":500,"d":"500.00 zł"},{"v":500,"d":"500.00 zł"},{"$nulls":6},{"$f":"SUM(C22:N22)","v":{"v":3000,"d":"3,000.00 zł"}}]
[null,"Aktualizacje witryny internetowej",{"v":200,"d":"200.00 zł"},{"v":200,"d":"200.00 zł"},{"v":200,"d":"200.00 zł"},{"v":200,"d":"200.00 zł"},{"v":200,"d":"200.00 zł"},{"v":1500,"d":"1,500.00 zł"},{"$nulls":6},{"v":2500,"d":"2,500.00 zł"}]
[null,"Przygotowywanie materiałów dodatkowych",{"v":4800,"d":"4,800.00 zł"},{"v":0,"d":"0.00 zł"},{"v":0,"d":"0.00 zł"},{"v":5500,"d":"5,500.00 zł"},{"v":0,"d":"0.00 zł"},{"v":0,"d":"0.00 zł"},{"$nulls":6},{"v":10300,"d":"10,300.00 zł"}]
[null,"Drukowanie materiałów dodatkowych",{"v":100,"d":"100.00 zł"},{"v":500,"d":"500.00 zł"},{"v":100,"d":"100.00 zł"},{"v":100,"d":"100.00 zł"},{"v":600,"d":"600.00 zł"},{"v":180,"d":"180.00 zł"},{"$nulls":6},{"v":1580,"d":"1,580.00 zł"}]
[null,"Wydarzenia marketingowe",{"v":1800,"d":"1,800.00 zł"},{"v":2200,"d":"2,200.00 zł"},{"v":2200,"d":"2,200.00 zł"},{"v":4700,"d":"4,700.00 zł"},{"v":1500,"d":"1,500.00 zł"},{"v":2300,"d":"2,300.00 zł"},{"$nulls":6},{"v":14700,"d":"14,700.00 zł"}]
[null,"Różne wydatki",{"v":145,"d":"145.00 zł"},{"v":156,"d":"156.00 zł"},{"v":123,"d":"123.00 zł"},{"v":223,"d":"223.00 zł"},{"v":187,"d":"187.00 zł"},{"v":245,"d":"245.00 zł"},{"$nulls":6},{"v":1079,"d":"1,079.00 zł"}]
[null,"Suma częściowa",{"$f":"SUBTOTAL(109,Marketing_rzeczywiste[Sty])","v":{"v":7545,"d":"7,545.00 zł"}},{"$f":"SUBTOTAL(109,Marketing_rzeczywiste[Lut])","v":{"v":3556,"d":"3,556.00 zł"}},{"$f":"SUBTOTAL(109,Marketing_rzeczywiste[Mar])","v":{"v":3123,"d":"3,123.00 zł"}},{"$f":"SUBTOTAL(109,Marketing_rzeczywiste[Kwi])","v":{"v":11223,"d":"11,223.00 zł"}},{"$f":"SUBTOTAL(109,Marketing_rzeczywiste[Maj])","v":{"v":2987,"d":"2,987.00 zł"}},{"$f":"SUBTOTAL(109,Marketing_rzeczywiste[Cze])","v":{"v":4725,"d":"4,725.00 zł"}},{"$f":"SUBTOTAL(109,Marketing_rzeczywiste[Lip])","v":{"v":0,"d":"0.00 zł"}},{"$f":"SUBTOTAL(109,Marketing_rzeczywiste[Sie])","v":{"v":0,"d":"0.00 zł"}},{"$f":"SUBTOTAL(109,Marketing_rzeczywiste[Wrz])","v":{"v":0,"d":"0.00 zł"}},{"$f":"SUBTOTAL(109,Marketing_rzeczywiste[Paź])","v":{"v":0,"d":"0.00 zł"}},{"$f":"SUBTOTAL(109,Marketing_rzeczywiste[Lis])","v":{"v":0,"d":"0.00 zł"}},{"$f":"SUBTOTAL(109,Marketing_rzeczywiste[Gru])","v":{"v":0,"d":"0.00 zł"}},{"$f":"SUBTOTAL(109,Marketing_rzeczywiste[ROK])","v":{"v":33159,"d":"33,159.00 zł"}}]
[]
["W tabeli Szkolenia i podróże — rzeczywiste zaczynającej się w komórce po prawej stronie wprowadź koszty szkoleń i podróży. Dalsze instrukcje znajdują się w komórce A35.","Szkolenia/podróże","Sty","Lut","Mar","Kwi","Maj","Cze","Lip","Sie","Wrz","Paź","Lis","Gru","ROK"]
[null,"Zajęcia szkoleniowe",{"v":1600,"d":"1,600.00 zł"},{"v":2400,"d":"2,400.00 zł"},{"v":1400,"d":"1,400.00 zł"},{"v":1600,"d":"1,600.00 zł"},{"v":1200,"d":"1,200.00 zł"},{"v":2800,"d":"2,800.00 zł"},{"$nulls":6},{"$f":"SUM(C31:N31)","v":{"v":11000,"d":"11,000.00 zł"}}]
[null,"Koszty podróży związane ze szkoleniami",{"v":1200,"d":"1,200.00 zł"},{"v":2200,"d":"2,200.00 zł"},{"v":1400,"d":"1,400.00 zł"},{"v":1200,"d":"1,200.00 zł"},{"v":800,"d":"800.00 zł"},{"v":3500,"d":"3,500.00 zł"},{"$nulls":6},{"$f":"SUM(C32:N32)","v":{"v":10300,"d":"10,300.00 zł"}}]
[null,"Suma częściowa",{"$f":"SUBTOTAL(109,Szkolenia_i_podróże_rzeczywiste[Sty])","v":{"v":2800,"d":"2,800.00 zł"}},{"$f":"SUBTOTAL(109,Szkolenia_i_podróże_rzeczywiste[Lut])","v":{"v":4600,"d":"4,600.00 zł"}},{"$f":"SUBTOTAL(109,Szkolenia_i_podróże_rzeczywiste[Mar])","v":{"v":2800,"d":"2,800.00 zł"}},{"$f":"SUBTOTAL(109,Szkolenia_i_podróże_rzeczywiste[Kwi])","v":{"v":2800,"d":"2,800.00 zł"}},{"$f":"SUBTOTAL(109,Szkolenia_i_podróże_rzeczywiste[Maj])","v":{"v":2000,"d":"2,000.00 zł"}},{"$f":"SUBTOTAL(109,Szkolenia_i_podróże_rzeczywiste[Cze])","v":{"v":6300,"d":"6,300.00 zł"}},{"$f":"SUBTOTAL(109,Szkolenia_i_podróże_rzeczywiste[Lip])","v":{"v":0,"d":"0.00 zł"}},{"$f":"SUBTOTAL(109,Szkolenia_i_podróże_rzeczywiste[Sie])","v":{"v":0,"d":"0.00 zł"}},{"$f":"SUBTOTAL(109,Szkolenia_i_podróże_rzeczywiste[Wrz])","v":{"v":0,"d":"0.00 zł"}},{"$f":"SUBTOTAL(109,Szkolenia_i_podróże_rzeczywiste[Paź])","v":{"v":0,"d":"0.00 zł"}},{"$f":"SUBTOTAL(109,Szkolenia_i_podróże_rzeczywiste[Lis])","v":{"v":0,"d":"0.00 zł"}},{"$f":"SUBTOTAL(109,Szkolenia_i_podróże_rzeczywiste[Gru])","v":{"v":0,"d":"0.00 zł"}},{"$f":"SUBTOTAL(109,Szkolenia_i_podróże_rzeczywiste[ROK])","v":{"v":21300,"d":"21,300.00 zł"}}]
[]
["W tabeli Suma rzeczywistych zaczynającej się w komórce po prawej stronie jest automatycznie obliczana suma wydatków rzeczywistych.","SUMA wydatków planowanych","Sty","Lut","Mar","Kwi","Maj","Cze","Lip","Sie","Wrz","Paź","Lis","Gru","Rok"]
[null,"Rzeczywiste wydatki miesięczne",{"$f":"Szkolenia_i_podróże_rzeczywiste[[#Totals],[Sty]]+Marketing_rzeczywiste[[#Totals],[Sty]]+Biuro_rzeczywiste[[#Totals],[Sty]]+Pracownicy_rzeczywiste[[#Totals],[Sty]]","v":{"v":129682,"d":"129,682.00 zł"}},{"$f":"Szkolenia_i_podróże_rzeczywiste[[#Totals],[Lut]]+Marketing_rzeczywiste[[#Totals],[Lut]]+Biuro_rzeczywiste[[#Totals],[Lut]]+Pracownicy_rzeczywiste[[#Totals],[Lut]]","v":{"v":127804,"d":"127,804.00 zł"}},{"$f":"Szkolenia_i_podróże_rzeczywiste[[#Totals],[Mar]]+Marketing_rzeczywiste[[#Totals],[Mar]]+Biuro_rzeczywiste[[#Totals],[Mar]]+Pracownicy_rzeczywiste[[#Totals],[Mar]]","v":{"v":125565,"d":"125,565.00 zł"}},{"$f":"Szkolenia_i_podróże_rzeczywiste[[#Totals],[Kwi]]+Marketing_rzeczywiste[[#Totals],[Kwi]]+Biuro_rzeczywiste[[#Totals],[Kwi]]+Pracownicy_rzeczywiste[[#Totals],[Kwi]]","v":{"v":137394,"d":"137,394.00 zł"}},{"$f":"Szkolenia_i_podróże_rzeczywiste[[#Totals],[Maj]]+Marketing_rzeczywiste[[#Totals],[Maj]]+Biuro_rzeczywiste[[#Totals],[Maj]]+Pracownicy_rzeczywiste[[#Totals],[Maj]]","v":{"v":128255,"d":"128,255.00 zł"}},{"$f":"Szkolenia_i_podróże_rzeczywiste[[#Totals],[Cze]]+Marketing_rzeczywiste[[#Totals],[Cze]]+Biuro_rzeczywiste[[#Totals],[Cze]]+Pracownicy_rzeczywiste[[#Totals],[Cze]]","v":{"v":134239,"d":"134,239.00 zł"}},{"$f":"Szkolenia_i_podróże_rzeczywiste[[#Totals],[Lip]]+Marketing_rzeczywiste[[#Totals],[Lip]]+Biuro_rzeczywiste[[#Totals],[Lip]]+Pracownicy_rzeczywiste[[#Totals],[Lip]]","v":{"v":0,"d":"0.00 zł"}},{"$f":"Szkolenia_i_podróże_rzeczywiste[[#Totals],[Sie]]+Marketing_rzeczywiste[[#Totals],[Sie]]+Biuro_rzeczywiste[[#Totals],[Sie]]+Pracownicy_rzeczywiste[[#Totals],[Sie]]","v":{"v":0,"d":"0.00 zł"}},{"$f":"Szkolenia_i_podróże_rzeczywiste[[#Totals],[Wrz]]+Marketing_rzeczywiste[[#Totals],[Wrz]]+Biuro_rzeczywiste[[#Totals],[Wrz]]+Pracownicy_rzeczywiste[[#Totals],[Wrz]]","v":{"v":0,"d":"0.00 zł"}},{"$f":"Szkolenia_i_podróże_rzeczywiste[[#Totals],[Paź]]+Marketing_rzeczywiste[[#Totals],[Paź]]+Biuro_rzeczywiste[[#Totals],[Paź]]+Pracownicy_rzeczywiste[[#Totals],[Paź]]","v":{"v":0,"d":"0.00 zł"}},{"$f":"Szkolenia_i_podróże_rzeczywiste[[#Totals],[Lis]]+Marketing_rzeczywiste[[#Totals],[Lis]]+Biuro_rzeczywiste[[#Totals],[Lis]]+Pracownicy_rzeczywiste[[#Totals],[Lis]]","v":{"v":0,"d":"0.00 zł"}},{"$f":"Szkolenia_i_podróże_rzeczywiste[[#Totals],[Gru]]+Marketing_rzeczywiste[[#Totals],[Gru]]+Biuro_rzeczywiste[[#Totals],[Gru]]+Pracownicy_rzeczywiste[[#Totals],[Gru]]","v":{"v":0,"d":"0.00 zł"}},{"$f":"Szkolenia_i_podróże_rzeczywiste[[#Totals],[ROK]]+Marketing_rzeczywiste[[#Totals],[ROK]]+Biuro_rzeczywiste[[#Totals],[ROK]]+Pracownicy_rzeczywiste[[#Totals],[ROK]]","v":{"v":782939,"d":"782,939.00 zł"}}]
[null,"SUMA wydatków rzeczywistych",{"$f":"SUM($C$36:C36)","v":{"v":129682,"d":"129,682.00 zł"}},{"$f":"SUM($C$36:D36)","v":{"v":257486,"d":"257,486.00 zł"}},{"$f":"SUM($C$36:E36)","v":{"v":383051,"d":"383,051.00 zł"}},{"$f":"SUM($C$36:F36)","v":{"v":520445,"d":"520,445.00 zł"}},{"$f":"SUM($C$36:G36)","v":{"v":648700,"d":"648,700.00 zł"}},{"$f":"SUM($C$36:H36)","v":{"v":782939,"d":"782,939.00 zł"}},{"$f":"SUM($C$36:I36)","v":{"v":782939,"d":"782,939.00 zł"}},{"$f":"SUM($C$36:J36)","v":{"v":782939,"d":"782,939.00 zł"}},{"$f":"SUM($C$36:K36)","v":{"v":782939,"d":"782,939.00 zł"}},{"$f":"SUM($C$36:L36)","v":{"v":782939,"d":"782,939.00 zł"}},{"$f":"SUM($C$36:M36)","v":{"v":782939,"d":"782,939.00 zł"}},{"$f":"SUM($C$36:N36)","v":{"v":782939,"d":"782,939.00 zł"}}]

{"sheet":"ODCHYLENIA WYDATKÓW","index":3,"n_rows":37,"n_cols":16,"rows_kept":37,"merged":[[1,1,2,3],[1,9,1,12],[1,13,2,14],[2,9,2,12],[8,1,8,2],[19,1,19,2],[28,1,28,2],[33,1,33,2]]}
["W tym arkuszu w odpowiednich tabelach są automatycznie obliczane odchylenia wydatków dla koszty pracowników, kosztów biura, koszty marketingu i kosztów szkoleń lub podróży. W komórkach w tej kolumnie podano przydatne instrukcje na temat korzystania z tego arkusza. Naciśnij strzałkę w dół, aby rozpocząć pracę.",{"$nulls":14}," "]
["W komórce po prawej stronie jest automatycznie aktualizowana nazwa firmy. Tytuł tego arkusza znajduje się w komórce K2. W komórce N2 wprowadź Logo.",{"$f":"'WYDATKI PLANOWANE'!B2:D3","v":"Nazwa firmy"},{"$nulls":7},{"$f":"_xlnm.Sheet_Title","v":"Szczegółowe szacunki wydatków"},{"$nulls":3},"W tej komórce znajduje się symbol zastępczy logo."]
["W komórce K3 znajduje się porada.",{"$nulls":8},"Komórki cieniowane zawierają obliczenia."]
["W komórce po prawej stronie znajduje się etykieta Odchylenia wydatków, w komórkach od C4 do N4 — etykiety miesięcy, a w komórce O4 — etykieta Rok.","ODCHYLENIA WYDATKÓW","STY","LUT","MAR","KWI","MAJ","CZE","LIP","SIE","WRZ","PAŹ","LIS","GRU","ROK"]
["W tabeli Pracownicy — odchylenia zaczynającej się w komórce po prawej stronie jest automatycznie obliczane odchylenie koszty pracowników. Dalsze instrukcje znajdują się w komórce A10.","Koszty pracowników","Sty","Lut","Mar","Kwi","Maj","Cze","Lip","Sie","Wrz","Paź","Lis","Gru","ROK"]
[null,"Pensje",{"$f":"INDEX(Pracownicy_plan[],MATCH(INDEX(Pracownicy_odchylenia[],ROW()-ROW(Pracownicy_odchylenia[[#Headers],[Sty]]),1),INDEX(Pracownicy_plan[],,1),0),MATCH(Pracownicy_odchylenia[[#Headers],[Sty]],Pracownicy_plan[#Headers],0))-INDEX(Pracownicy_rzeczywiste[],MATCH(INDEX(Pracownicy_odchylenia[],ROW()-ROW(Pracownicy_odchylenia[[#Headers],[Sty]]),1),INDEX(Pracownicy_plan[],,1),0),MATCH(Pracownicy_odchylenia[[#Headers],[Sty]],Pracownicy_rzeczywiste[#Headers],0))","v":{"v":0,"d":"0.00 zł"}},{"$f":"INDEX(Pracownicy_plan[],MATCH(INDEX(Pracownicy_odchylenia[],ROW()-ROW(Pracownicy_odchylenia[[#Headers],[Lut]]),1),INDEX(Pracownicy_plan[],,1),0),MATCH(Pracownicy_odchylenia[[#Headers],[Lut]],Pracownicy_plan[#Headers],0))-INDEX(Pracownicy_rzeczywiste[],MATCH(INDEX(Pracownicy_odchylenia[],ROW()-ROW(Pracownicy_odchylenia[[#Headers],[Lut]]),1),INDEX(Pracownicy_plan[],,1),0),MATCH(Pracownicy_odchylenia[[#Headers],[Lut]],Pracownicy_rzeczywiste[#Headers],0))","v":{"v":0,"d":"0.00 zł"}},{"$f":"INDEX(Pracownicy_plan[],MATCH(INDEX(Pracownicy_odchylenia[],ROW()-ROW(Pracownicy_odchylenia[[#Headers],[Mar]]),1),INDEX(Pracownicy_plan[],,1),0),MATCH(Pracownicy_odchylenia[[#Headers],[Mar]],Pracownicy_plan[#Headers],0))-INDEX(Pracownicy_rzeczywiste[],MATCH(INDEX(Pracownicy_odchylenia[],ROW()-ROW(Pracownicy_odchylenia[[#Headers],[Mar]]),1),INDEX(Pracownicy_plan[],,1),0),MATCH(Pracownicy_odchylenia[[#Headers],[Mar]],Pracownicy_rzeczywiste[#Headers],0))","v":{"v":0,"d":"0.00 zł"}},{"$f":"INDEX(Pracownicy_plan[],MATCH(INDEX(Pracownicy_odchylenia[],ROW()-ROW(Pracownicy_odchylenia[[#Headers],[Kwi]]),1),INDEX(Pracownicy_plan[],,1),0),MATCH(Pracownicy_odchylenia[[#Headers],[Kwi]],Pracownicy_plan[#Headers],0))-INDEX(Pracownicy_rzeczywiste[],MATCH(INDEX(Pracownicy_odchylenia[],ROW()-ROW(Pracownicy_odchylenia[[#Headers],[Kwi]]),1),INDEX(Pracownicy_plan[],,1),0),MATCH(Pracownicy_odchylenia[[#Headers],[Kwi]],Pracownicy_rzeczywiste[#Headers],0))","v":{"v":-500,"d":"-500.00 zł"}},{"$f":"INDEX(Pracownicy_plan[],MATCH(INDEX(Pracownicy_odchylenia[],ROW()-ROW(Pracownicy_odchylenia[[#Headers],[Maj]]),1),INDEX(Pracownicy_plan[],,1),0),MATCH(Pracownicy_odchylenia[[#Headers],[Maj]],Pracownicy_plan[#Headers],0))-INDEX(Pracownicy_rzeczywiste[],MATCH(INDEX(Pracownicy_odchylenia[],ROW()-ROW(Pracownicy_odchylenia[[#Headers],[Maj]]),1),INDEX(Pracownicy_plan[],,1),0),MATCH(Pracownicy_odchylenia[[#Headers],[Maj]],Pracownicy_rzeczywiste[#Headers],0))","v":{"v":-500,"d":"-500.00 zł"}},{"$f":"INDEX(Pracownicy_plan[],MATCH(INDEX(Pracownicy_odchylenia[],ROW()-ROW(Pracownicy_odchylenia[[#Headers],[Cze]]),1),INDEX(Pracownicy_plan[],,1),0),MATCH(Pracownicy_odchylenia[[#Headers],[Cze]],Pracownicy_plan[#Headers],0))-INDEX(Pracownicy_rzeczywiste[],MATCH(INDEX(Pracownicy_odchylenia[],ROW()-ROW(Pracownicy_odchylenia[[#Headers],[Cze]]),1),INDEX(Pracownicy_plan[],,1),0),MATCH(Pracownicy_odchylenia[[#Headers],[Cze]],Pracownicy_rzeczywiste[#Headers],0))","v":{"v":-500,"d":"-500.00 zł"}},{"$f":"INDEX(Pracownicy_plan[],MATCH(INDEX(Pracownicy_odchylenia[],ROW()-ROW(Pracownicy_odchylenia[[#Headers],[Lip]]),1),INDEX(Pracownicy_plan[],,1),0),MATCH(Pracownicy_odchylenia[[#Headers],[Lip]],Pracownicy_plan[#Headers],0))-INDEX(Pracownicy_rzeczywiste[],MATCH(INDEX(Pracownicy_odchylenia[],ROW()-ROW(Pracownicy_odchylenia[[#Headers],[Lip]]),1),INDEX(Pracownicy_plan[],,1),0),MATCH(Pracownicy_odchylenia[[#Headers],[Lip]],Pracownicy_rzeczywiste[#Headers],0))","v":{"v":87500,"d":"87,500.00 zł"}},{"$f":"INDEX(Pracownicy_plan[],MATCH(INDEX(Pracownicy_odchylenia[],ROW()-ROW(Pracownicy_odchylenia[[#Headers],[Sie]]),1),INDEX(Pracownicy_plan[],,1),0),MATCH(Pracownicy_odchylenia[[#Headers],[Sie]],Pracownicy_plan[#Headers],0))-INDEX(Pracownicy_rzeczywiste[],MATCH(INDEX(Pracownicy_odchylenia[],ROW()-ROW(Pracownicy_odchylenia[[#Headers],[Sie]]),1),INDEX(Pracownicy_plan[],,1),0),MATCH(Pracownicy_odchylenia[[#Headers],[Sie]],Pracownicy_rzeczywiste[#Headers],0))","v":{"v":92400,"d":"92,400.00 zł"}},{"$f":"INDEX(Pracownicy_plan[],MATCH(INDEX(Pracownicy_odchylenia[],ROW()-ROW(Pracownicy_odchylenia[[#Headers],[Wrz]]),1),INDEX(Pracownicy_plan[],,1),0),MATCH(Pracownicy_odchylenia[[#Headers],[Wrz]],Pracownicy_plan[#Headers],0))-INDEX(Pracownicy_rzeczywiste[],MATCH(INDEX(Pracownicy_odchylenia[],ROW()-ROW(Pracownicy_odchylenia[[#Headers],[Wrz]]),1),INDEX(Pracownicy_plan[],,1),0),MATCH(Pracownicy_odchylenia[[#Headers],[Wrz]],Pracownicy_rzeczywiste[#Headers],0))","v":{"v":92400,"d":"92,400.00 zł"}},{"$f":"INDEX(Pracownicy_plan[],MATCH(INDEX(Pracownicy_odchylenia[],ROW()-ROW(Pracownicy_odchylenia[[#Headers],[Paź]]),1),INDEX(Pracownicy_plan[],,1),0),MATCH(Pracownicy_odchylenia[[#Headers],[Paź]],Pracownicy_plan[#Headers],0))-INDEX(Pracownicy_rzeczywiste[],MATCH(INDEX(Pracownicy_odchylenia[],ROW()-ROW(Pracownicy_odchylenia[[#Headers],[Paź]]),1),INDEX(Pracownicy_plan[],,1),0),MATCH(Pracownicy_odchylenia[[#Headers],[Paź]],Pracownicy_rzeczywiste[#Headers],0))","v":{"v":92400,"d":"92,400.00 zł"}},{"$f":"INDEX(Pracownicy_plan[],MATCH(INDEX(Pracownicy_odchylenia[],ROW()-ROW(Pracownicy_odchylenia[[#Headers],[Lis]]),1),INDEX(Pracownicy_plan[],,1),0),MATCH(Pracownicy_odchylenia[[#Headers],[Lis]],Pracownicy_plan[#Headers],0))-INDEX(Pracownicy_rzeczywiste[],MATCH(INDEX(Pracownicy_odchylenia[],ROW()-ROW(Pracownicy_odchylenia[[#Headers],[Lis]]),1),INDEX(Pracownicy_plan[],,1),0),MATCH(Pracownicy_odchylenia[[#Headers],[Lis]],Pracownicy_rzeczywiste[#Headers],0))","v":{"v":92400,"d":"92,400.00 zł"}},{"$f":"INDEX(Pracownicy_plan[],MATCH(INDEX(Pracownicy_odchylenia[],ROW()-ROW(Pracownicy_odchylenia[[#Headers],[Gru]]),1),INDEX(Pracownicy_plan[],,1),0),MATCH(Pracownicy_odchylenia[[#Headers],[Gru]],Pracownicy_plan[#Headers],0))-INDEX(Pracownicy_rzeczywiste[],MATCH(INDEX(Pracownicy_odchylenia[],ROW()-ROW(Pracownicy_odchylenia[[#Headers],[Gru]]),1),INDEX(Pracownicy_plan[],,1),0),MATCH(Pracownicy_odchylenia[[#Headers],[Gru]],Pracownicy_rzeczywiste[#Headers],0))","v":{"v":92400,"d":"92,400.00 zł"}},{"$f":"SUM(Pracownicy_odchylenia[[#This Row],[Sty]:[Gru]])","v":{"v":548000,"d":"548,000.00 zł"}}]
[null,"Świadczenia",{"$f":"INDEX(Pracownicy_plan[],MATCH(INDEX(Pracownicy_odchylenia[],ROW()-ROW(Pracownicy_odchylenia[[#Headers],[Sty]]),1),INDEX(Pracownicy_plan[],,1),0),MATCH(Pracownicy_odchylenia[[#Headers],[Sty]],Pracownicy_plan[#Headers],0))-INDEX(Pracownicy_rzeczywiste[],MATCH(INDEX(Pracownicy_odchylenia[],ROW()-ROW(Pracownicy_odchylenia[[#Headers],[Sty]]),1),INDEX(Pracownicy_plan[],,1),0),MATCH(Pracownicy_odchylenia[[#Headers],[Sty]],Pracownicy_rzeczywiste[#Headers],0))","v":{"v":0,"d":"0.00 zł"}},{"$f":"INDEX(Pracownicy_plan[],MATCH(INDEX(Pracownicy_odchylenia[],ROW()-ROW(Pracownicy_odchylenia[[#Headers],[Lut]]),1),INDEX(Pracownicy_plan[],,1),0),MATCH(Pracownicy_odchylenia[[#Headers],[Lut]],Pracownicy_plan[#Headers],0))-INDEX(Pracownicy_rzeczywiste[],MATCH(INDEX(Pracownicy_odchylenia[],ROW()-ROW(Pracownicy_odchylenia[[#Headers],[Lut]]),1),INDEX(Pracownicy_plan[],,1),0),MATCH(Pracownicy_odchylenia[[#Headers],[Lut]],Pracownicy_rzeczywiste[#Headers],0))","v":{"v":0,"d":"0.00 zł"}},{"$f":"INDEX(Pracownicy_plan[],MATCH(INDEX(Pracownicy_odchylenia[],ROW()-ROW(Pracownicy_odchylenia[[#Headers],[Mar]]),1),INDEX(Pracownicy_plan[],,1),0),MATCH(Pracownicy_odchylenia[[#Headers],[Mar]],Pracownicy_plan[#Headers],0))-INDEX(Pracownicy_rzeczywiste[],MATCH(INDEX(Pracownicy_odchylenia[],ROW()-ROW(Pracownicy_odchylenia[[#Headers],[Mar]]),1),INDEX(Pracownicy_plan[],,1),0),MATCH(Pracownicy_odchylenia[[#Headers],[Mar]],Pracownicy_rzeczywiste[#Headers],0))","v":{"v":0,"d":"0.00 zł"}},{"$f":"INDEX(Pracownicy_plan[],MATCH(INDEX(Pracownicy_odchylenia[],ROW()-ROW(Pracownicy_odchylenia[[#Headers],[Kwi]]),1),INDEX(Pracownicy_plan[],,1),0),MATCH(Pracownicy_odchylenia[[#Headers],[Kwi]],Pracownicy_plan[#Headers],0))-INDEX(Pracownicy_rzeczywiste[],MATCH(INDEX(Pracownicy_odchylenia[],ROW()-ROW(Pracownicy_odchylenia[[#Headers],[Kwi]]),1),INDEX(Pracownicy_plan[],,1),0),MATCH(Pracownicy_odchylenia[[#Headers],[Kwi]],Pracownicy_rzeczywiste[#Headers],0))","v":{"v":-135,"d":"-135.00 zł"}},{"$f":"INDEX(Pracownicy_plan[],MATCH(INDEX(Pracownicy_odchylenia[],ROW()-ROW(Pracownicy_odchylenia[[#Headers],[Maj]]),1),INDEX(Pracownicy_plan[],,1),0),MATCH(Pracownicy_odchylenia[[#Headers],[Maj]],Pracownicy_plan[#Headers],0))-INDEX(Pracownicy_rzeczywiste[],MATCH(INDEX(Pracownicy_odchylenia[],ROW()-ROW(Pracownicy_odchylenia[[#Headers],[Maj]]),1),INDEX(Pracownicy_plan[],,1),0),MATCH(Pracownicy_odchylenia[[#Headers],[Maj]],Pracownicy_rzeczywiste[#Headers],0))","v":{"v":-135,"d":"-135.00 zł"}},{"$f":"INDEX(Pracownicy_plan[],MATCH(INDEX(Pracownicy_odchylenia[],ROW()-ROW(Pracownicy_odchylenia[[#Headers],[Cze]]),1),INDEX(Pracownicy_plan[],,1),0),MATCH(Pracownicy_odchylenia[[#Headers],[Cze]],Pracownicy_plan[#Headers],0))-INDEX(Pracownicy_rzeczywiste[],MATCH(INDEX(Pracownicy_odchylenia[],ROW()-ROW(Pracownicy_odchylenia[[#Headers],[Cze]]),1),INDEX(Pracownicy_plan[],,1),0),MATCH(Pracownicy_odchylenia[[#Headers],[Cze]],Pracownicy_rzeczywiste[#Headers],0))","v":{"v":-135,"d":"-135.00 zł"}},{"$f":"INDEX(Pracownicy_plan[],MATCH(INDEX(Pracownicy_odchylenia[],ROW()-ROW(Pracownicy_odchylenia[[#Headers],[Lip]]),1),INDEX(Pracownicy_plan[],,1),0),MATCH(Pracownicy_odchylenia[[#Headers],[Lip]],Pracownicy_plan[#Headers],0))-INDEX(Pracownicy_rzeczywiste[],MATCH(INDEX(Pracownicy_odchylenia[],ROW()-ROW(Pracownicy_odchylenia[[#Headers],[Lip]]),1),INDEX(Pracownicy_plan[],,1),0),MATCH(Pracownicy_odchylenia[[#Headers],[Lip]],Pracownicy_rzeczywiste[#Headers],0))","v":{"v":23625,"d":"23,625.00 zł"}},{"$f":"INDEX(Pracownicy_plan[],MATCH(INDEX(Pracownicy_odchylenia[],ROW()-ROW(Pracownicy_odchylenia[[#Headers],[Sie]]),1),INDEX(Pracownicy_plan[],,1),0),MATCH(Pracownicy_odchylenia[[#Headers],[Sie]],Pracownicy_plan[#Headers],0))-INDEX(Pracownicy_rzeczywiste[],MATCH(INDEX(Pracownicy_odchylenia[],ROW()-ROW(Pracownicy_odchylenia[[#Headers],[Sie]]),1),INDEX(Pracownicy_plan[],,1),0),MATCH(Pracownicy_odchylenia[[#Headers],[Sie]],Pracownicy_rzeczywiste[#Headers],0))","v":{"v":24948,"d":"24,948.00 zł"}},{"$f":"INDEX(Pracownicy_plan[],MATCH(INDEX(Pracownicy_odchylenia[],ROW()-ROW(Pracownicy_odchylenia[[#Headers],[Wrz]]),1),INDEX(Pracownicy_plan[],,1),0),MATCH(Pracownicy_odchylenia[[#Headers],[Wrz]],Pracownicy_plan[#Headers],0))-INDEX(Pracownicy_rzeczywiste[],MATCH(INDEX(Pracownicy_odchylenia[],ROW()-ROW(Pracownicy_odchylenia[[#Headers],[Wrz]]),1),INDEX(Pracownicy_plan[],,1),0),MATCH(Pracownicy_odchylenia[[#Headers],[Wrz]],Pracownicy_rzeczywiste[#Headers],0))","v":{"v":24948,"d":"24,948.00 zł"}},{"$f":"INDEX(Pracownicy_plan[],MATCH(INDEX(Pracownicy_odchylenia[],ROW()-ROW(Pracownicy_odchylenia[[#Headers],[Paź]]),1),INDEX(Pracownicy_plan[],,1),0),MATCH(Pracownicy_odchylenia[[#Headers],[Paź]],Pracownicy_plan[#Headers],0))-INDEX(Pracownicy_rzeczywiste[],MATCH(INDEX(Pracownicy_odchylenia[],ROW()-ROW(Pracownicy_odchylenia[[#Headers],[Paź]]),1),INDEX(Pracownicy_plan[],,1),0),MATCH(Pracownicy_odchylenia[[#Headers],[Paź]],Pracownicy_rzeczywiste[#Headers],0))","v":{"v":24948,"d":"24,948.00 zł"}},{"$f":"INDEX(Pracownicy_plan[],MATCH(INDEX(Pracownicy_odchylenia[],ROW()-ROW(Pracownicy_odchylenia[[#Headers],[Lis]]),1),INDEX(Pracownicy_plan[],,1),0),MATCH(Pracownicy_odchylenia[[#Headers],[Lis]],Pracownicy_plan[#Headers],0))-INDEX(Pracownicy_rzeczywiste[],MATCH(INDEX(Pracownicy_odchylenia[],ROW()-ROW(Pracownicy_odchylenia[[#Headers],[Lis]]),1),INDEX(Pracownicy_plan[],,1),0),MATCH(Pracownicy_odchylenia[[#Headers],[Lis]],Pracownicy_rzeczywiste[#Headers],0))","v":{"v":24948,"d":"24,948.00 zł"}},{"$f":"INDEX(Pracownicy_plan[],MATCH(INDEX(Pracownicy_odchylenia[],ROW()-ROW(Pracownicy_odchylenia[[#Headers],[Gru]]),1),INDEX(Pracownicy_plan[],,1),0),MATCH(Pracownicy_odchylenia[[#Headers],[Gru]],Pracownicy_plan[#Headers],0))-INDEX(Pracownicy_rzeczywiste[],MATCH(INDEX(Pracownicy_odchylenia[],ROW()-ROW(Pracownicy_odchylenia[[#Headers],[Gru]]),1),INDEX(Pracownicy_plan[],,1),0),MATCH(Pracownicy_odchylenia[[#Headers],[Gru]],Pracownicy_rzeczywiste[#Headers],0))","v":{"v":24948,"d":"24,948.00 zł"}},{"$f":"SUM(Pracownicy_odchylenia[[#This Row],[Sty]:[Gru]])","v":{"v":147960,"d":"147,960.00 zł"}}]
[null,"Suma częściowa",{"$f":"SUBTOTAL(109,Pracownicy_odchylenia[Sty])","v":{"v":0,"d":"0.00 zł"}},{"$f":"SUBTOTAL(109,Pracownicy_odchylenia[Lut])","v":{"v":0,"d":"0.00 zł"}},{"$f":"SUBTOTAL(109,Pracownicy_odchylenia[Mar])","v":{"v":0,"d":"0.00 zł"}},{"$f":"SUBTOTAL(109,Pracownicy_odchylenia[Kwi])","v":{"v":-635,"d":"-635.00 zł"}},{"$f":"SUBTOTAL(109,Pracownicy_odchylenia[Maj])","v":{"v":-635,"d":"-635.00 zł"}},{"$f":"SUBTOTAL(109,Pracownicy_odchylenia[Cze])","v":{"v":-635,"d":"-635.00 zł"}},{"$f":"SUBTOTAL(109,Pracownicy_odchylenia[Lip])","v":{"v":111125,"d":"111,125.00 zł"}},{"$f":"SUBTOTAL(109,Pracownicy_odchylenia[Sie])","v":{"v":117348,"d":"117,348.00 zł"}},{"$f":"SUBTOTAL(109,Pracownicy_odchylenia[Wrz])","v":{"v":117348,"d":"117,348.00 zł"}},{"$f":"SUBTOTAL(109,Pracownicy_odchylenia[Paź])","v":{"v":117348,"d":"117,348.00 zł"}},{"$f":"SUBTOTAL(109,Pracownicy_odchylenia[Lis])","v":{"v":117348,"d":"117,348.00 zł"}},{"$f":"SUBTOTAL(109,Pracownicy_odchylenia[Gru])","v":{"v":117348,"d":"117,348.00 zł"}},{"$f":"SUBTOTAL(109,Pracownicy_odchylenia[ROK])","v":{"v":695960,"d":"695,960.00 zł"}}]
[]
["W tabeli Biuro — odchylenia zaczynającej się w komórce po prawej stronie jest automatycznie obliczane odchylenie koszty biura. Dalsze instrukcje znajdują się w komórce A21.","Koszty biura","Sty","Lut","Mar","Kwi","Maj","Cze","Lip","Sie","Wrz","Paź","Lis","Gru","ROK"]
[null,"Wynajem biura",{"$f":"INDEX(Biuro_plan[],MATCH(INDEX(Biuro_odchylenia[],ROW()-ROW(Biuro_odchylenia[[#Headers],[Sty]]),1),INDEX(Biuro_plan[],,1),0),MATCH(Biuro_odchylenia[[#Headers],[Sty]],Biuro_plan[#Headers],0))-INDEX(Biuro_rzeczywiste[],MATCH(INDEX(Biuro_odchylenia[],ROW()-ROW(Biuro_odchylenia[[#Headers],[Sty]]),1),INDEX(Biuro_plan[],,1),0),MATCH(Biuro_odchylenia[[#Headers],[Sty]],Biuro_rzeczywiste[#Headers],0))","v":{"v":0,"d":"0.00 zł"}},{"$f":"INDEX(Biuro_plan[],MATCH(INDEX(Biuro_odchylenia[],ROW()-ROW(Biuro_odchylenia[[#Headers],[Lut]]),1),INDEX(Biuro_plan[],,1),0),MATCH(Biuro_odchylenia[[#Headers],[Lut]],Biuro_plan[#Headers],0))-INDEX(Biuro_rzeczywiste[],MATCH(INDEX(Biuro_odchylenia[],ROW()-ROW(Biuro_odchylenia[[#Headers],[Lut]]),1),INDEX(Biuro_plan[],,1),0),MATCH(Biuro_odchylenia[[#Headers],[Lut]],Biuro_rzeczywiste[#Headers],0))","v":{"v":0,"d":"0.00 zł"}},{"$f":"INDEX(Biuro_plan[],MATCH(INDEX(Biuro_odchylenia[],ROW()-ROW(Biuro_odchylenia[[#Headers],[Mar]]),1),INDEX(Biuro_plan[],,1),0),MATCH(Biuro_odchylenia[[#Headers],[Mar]],Biuro_plan[#Headers],0))-INDEX(Biuro_rzeczywiste[],MATCH(INDEX(Biuro_odchylenia[],ROW()-ROW(Biuro_odchylenia[[#Headers],[Mar]]),1),INDEX(Biuro_plan[],,1),0),MATCH(Biuro_odchylenia[[#Headers],[Mar]],Biuro_rzeczywiste[#Headers],0))","v":{"v":0,"d":"0.00 zł"}},{"$f":"INDEX(Biuro_plan[],MATCH(INDEX(Biuro_odchylenia[],ROW()-ROW(Biuro_odchylenia[[#Headers],[Kwi]]),1),INDEX(Biuro_plan[],,1),0),MATCH(Biuro_odchylenia[[#Headers],[Kwi]],Biuro_plan[#Headers],0))-INDEX(Biuro_rzeczywiste[],MATCH(INDEX(Biuro_odchylenia[],ROW()-ROW(Biuro_odchylenia[[#Headers],[Kwi]]),1),INDEX(Biuro_plan[],,1),0),MATCH(Biuro_odchylenia[[#Headers],[Kwi]],Biuro_rzeczywiste[#Headers],0))","v":{"v":0,"d":"0.00 zł"}},{"$f":"INDEX(Biuro_plan[],MATCH(INDEX(Biuro_odchylenia[],ROW()-ROW(Biuro_odchylenia[[#Headers],[Maj]]),1),INDEX(Biuro_plan[],,1),0),MATCH(Biuro_odchylenia[[#Headers],[Maj]],Biuro_plan[#Headers],0))-INDEX(Biuro_rzeczywiste[],MATCH(INDEX(Biuro_odchylenia[],ROW()-ROW(Biuro_odchylenia[[#Headers],[Maj]]),1),INDEX(Biuro_plan[],,1),0),MATCH(Biuro_odchylenia[[#Headers],[Maj]],Biuro_rzeczywiste[#Headers],0))","v":{"v":0,"d":"0.00 zł"}},{"$f":"INDEX(Biuro_plan[],MATCH(INDEX(Biuro_odchylenia[],ROW()-ROW(Biuro_odchylenia[[#Headers],[Cze]]),1),INDEX(Biuro_plan[],,1),0),MATCH(Biuro_odchylenia[[#Headers],[Cze]],Biuro_plan[#Headers],0))-INDEX(Biuro_rzeczywiste[],MATCH(INDEX(Biuro_odchylenia[],ROW()-ROW(Biuro_odchylenia[[#Headers],[Cze]]),1),INDEX(Biuro_plan[],,1),0),MATCH(Biuro_odchylenia[[#Headers],[Cze]],Biuro_rzeczywiste[#Headers],0))","v":{"v":0,"d":"0.00 zł"}},{"$f":"INDEX(Biuro_plan[],MATCH(INDEX(Biuro_odchylenia[],ROW()-ROW(Biuro_odchylenia[[#Headers],[Lip]]),1),INDEX(Biuro_plan[],,1),0),MATCH(Biuro_odchylenia[[#Headers],[Lip]],Biuro_plan[#Headers],0))-INDEX(Biuro_rzeczywiste[],MATCH(INDEX(Biuro_odchylenia[],ROW()-ROW(Biuro_odchylenia[[#Headers],[Lip]]),1),INDEX(Biuro_plan[],,1),0),MATCH(Biuro_odchylenia[[#Headers],[Lip]],Biuro_rzeczywiste[#Headers],0))","v":{"v":9800,"d":"9,800.00 zł"}},{"$f":"INDEX(Biuro_plan[],MATCH(INDEX(Biuro_odchylenia[],ROW()-ROW(Biuro_odchylenia[[#Headers],[Sie]]),1),INDEX(Biuro_plan[],,1),0),MATCH(Biuro_odchylenia[[#Headers],[Sie]],Biuro_plan[#Headers],0))-INDEX(Biuro_rzeczywiste[],MATCH(INDEX(Biuro_odchylenia[],ROW()-ROW(Biuro_odchylenia[[#Headers],[Sie]]),1),INDEX(Biuro_plan[],,1),0),MATCH(Biuro_odchylenia[[#Headers],[Sie]],Biuro_rzeczywiste[#Headers],0))","v":{"v":9800,"d":"9,800.00 zł"}},{"$f":"INDEX(Biuro_plan[],MATCH(INDEX(Biuro_odchylenia[],ROW()-ROW(Biuro_odchylenia[[#Headers],[Wrz]]),1),INDEX(Biuro_plan[],,1),0),MATCH(Biuro_odchylenia[[#Headers],[Wrz]],Biuro_plan[#Headers],0))-INDEX(Biuro_rzeczywiste[],MATCH(INDEX(Biuro_odchylenia[],ROW()-ROW(Biuro_odchylenia[[#Headers],[Wrz]]),1),INDEX(Biuro_plan[],,1),0),MATCH(Biuro_odchylenia[[#Headers],[Wrz]],Biuro_rzeczywiste[#Headers],0))","v":{"v":9800,"d":"9,800.00 zł"}},{"$f":"INDEX(Biuro_plan[],MATCH(INDEX(Biuro_odchylenia[],ROW()-ROW(Biuro_odchylenia[[#Headers],[Paź]]),1),INDEX(Biuro_plan[],,1),0),MATCH(Biuro_odchylenia[[#Headers],[Paź]],Biuro_plan[#Headers],0))-INDEX(Biuro_rzeczywiste[],MATCH(INDEX(Biuro_odchylenia[],ROW()-ROW(Biuro_odchylenia[[#Headers],[Paź]]),1),INDEX(Biuro_plan[],,1),0),MATCH(Biuro_odchylenia[[#Headers],[Paź]],Biuro_rzeczywiste[#Headers],0))","v":{"v":9800,"d":"9,800.00 zł"}},{"$f":"INDEX(Biuro_plan[],MATCH(INDEX(Biuro_odchylenia[],ROW()-ROW(Biuro_odchylenia[[#Headers],[Lis]]),1),INDEX(Biuro_plan[],,1),0),MATCH(Biuro_odchylenia[[#Headers],[Lis]],Biuro_plan[#Headers],0))-INDEX(Biuro_rzeczywiste[],MATCH(INDEX(Biuro_odchylenia[],ROW()-ROW(Biuro_odchylenia[[#Headers],[Lis]]),1),INDEX(Biuro_plan[],,1),0),MATCH(Biuro_odchylenia[[#Headers],[Lis]],Biuro_rzeczywiste[#Headers],0))","v":{"v":9800,"d":"9,800.00 zł"}},{"$f":"INDEX(Biuro_plan[],MATCH(INDEX(Biuro_odchylenia[],ROW()-ROW(Biuro_odchylenia[[#Headers],[Gru]]),1),INDEX(Biuro_plan[],,1),0),MATCH(Biuro_odchylenia[[#Headers],[Gru]],Biuro_plan[#Headers],0))-INDEX(Biuro_rzeczywiste[],MATCH(INDEX(Biuro_odchylenia[],ROW()-ROW(Biuro_odchylenia[[#Headers],[Gru]]),1),INDEX(Biuro_plan[],,1),0),MATCH(Biuro_odchylenia[[#Headers],[Gru]],Biuro_rzeczywiste[#Headers],0))","v":{"v":9800,"d":"9,800.00 zł"}},{"$f":"SUM(Biuro_odchylenia[[#This Row],[Sty]:[Gru]])","v":{"v":58800,"d":"58,800.00 zł"}}]
[null,"Paliwo",{"$f":"INDEX(Biuro_plan[],MATCH(INDEX(Biuro_odchylenia[],ROW()-ROW(Biuro_odchylenia[[#Headers],[Sty]]),1),INDEX(Biuro_plan[],,1),0),MATCH(Biuro_odchylenia[[#Headers],[Sty]],Biuro_plan[#Headers],0))-INDEX(Biuro_rzeczywiste[],MATCH(INDEX(Biuro_odchylenia[],ROW()-ROW(Biuro_odchylenia[[#Headers],[Sty]]),1),INDEX(Biuro_plan[],,1),0),MATCH(Biuro_odchylenia[[#Headers],[Sty]],Biuro_rzeczywiste[#Headers],0))","v":{"v":-4,"d":"-4.00 zł"}},{"$f":"INDEX(Biuro_plan[],MATCH(INDEX(Biuro_odchylenia[],ROW()-ROW(Biuro_odchylenia[[#Headers],[Lut]]),1),INDEX(Biuro_plan[],,1),0),MATCH(Biuro_odchylenia[[#Headers],[Lut]],Biuro_plan[#Headers],0))-INDEX(Biuro_rzeczywiste[],MATCH(INDEX(Biuro_odchylenia[],ROW()-ROW(Biuro_odchylenia[[#Headers],[Lut]]),1),INDEX(Biuro_plan[],,1),0),MATCH(Biuro_odchylenia[[#Headers],[Lut]],Biuro_rzeczywiste[#Headers],0))","v":{"v":-30,"d":"-30.00 zł"}},{"$f":"INDEX(Biuro_plan[],MATCH(INDEX(Biuro_odchylenia[],ROW()-ROW(Biuro_odchylenia[[#Headers],[Mar]]),1),INDEX(Biuro_plan[],,1),0),MATCH(Biuro_odchylenia[[#Headers],[Mar]],Biuro_plan[#Headers],0))-INDEX(Biuro_rzeczywiste[],MATCH(INDEX(Biuro_odchylenia[],ROW()-ROW(Biuro_odchylenia[[#Headers],[Mar]]),1),INDEX(Biuro_plan[],,1),0),MATCH(Biuro_odchylenia[[#Headers],[Mar]],Biuro_rzeczywiste[#Headers],0))","v":{"v":15,"d":"15.00 zł"}},{"$f":"INDEX(Biuro_plan[],MATCH(INDEX(Biuro_odchylenia[],ROW()-ROW(Biuro_odchylenia[[#Headers],[Kwi]]),1),INDEX(Biuro_plan[],,1),0),MATCH(Biuro_odchylenia[[#Headers],[Kwi]],Biuro_plan[#Headers],0))-INDEX(Biuro_rzeczywiste[],MATCH(INDEX(Biuro_odchylenia[],ROW()-ROW(Biuro_odchylenia[[#Headers],[Kwi]]),1),INDEX(Biuro_plan[],,1),0),MATCH(Biuro_odchylenia[[#Headers],[Kwi]],Biuro_rzeczywiste[#Headers],0))","v":{"v":-130,"d":"-130.00 zł"}},{"$f":"INDEX(Biuro_plan[],MATCH(INDEX(Biuro_odchylenia[],ROW()-ROW(Biuro_odchylenia[[#Headers],[Maj]]),1),INDEX(Biuro_plan[],,1),0),MATCH(Biuro_odchylenia[[#Headers],[Maj]],Biuro_plan[#Headers],0))-INDEX(Biuro_rzeczywiste[],MATCH(INDEX(Biuro_odchylenia[],ROW()-ROW(Biuro_odchylenia[[#Headers],[Maj]]),1),INDEX(Biuro_plan[],,1),0),MATCH(Biuro_odchylenia[[#Headers],[Maj]],Biuro_rzeczywiste[#Headers],0))","v":{"v":13,"d":"13.00 zł"}},{"$f":"INDEX(Biuro_plan[],MATCH(INDEX(Biuro_odchylenia[],ROW()-ROW(Biuro_odchylenia[[#Headers],[Cze]]),1),INDEX(Biuro_plan[],,1),0),MATCH(Biuro_odchylenia[[#Headers],[Cze]],Biuro_plan[#Headers],0))-INDEX(Biuro_rzeczywiste[],MATCH(INDEX(Biuro_odchylenia[],ROW()-ROW(Biuro_odchylenia[[#Headers],[Cze]]),1),INDEX(Biuro_plan[],,1),0),MATCH(Biuro_odchylenia[[#Headers],[Cze]],Biuro_rzeczywiste[#Headers],0))","v":{"v":12,"d":"12.00 zł"}},{"$f":"INDEX(Biuro_plan[],MATCH(INDEX(Biuro_odchylenia[],ROW()-ROW(Biuro_odchylenia[[#Headers],[Lip]]),1),INDEX(Biuro_plan[],,1),0),MATCH(Biuro_odchylenia[[#Headers],[Lip]],Biuro_plan[#Headers],0))-INDEX(Biuro_rzeczywiste[],MATCH(INDEX(Biuro_odchylenia[],ROW()-ROW(Biuro_odchylenia[[#Headers],[Lip]]),1),INDEX(Biuro_plan[],,1),0),MATCH(Biuro_odchylenia[[#Headers],[Lip]],Biuro_rzeczywiste[#Headers],0))","v":{"v":100,"d":"100.00 zł"}},{"$f":"INDEX(Biuro_plan[],MATCH(INDEX(Biuro_odchylenia[],ROW()-ROW(Biuro_odchylenia[[#Headers],[Sie]]),1),INDEX(Biuro_plan[],,1),0),MATCH(Biuro_odchylenia[[#Headers],[Sie]],Biuro_plan[#Headers],0))-INDEX(Biuro_rzeczywiste[],MATCH(INDEX(Biuro_odchylenia[],ROW()-ROW(Biuro_odchylenia[[#Headers],[Sie]]),1),INDEX(Biuro_plan[],,1),0),MATCH(Biuro_odchylenia[[#Headers],[Sie]],Biuro_rzeczywiste[#Headers],0))","v":{"v":100,"d":"100.00 zł"}},{"$f":"INDEX(Biuro_plan[],MATCH(INDEX(Biuro_odchylenia[],ROW()-ROW(Biuro_odchylenia[[#Headers],[Wrz]]),1),INDEX(Biuro_plan[],,1),0),MATCH(Biuro_odchylenia[[#Headers],[Wrz]],Biuro_plan[#Headers],0))-INDEX(Biuro_rzeczywiste[],MATCH(INDEX(Biuro_odchylenia[],ROW()-ROW(Biuro_odchylenia[[#Headers],[Wrz]]),1),INDEX(Biuro_plan[],,1),0),MATCH(Biuro_odchylenia[[#Headers],[Wrz]],Biuro_rzeczywiste[#Headers],0))","v":{"v":100,"d":"100.00 zł"}},{"$f":"INDEX(Biuro_plan[],MATCH(INDEX(Biuro_odchylenia[],ROW()-ROW(Biuro_odchylenia[[#Headers],[Paź]]),1),INDEX(Biuro_plan[],,1),0),MATCH(Biuro_odchylenia[[#Headers],[Paź]],Biuro_plan[#Headers],0))-INDEX(Biuro_rzeczywiste[],MATCH(INDEX(Biuro_odchylenia[],ROW()-ROW(Biuro_odchylenia[[#Headers],[Paź]]),1),INDEX(Biuro_plan[],,1),0),MATCH(Biuro_odchylenia[[#Headers],[Paź]],Biuro_rzeczywiste[#Headers],0))","v":{"v":100,"d":"100.00 zł"}},{"$f":"INDEX(Biuro_plan[],MATCH(INDEX(Biuro_odchylenia[],ROW()-ROW(Biuro_odchylenia[[#Headers],[Lis]]),1),INDEX(Biuro_plan[],,1),0),MATCH(Biuro_odchylenia[[#Headers],[Lis]],Biuro_plan[#Headers],0))-INDEX(Biuro_rzeczywiste[],MATCH(INDEX(Biuro_odchylenia[],ROW()-ROW(Biuro_odchylenia[[#Headers],[Lis]]),1),INDEX(Biuro_plan[],,1),0),MATCH(Biuro_odchylenia[[#Headers],[Lis]],Biuro_rzeczywiste[#Headers],0))","v":{"v":400,"d":"400.00 zł"}},{"$f":"INDEX(Biuro_plan[],MATCH(INDEX(Biuro_odchylenia[],ROW()-ROW(Biuro_odchylenia[[#Headers],[Gru]]),1),INDEX(Biuro_plan[],,1),0),MATCH(Biuro_odchylenia[[#Headers],[Gru]],Biuro_plan[#Headers],0))-INDEX(Biuro_rzeczywiste[],MATCH(INDEX(Biuro_odchylenia[],ROW()-ROW(Biuro_odchylenia[[#Headers],[Gru]]),1),INDEX(Biuro_plan[],,1),0),MATCH(Biuro_odchylenia[[#Headers],[Gru]],Biuro_rzeczywiste[#Headers],0))","v":{"v":400,"d":"400.00 zł"}},{"$f":"SUM(Biuro_odchylenia[[#This Row],[Sty]:[Gru]])","v":{"v":1076,"d":"1,076.00 zł"}}]
[null,"Prąd",{"$f":"INDEX(Biuro_plan[],MATCH(INDEX(Biuro_odchylenia[],ROW()-ROW(Biuro_odchylenia[[#Headers],[Sty]]),1),INDEX(Biuro_plan[],,1),0),MATCH(Biuro_odchylenia[[#Headers],[Sty]],Biuro_plan[#Headers],0))-INDEX(Biuro_rzeczywiste[],MATCH(INDEX(Biuro_odchylenia[],ROW()-ROW(Biuro_odchylenia[[#Headers],[Sty]]),1),INDEX(Biuro_plan[],,1),0),MATCH(Biuro_odchylenia[[#Headers],[Sty]],Biuro_rzeczywiste[#Headers],0))","v":{"v":12,"d":"12.00 zł"}},{"$f":"INDEX(Biuro_plan[],MATCH(INDEX(Biuro_odchylenia[],ROW()-ROW(Biuro_odchylenia[[#Headers],[Lut]]),1),INDEX(Biuro_plan[],,1),0),MATCH(Biuro_odchylenia[[#Headers],[Lut]],Biuro_plan[#Headers],0))-INDEX(Biuro_rzeczywiste[],MATCH(INDEX(Biuro_odchylenia[],ROW()-ROW(Biuro_odchylenia[[#Headers],[Lut]]),1),INDEX(Biuro_plan[],,1),0),MATCH(Biuro_odchylenia[[#Headers],[Lut]],Biuro_rzeczywiste[#Headers],0))","v":{"v":22,"d":"22.00 zł"}},{"$f":"INDEX(Biuro_plan[],MATCH(INDEX(Biuro_odchylenia[],ROW()-ROW(Biuro_odchylenia[[#Headers],[Mar]]),1),INDEX(Biuro_plan[],,1),0),MATCH(Biuro_odchylenia[[#Headers],[Mar]],Biuro_plan[#Headers],0))-INDEX(Biuro_rzeczywiste[],MATCH(INDEX(Biuro_odchylenia[],ROW()-ROW(Biuro_odchylenia[[#Headers],[Mar]]),1),INDEX(Biuro_plan[],,1),0),MATCH(Biuro_odchylenia[[#Headers],[Mar]],Biuro_rzeczywiste[#Headers],0))","v":{"v":32,"d":"32.00 zł"}},{"$f":"INDEX(Biuro_plan[],MATCH(INDEX(Biuro_odchylenia[],ROW()-ROW(Biuro_odchylenia[[#Headers],[Kwi]]),1),INDEX(Biuro_plan[],,1),0),MATCH(Biuro_odchylenia[[#Headers],[Kwi]],Biuro_plan[#Headers],0))-INDEX(Biuro_rzeczywiste[],MATCH(INDEX(Biuro_odchylenia[],ROW()-ROW(Biuro_odchylenia[[#Headers],[Kwi]]),1),INDEX(Biuro_plan[],,1),0),MATCH(Biuro_odchylenia[[#Headers],[Kwi]],Biuro_rzeczywiste[#Headers],0))","v":{"v":1,"d":"1.00 zł"}},{"$f":"INDEX(Biuro_plan[],MATCH(INDEX(Biuro_odchylenia[],ROW()-ROW(Biuro_odchylenia[[#Headers],[Maj]]),1),INDEX(Biuro_plan[],,1),0),MATCH(Biuro_odchylenia[[#Headers],[Maj]],Biuro_plan[#Headers],0))-INDEX(Biuro_rzeczywiste[],MATCH(INDEX(Biuro_odchylenia[],ROW()-ROW(Biuro_odchylenia[[#Headers],[Maj]]),1),INDEX(Biuro_plan[],,1),0),MATCH(Biuro_odchylenia[[#Headers],[Maj]],Biuro_rzeczywiste[#Headers],0))","v":{"v":-6,"d":"-6.00 zł"}},{"$f":"INDEX(Biuro_plan[],MATCH(INDEX(Biuro_odchylenia[],ROW()-ROW(Biuro_odchylenia[[#Headers],[Cze]]),1),INDEX(Biuro_plan[],,1),0),MATCH(Biuro_odchylenia[[#Headers],[Cze]],Biuro_plan[#Headers],0))-INDEX(Biuro_rzeczywiste[],MATCH(INDEX(Biuro_odchylenia[],ROW()-ROW(Biuro_odchylenia[[#Headers],[Cze]]),1),INDEX(Biuro_plan[],,1),0),MATCH(Biuro_odchylenia[[#Headers],[Cze]],Biuro_rzeczywiste[#Headers],0))","v":{"v":10,"d":"10.00 zł"}},{"$f":"INDEX(Biuro_plan[],MATCH(INDEX(Biuro_odchylenia[],ROW()-ROW(Biuro_odchylenia[[#Headers],[Lip]]),1),INDEX(Biuro_plan[],,1),0),MATCH(Biuro_odchylenia[[#Headers],[Lip]],Biuro_plan[#Headers],0))-INDEX(Biuro_rzeczywiste[],MATCH(INDEX(Biuro_odchylenia[],ROW()-ROW(Biuro_odchylenia[[#Headers],[Lip]]),1),INDEX(Biuro_plan[],,1),0),MATCH(Biuro_odchylenia[[#Headers],[Lip]],Biuro_rzeczywiste[#Headers],0))","v":{"v":300,"d":"300.00 zł"}},{"$f":"INDEX(Biuro_plan[],MATCH(INDEX(Biuro_odchylenia[],ROW()-ROW(Biuro_odchylenia[[#Headers],[Sie]]),1),INDEX(Biuro_plan[],,1),0),MATCH(Biuro_odchylenia[[#Headers],[Sie]],Biuro_plan[#Headers],0))-INDEX(Biuro_rzeczywiste[],MATCH(INDEX(Biuro_odchylenia[],ROW()-ROW(Biuro_odchylenia[[#Headers],[Sie]]),1),INDEX(Biuro_plan[],,1),0),MATCH(Biuro_odchylenia[[#Headers],[Sie]],Biuro_rzeczywiste[#Headers],0))","v":{"v":300,"d":"300.00 zł"}},{"$f":"INDEX(Biuro_plan[],MATCH(INDEX(Biuro_odchylenia[],ROW()-ROW(Biuro_odchylenia[[#Headers],[Wrz]]),1),INDEX(Biuro_plan[],,1),0),MATCH(Biuro_odchylenia[[#Headers],[Wrz]],Biuro_plan[#Headers],0))-INDEX(Biuro_rzeczywiste[],MATCH(INDEX(Biuro_odchylenia[],ROW()-ROW(Biuro_odchylenia[[#Headers],[Wrz]]),1),INDEX(Biuro_plan[],,1),0),MATCH(Biuro_odchylenia[[#Headers],[Wrz]],Biuro_rzeczywiste[#Headers],0))","v":{"v":300,"d":"300.00 zł"}},{"$f":"INDEX(Biuro_plan[],MATCH(INDEX(Biuro_odchylenia[],ROW()-ROW(Biuro_odchylenia[[#Headers],[Paź]]),1),INDEX(Biuro_plan[],,1),0),MATCH(Biuro_odchylenia[[#Headers],[Paź]],Biuro_plan[#Headers],0))-INDEX(Biuro_rzeczywiste[],MATCH(INDEX(Biuro_odchylenia[],ROW()-ROW(Biuro_odchylenia[[#Headers],[Paź]]),1),INDEX(Biuro_plan[],,1),0),MATCH(Biuro_odchylenia[[#Headers],[Paź]],Biuro_rzeczywiste[#Headers],0))","v":{"v":300,"d":"300.00 zł"}},{"$f":"INDEX(Biuro_plan[],MATCH(INDEX(Biuro_odchylenia[],ROW()-ROW(Biuro_odchylenia[[#Headers],[Lis]]),1),INDEX(Biuro_plan[],,1),0),MATCH(Biuro_odchylenia[[#Headers],[Lis]],Biuro_plan[#Headers],0))-INDEX(Biuro_rzeczywiste[],MATCH(INDEX(Biuro_odchylenia[],ROW()-ROW(Biuro_odchylenia[[#Headers],[Lis]]),1),INDEX(Biuro_plan[],,1),0),MATCH(Biuro_odchylenia[[#Headers],[Lis]],Biuro_rzeczywiste[#Headers],0))","v":{"v":300,"d":"300.00 zł"}},{"$f":"INDEX(Biuro_plan[],MATCH(INDEX(Biuro_odchylenia[],ROW()-ROW(Biuro_odchylenia[[#Headers],[Gru]]),1),INDEX(Biuro_plan[],,1),0),MATCH(Biuro_odchylenia[[#Headers],[Gru]],Biuro_plan[#Headers],0))-INDEX(Biuro_rzeczywiste[],MATCH(INDEX(Biuro_odchylenia[],ROW()-ROW(Biuro_odchylenia[[#Headers],[Gru]]),1),INDEX(Biuro_plan[],,1),0),MATCH(Biuro_odchylenia[[#Headers],[Gru]],Biuro_rzeczywiste[#Headers],0))","v":{"v":300,"d":"300.00 zł"}},{"$f":"SUM(Biuro_odchylenia[[#This Row],[Sty]:[Gru]])","v":{"v":1871,"d":"1,871.00 zł"}}]
[null,"Woda",{"$f":"INDEX(Biuro_plan[],MATCH(INDEX(Biuro_odchylenia[],ROW()-ROW(Biuro_odchylenia[[#Headers],[Sty]]),1),INDEX(Biuro_plan[],,1),0),MATCH(Biuro_odchylenia[[#Headers],[Sty]],Biuro_plan[#Headers],0))-INDEX(Biuro_rzeczywiste[],MATCH(INDEX(Biuro_odchylenia[],ROW()-ROW(Biuro_odchylenia[[#Headers],[Sty]]),1),INDEX(Biuro_plan[],,1),0),MATCH(Biuro_odchylenia[[#Headers],[Sty]],Biuro_rzeczywiste[#Headers],0))","v":{"v":5,"d":"5.00 zł"}},{"$f":"INDEX(Biuro_plan[],MATCH(INDEX(Biuro_odchylenia[],ROW()-ROW(Biuro_odchylenia[[#Headers],[Lut]]),1),INDEX(Biuro_plan[],,1),0),MATCH(Biuro_odchylenia[[#Headers],[Lut]],Biuro_plan[#Headers],0))-INDEX(Biuro_rzeczywiste[],MATCH(INDEX(Biuro_odchylenia[],ROW()-ROW(Biuro_odchylenia[[#Headers],[Lut]]),1),INDEX(Biuro_plan[],,1),0),MATCH(Biuro_odchylenia[[#Headers],[Lut]],Biuro_rzeczywiste[#Headers],0))","v":{"v":7,"d":"7.00 zł"}},{"$f":"INDEX(Biuro_plan[],MATCH(INDEX(Biuro_odchylenia[],ROW()-ROW(Biuro_odchylenia[[#Headers],[Mar]]),1),INDEX(Biuro_plan[],,1),0),MATCH(Biuro_odchylenia[[#Headers],[Mar]],Biuro_plan[#Headers],0))-INDEX(Biuro_rzeczywiste[],MATCH(INDEX(Biuro_odchylenia[],ROW()-ROW(Biuro_odchylenia[[#Headers],[Mar]]),1),INDEX(Biuro_plan[],,1),0),MATCH(Biuro_odchylenia[[#Headers],[Mar]],Biuro_rzeczywiste[#Headers],0))","v":{"v":6,"d":"6.00 zł"}},{"$f":"INDEX(Biuro_plan[],MATCH(INDEX(Biuro_odchylenia[],ROW()-ROW(Biuro_odchylenia[[#Headers],[Kwi]]),1),INDEX(Biuro_plan[],,1),0),MATCH(Biuro_odchylenia[[#Headers],[Kwi]],Biuro_plan[#Headers],0))-INDEX(Biuro_rzeczywiste[],MATCH(INDEX(Biuro_odchylenia[],ROW()-ROW(Biuro_odchylenia[[#Headers],[Kwi]]),1),INDEX(Biuro_plan[],,1),0),MATCH(Biuro_odchylenia[[#Headers],[Kwi]],Biuro_rzeczywiste[#Headers],0))","v":{"v":4,"d":"4.00 zł"}},{"$f":"INDEX(Biuro_plan[],MATCH(INDEX(Biuro_odchylenia[],ROW()-ROW(Biuro_odchylenia[[#Headers],[Maj]]),1),INDEX(Biuro_plan[],,1),0),MATCH(Biuro_odchylenia[[#Headers],[Maj]],Biuro_plan[#Headers],0))-INDEX(Biuro_rzeczywiste[],MATCH(INDEX(Biuro_odchylenia[],ROW()-ROW(Biuro_odchylenia[[#Headers],[Maj]]),1),INDEX(Biuro_plan[],,1),0),MATCH(Biuro_odchylenia[[#Headers],[Maj]],Biuro_rzeczywiste[#Headers],0))","v":{"v":6,"d":"6.00 zł"}},{"$f":"INDEX(Biuro_plan[],MATCH(INDEX(Biuro_odchylenia[],ROW()-ROW(Biuro_odchylenia[[#Headers],[Cze]]),1),INDEX(Biuro_plan[],,1),0),MATCH(Biuro_odchylenia[[#Headers],[Cze]],Biuro_plan[#Headers],0))-INDEX(Biuro_rzeczywiste[],MATCH(INDEX(Biuro_odchylenia[],ROW()-ROW(Biuro_odchylenia[[#Headers],[Cze]]),1),INDEX(Biuro_plan[],,1),0),MATCH(Biuro_odchylenia[[#Headers],[Cze]],Biuro_rzeczywiste[#Headers],0))","v":{"v":4,"d":"4.00 zł"}},{"$f":"INDEX(Biuro_plan[],MATCH(INDEX(Biuro_odchylenia[],ROW()-ROW(Biuro_odchylenia[[#Headers],[Lip]]),1),INDEX(Biuro_plan[],,1),0),MATCH(Biuro_odchylenia[[#Headers],[Lip]],Biuro_plan[#Headers],0))-INDEX(Biuro_rzeczywiste[],MATCH(INDEX(Biuro_odchylenia[],ROW()-ROW(Biuro_odchylenia[[#Headers],[Lip]]),1),INDEX(Biuro_plan[],,1),0),MATCH(Biuro_odchylenia[[#Headers],[Lip]],Biuro_rzeczywiste[#Headers],0))","v":{"v":40,"d":"40.00 zł"}},{"$f":"INDEX(Biuro_plan[],MATCH(INDEX(Biuro_odchylenia[],ROW()-ROW(Biuro_odchylenia[[#Headers],[Sie]]),1),INDEX(Biuro_plan[],,1),0),MATCH(Biuro_odchylenia[[#Headers],[Sie]],Biuro_plan[#Headers],0))-INDEX(Biuro_rzeczywiste[],MATCH(INDEX(Biuro_odchylenia[],ROW()-ROW(Biuro_odchylenia[[#Headers],[Sie]]),1),INDEX(Biuro_plan[],,1),0),MATCH(Biuro_odchylenia[[#Headers],[Sie]],Biuro_rzeczywiste[#Headers],0))","v":{"v":40,"d":"40.00 zł"}},{"$f":"INDEX(Biuro_plan[],MATCH(INDEX(Biuro_odchylenia[],ROW()-ROW(Biuro_odchylenia[[#Headers],[Wrz]]),1),INDEX(Biuro_plan[],,1),0),MATCH(Biuro_odchylenia[[#Headers],[Wrz]],Biuro_plan[#Headers],0))-INDEX(Biuro_rzeczywiste[],MATCH(INDEX(Biuro_odchylenia[],ROW()-ROW(Biuro_odchylenia[[#Headers],[Wrz]]),1),INDEX(Biuro_plan[],,1),0),MATCH(Biuro_odchylenia[[#Headers],[Wrz]],Biuro_rzeczywiste[#Headers],0))","v":{"v":40,"d":"40.00 zł"}},{"$f":"INDEX(Biuro_plan[],MATCH(INDEX(Biuro_odchylenia[],ROW()-ROW(Biuro_odchylenia[[#Headers],[Paź]]),1),INDEX(Biuro_plan[],,1),0),MATCH(Biuro_odchylenia[[#Headers],[Paź]],Biuro_plan[#Headers],0))-INDEX(Biuro_rzeczywiste[],MATCH(INDEX(Biuro_odchylenia[],ROW()-ROW(Biuro_odchylenia[[#Headers],[Paź]]),1),INDEX(Biuro_plan[],,1),0),MATCH(Biuro_odchylenia[[#Headers],[Paź]],Biuro_rzeczywiste[#Headers],0))","v":{"v":40,"d":"40.00 zł"}},{"$f":"INDEX(Biuro_plan[],MATCH(INDEX(Biuro_odchylenia[],ROW()-ROW(Biuro_odchylenia[[#Headers],[Lis]]),1),INDEX(Biuro_plan[],,1),0),MATCH(Biuro_odchylenia[[#Headers],[Lis]],Biuro_plan[#Headers],0))-INDEX(Biuro_rzeczywiste[],MATCH(INDEX(Biuro_odchylenia[],ROW()-ROW(Biuro_odchylenia[[#Headers],[Lis]]),1),INDEX(Biuro_plan[],,1),0),MATCH(Biuro_odchylenia[[#Headers],[Lis]],Biuro_rzeczywiste[#Headers],0))","v":{"v":40,"d":"40.00 zł"}},{"$f":"INDEX(Biuro_plan[],MATCH(INDEX(Biuro_odchylenia[],ROW()-ROW(Biuro_odchylenia[[#Headers],[Gru]]),1),INDEX(Biuro_plan[],,1),0),MATCH(Biuro_odchylenia[[#Headers],[Gru]],Biuro_plan[#Headers],0))-INDEX(Biuro_rzeczywiste[],MATCH(INDEX(Biuro_odchylenia[],ROW()-ROW(Biuro_odchylenia[[#Headers],[Gru]]),1),INDEX(Biuro_plan[],,1),0),MATCH(Biuro_odchylenia[[#Headers],[Gru]],Biuro_rzeczywiste[#Headers],0))","v":{"v":40,"d":"40.00 zł"}},{"$f":"SUM(Biuro_odchylenia[[#This Row],[Sty]:[Gru]])","v":{"v":272,"d":"272.00 zł"}}]
[null,"Telefon",{"$f":"INDEX(Biuro_plan[],MATCH(INDEX(Biuro_odchylenia[],ROW()-ROW(Biuro_odchylenia[[#Headers],[Sty]]),1),INDEX(Biuro_plan[],,1),0),MATCH(Biuro_odchylenia[[#Headers],[Sty]],Biuro_plan[#Headers],0))-INDEX(Biuro_rzeczywiste[],MATCH(INDEX(Biuro_odchylenia[],ROW()-ROW(Biuro_odchylenia[[#Headers],[Sty]]),1),INDEX(Biuro_plan[],,1),0),MATCH(Biuro_odchylenia[[#Headers],[Sty]],Biuro_rzeczywiste[#Headers],0))","v":{"v":26,"d":"26.00 zł"}},{"$f":"INDEX(Biuro_plan[],MATCH(INDEX(Biuro_odchylenia[],ROW()-ROW(Biuro_odchylenia[[#Headers],[Lut]]),1),INDEX(Biuro_plan[],,1),0),MATCH(Biuro_odchylenia[[#Headers],[Lut]],Biuro_plan[#Headers],0))-INDEX(Biuro_rzeczywiste[],MATCH(INDEX(Biuro_odchylenia[],ROW()-ROW(Biuro_odchylenia[[#Headers],[Lut]]),1),INDEX(Biuro_plan[],,1),0),MATCH(Biuro_odchylenia[[#Headers],[Lut]],Biuro_rzeczywiste[#Headers],0))","v":{"v":15,"d":"15.00 zł"}},{"$f":"INDEX(Biuro_plan[],MATCH(INDEX(Biuro_odchylenia[],ROW()-ROW(Biuro_odchylenia[[#Headers],[Mar]]),1),INDEX(Biuro_plan[],,1),0),MATCH(Biuro_odchylenia[[#Headers],[Mar]],Biuro_plan[#Headers],0))-INDEX(Biuro_rzeczywiste[],MATCH(INDEX(Biuro_odchylenia[],ROW()-ROW(Biuro_odchylenia[[#Headers],[Mar]]),1),INDEX(Biuro_plan[],,1),0),MATCH(Biuro_odchylenia[[#Headers],[Mar]],Biuro_rzeczywiste[#Headers],0))","v":{"v":-15,"d":"-15.00 zł"}},{"$f":"INDEX(Biuro_plan[],MATCH(INDEX(Biuro_odchylenia[],ROW()-ROW(Biuro_odchylenia[[#Headers],[Kwi]]),1),INDEX(Biuro_plan[],,1),0),MATCH(Biuro_odchylenia[[#Headers],[Kwi]],Biuro_plan[#Headers],0))-INDEX(Biuro_rzeczywiste[],MATCH(INDEX(Biuro_odchylenia[],ROW()-ROW(Biuro_odchylenia[[#Headers],[Kwi]]),1),INDEX(Biuro_plan[],,1),0),MATCH(Biuro_odchylenia[[#Headers],[Kwi]],Biuro_rzeczywiste[#Headers],0))","v":{"v":5,"d":"5.00 zł"}},{"$f":"INDEX(Biuro_plan[],MATCH(INDEX(Biuro_odchylenia[],ROW()-ROW(Biuro_odchylenia[[#Headers],[Maj]]),1),INDEX(Biuro_plan[],,1),0),MATCH(Biuro_odchylenia[[#Headers],[Maj]],Biuro_plan[#Headers],0))-INDEX(Biuro_rzeczywiste[],MATCH(INDEX(Biuro_odchylenia[],ROW()-ROW(Biuro_odchylenia[[#Headers],[Maj]]),1),INDEX(Biuro_plan[],,1),0),MATCH(Biuro_odchylenia[[#Headers],[Maj]],Biuro_rzeczywiste[#Headers],0))","v":{"v":5,"d":"5.00 zł"}},{"$f":"INDEX(Biuro_plan[],MATCH(INDEX(Biuro_odchylenia[],ROW()-ROW(Biuro_odchylenia[[#Headers],[Cze]]),1),INDEX(Biuro_plan[],,1),0),MATCH(Biuro_odchylenia[[#Headers],[Cze]],Biuro_plan[#Headers],0))-INDEX(Biuro_rzeczywiste[],MATCH(INDEX(Biuro_odchylenia[],ROW()-ROW(Biuro_odchylenia[[#Headers],[Cze]]),1),INDEX(Biuro_plan[],,1),0),MATCH(Biuro_odchylenia[[#Headers],[Cze]],Biuro_rzeczywiste[#Headers],0))","v":{"v":30,"d":"30.00 zł"}},{"$f":"INDEX(Biuro_plan[],MATCH(INDEX(Biuro_odchylenia[],ROW()-ROW(Biuro_odchylenia[[#Headers],[Lip]]),1),INDEX(Biuro_plan[],,1),0),MATCH(Biuro_odchylenia[[#Headers],[Lip]],Biuro_plan[#Headers],0))-INDEX(Biuro_rzeczywiste[],MATCH(INDEX(Biuro_odchylenia[],ROW()-ROW(Biuro_odchylenia[[#Headers],[Lip]]),1),INDEX(Biuro_plan[],,1),0),MATCH(Biuro_odchylenia[[#Headers],[Lip]],Biuro_rzeczywiste[#Headers],0))","v":{"v":250,"d":"250.00 zł"}},{"$f":"INDEX(Biuro_plan[],MATCH(INDEX(Biuro_odchylenia[],ROW()-ROW(Biuro_odchylenia[[#Headers],[Sie]]),1),INDEX(Biuro_plan[],,1),0),MATCH(Biuro_odchylenia[[#Headers],[Sie]],Biuro_plan[#Headers],0))-INDEX(Biuro_rzeczywiste[],MATCH(INDEX(Biuro_odchylenia[],ROW()-ROW(Biuro_odchylenia[[#Headers],[Sie]]),1),INDEX(Biuro_plan[],,1),0),MATCH(Biuro_odchylenia[[#Headers],[Sie]],Biuro_rzeczywiste[#Headers],0))","v":{"v":250,"d":"250.00 zł"}},{"$f":"INDEX(Biuro_plan[],MATCH(INDEX(Biuro_odchylenia[],ROW()-ROW(Biuro_odchylenia[[#Headers],[Wrz]]),1),INDEX(Biuro_plan[],,1),0),MATCH(Biuro_odchylenia[[#Headers],[Wrz]],Biuro_plan[#Headers],0))-INDEX(Biuro_rzeczywiste[],MATCH(INDEX(Biuro_odchylenia[],ROW()-ROW(Biuro_odchylenia[[#Headers],[Wrz]]),1),INDEX(Biuro_plan[],,1),0),MATCH(Biuro_odchylenia[[#Headers],[Wrz]],Biuro_rzeczywiste[#Headers],0))","v":{"v":250,"d":"250.00 zł"}},{"$f":"INDEX(Biuro_plan[],MATCH(INDEX(Biuro_odchylenia[],ROW()-ROW(Biuro_odchylenia[[#Headers],[Paź]]),1),INDEX(Biuro_plan[],,1),0),MATCH(Biuro_odchylenia[[#Headers],[Paź]],Biuro_plan[#Headers],0))-INDEX(Biuro_rzeczywiste[],MATCH(INDEX(Biuro_odchylenia[],ROW()-ROW(Biuro_odchylenia[[#Headers],[Paź]]),1),INDEX(Biuro_plan[],,1),0),MATCH(Biuro_odchylenia[[#Headers],[Paź]],Biuro_rzeczywiste[#Headers],0))","v":{"v":250,"d":"250.00 zł"}},{"$f":"INDEX(Biuro_plan[],MATCH(INDEX(Biuro_odchylenia[],ROW()-ROW(Biuro_odchylenia[[#Headers],[Lis]]),1),INDEX(Biuro_plan[],,1),0),MATCH(Biuro_odchylenia[[#Headers],[Lis]],Biuro_plan[#Headers],0))-INDEX(Biuro_rzeczywiste[],MATCH(INDEX(Biuro_odchylenia[],ROW()-ROW(Biuro_odchylenia[[#Headers],[Lis]]),1),INDEX(Biuro_plan[],,1),0),MATCH(Biuro_odchylenia[[#Headers],[Lis]],Biuro_rzeczywiste[#Headers],0))","v":{"v":250,"d":"250.00 zł"}},{"$f":"INDEX(Biuro_plan[],MATCH(INDEX(Biuro_odchylenia[],ROW()-ROW(Biuro_odchylenia[[#Headers],[Gru]]),1),INDEX(Biuro_plan[],,1),0),MATCH(Biuro_odchylenia[[#Headers],[Gru]],Biuro_plan[#Headers],0))-INDEX(Biuro_rzeczywiste[],MATCH(INDEX(Biuro_odchylenia[],ROW()-ROW(Biuro_odchylenia[[#Headers],[Gru]]),1),INDEX(Biuro_plan[],,1),0),MATCH(Biuro_odchylenia[[#Headers],[Gru]],Biuro_rzeczywiste[#Headers],0))","v":{"v":250,"d":"250.00 zł"}},{"$f":"SUM(Biuro_odchylenia[[#This Row],[Sty]:[Gru]])","v":{"v":1566,"d":"1,566.00 zł"}}]
[null,"Dostęp do Internetu",{"$f":"INDEX(Biuro_plan[],MATCH(INDEX(Biuro_odchylenia[],ROW()-ROW(Biuro_odchylenia[[#Headers],[Sty]]),1),INDEX(Biuro_plan[],,1),0),MATCH(Biuro_odchylenia[[#Headers],[Sty]],Biuro_plan[#Headers],0))-INDEX(Biuro_rzeczywiste[],MATCH(INDEX(Biuro_odchylenia[],ROW()-ROW(Biuro_odchylenia[[#Headers],[Sty]]),1),INDEX(Biuro_plan[],,1),0),MATCH(Biuro_odchylenia[[#Headers],[Sty]],Biuro_rzeczywiste[#Headers],0))","v":{"v":0,"d":"0.00 zł"}},{"$f":"INDEX(Biuro_plan[],MATCH(INDEX(Biuro_odchylenia[],ROW()-ROW(Biuro_odchylenia[[#Headers],[Lut]]),1),INDEX(Biuro_plan[],,1),0),MATCH(Biuro_odchylenia[[#Headers],[Lut]],Biuro_plan[#Headers],0))-INDEX(Biuro_rzeczywiste[],MATCH(INDEX(Biuro_odchylenia[],ROW()-ROW(Biuro_odchylenia[[#Headers],[Lut]]),1),INDEX(Biuro_plan[],,1),0),MATCH(Biuro_odchylenia[[#Headers],[Lut]],Biuro_rzeczywiste[#Headers],0))","v":{"v":0,"d":"0.00 zł"}},{"$f":"INDEX(Biuro_plan[],MATCH(INDEX(Biuro_odchylenia[],ROW()-ROW(Biuro_odchylenia[[#Headers],[Mar]]),1),INDEX(Biuro_plan[],,1),0),MATCH(Biuro_odchylenia[[#Headers],[Mar]],Biuro_plan[#Headers],0))-INDEX(Biuro_rzeczywiste[],MATCH(INDEX(Biuro_odchylenia[],ROW()-ROW(Biuro_odchylenia[[#Headers],[Mar]]),1),INDEX(Biuro_plan[],,1),0),MATCH(Biuro_odchylenia[[#Headers],[Mar]],Biuro_rzeczywiste[#Headers],0))","v":{"v":0,"d":"0.00 zł"}},{"$f":"INDEX(Biuro_plan[],MATCH(INDEX(Biuro_odchylenia[],ROW()-ROW(Biuro_odchylenia[[#Headers],[Kwi]]),1),INDEX(Biuro_plan[],,1),0),MATCH(Biuro_odchylenia[[#Headers],[Kwi]],Biuro_plan[#Headers],0))-INDEX(Biuro_rzeczywiste[],MATCH(INDEX(Biuro_odchylenia[],ROW()-ROW(Biuro_odchylenia[[#Headers],[Kwi]]),1),INDEX(Biuro_plan[],,1),0),MATCH(Biuro_odchylenia[[#Headers],[Kwi]],Biuro_rzeczywiste[#Headers],0))","v":{"v":0,"d":"0.00 zł"}},{"$f":"INDEX(Biuro_plan[],MATCH(INDEX(Biuro_odchylenia[],ROW()-ROW(Biuro_odchylenia[[#Headers],[Maj]]),1),INDEX(Biuro_plan[],,1),0),MATCH(Biuro_odchylenia[[#Headers],[Maj]],Biuro_plan[#Headers],0))-INDEX(Biuro_rzeczywiste[],MATCH(INDEX(Biuro_odchylenia[],ROW()-ROW(Biuro_odchylenia[[#Headers],[Maj]]),1),INDEX(Biuro_plan[],,1),0),MATCH(Biuro_odchylenia[[#Headers],[Maj]],Biuro_rzeczywiste[#Headers],0))","v":{"v":0,"d":"0.00 zł"}},{"$f":"INDEX(Biuro_plan[],MATCH(INDEX(Biuro_odchylenia[],ROW()-ROW(Biuro_odchylenia[[#Headers],[Cze]]),1),INDEX(Biuro_plan[],,1),0),MATCH(Biuro_odchylenia[[#Headers],[Cze]],Biuro_plan[#Headers],0))-INDEX(Biuro_rzeczywiste[],MATCH(INDEX(Biuro_odchylenia[],ROW()-ROW(Biuro_odchylenia[[#Headers],[Cze]]),1),INDEX(Biuro_plan[],,1),0),MATCH(Biuro_odchylenia[[#Headers],[Cze]],Biuro_rzeczywiste[#Headers],0))","v":{"v":0,"d":"0.00 zł"}},{"$f":"INDEX(Biuro_plan[],MATCH(INDEX(Biuro_odchylenia[],ROW()-ROW(Biuro_odchylenia[[#Headers],[Lip]]),1),INDEX(Biuro_plan[],,1),0),MATCH(Biuro_odchylenia[[#Headers],[Lip]],Biuro_plan[#Headers],0))-INDEX(Biuro_rzeczywiste[],MATCH(INDEX(Biuro_odchylenia[],ROW()-ROW(Biuro_odchylenia[[#Headers],[Lip]]),1),INDEX(Biuro_plan[],,1),0),MATCH(Biuro_odchylenia[[#Headers],[Lip]],Biuro_rzeczywiste[#Headers],0))","v":{"v":180,"d":"180.00 zł"}},{"$f":"INDEX(Biuro_plan[],MATCH(INDEX(Biuro_odchylenia[],ROW()-ROW(Biuro_odchylenia[[#Headers],[Sie]]),1),INDEX(Biuro_plan[],,1),0),MATCH(Biuro_odchylenia[[#Headers],[Sie]],Biuro_plan[#Headers],0))-INDEX(Biuro_rzeczywiste[],MATCH(INDEX(Biuro_odchylenia[],ROW()-ROW(Biuro_odchylenia[[#Headers],[Sie]]),1),INDEX(Biuro_plan[],,1),0),MATCH(Biuro_odchylenia[[#Headers],[Sie]],Biuro_rzeczywiste[#Headers],0))","v":{"v":180,"d":"180.00 zł"}},{"$f":"INDEX(Biuro_plan[],MATCH(INDEX(Biuro_odchylenia[],ROW()-ROW(Biuro_odchylenia[[#Headers],[Wrz]]),1),INDEX(Biuro_plan[],,1),0),MATCH(Biuro_odchylenia[[#Headers],[Wrz]],Biuro_plan[#Headers],0))-INDEX(Biuro_rzeczywiste[],MATCH(INDEX(Biuro_odchylenia[],ROW()-ROW(Biuro_odchylenia[[#Headers],[Wrz]]),1),INDEX(Biuro_plan[],,1),0),MATCH(Biuro_odchylenia[[#Headers],[Wrz]],Biuro_rzeczywiste[#Headers],0))","v":{"v":180,"d":"180.00 zł"}},{"$f":"INDEX(Biuro_plan[],MATCH(INDEX(Biuro_odchylenia[],ROW()-ROW(Biuro_odchylenia[[#Headers],[Paź]]),1),INDEX(Biuro_plan[],,1),0),MATCH(Biuro_odchylenia[[#Headers],[Paź]],Biuro_plan[#Headers],0))-INDEX(Biuro_rzeczywiste[],MATCH(INDEX(Biuro_odchylenia[],ROW()-ROW(Biuro_odchylenia[[#Headers],[Paź]]),1),INDEX(Biuro_plan[],,1),0),MATCH(Biuro_odchylenia[[#Headers],[Paź]],Biuro_rzeczywiste[#Headers],0))","v":{"v":180,"d":"180.00 zł"}},{"$f":"INDEX(Biuro_plan[],MATCH(INDEX(Biuro_odchylenia[],ROW()-ROW(Biuro_odchylenia[[#Headers],[Lis]]),1),INDEX(Biuro_plan[],,1),0),MATCH(Biuro_odchylenia[[#Headers],[Lis]],Biuro_plan[#Headers],0))-INDEX(Biuro_rzeczywiste[],MATCH(INDEX(Biuro_odchylenia[],ROW()-ROW(Biuro_odchylenia[[#Headers],[Lis]]),1),INDEX(Biuro_plan[],,1),0),MATCH(Biuro_odchylenia[[#Headers],[Lis]],Biuro_rzeczywiste[#Headers],0))","v":{"v":180,"d":"180.00 zł"}},{"$f":"INDEX(Biuro_plan[],MATCH(INDEX(Biuro_odchylenia[],ROW()-ROW(Biuro_odchylenia[[#Headers],[Gru]]),1),INDEX(Biuro_plan[],,1),0),MATCH(Biuro_odchylenia[[#Headers],[Gru]],Biuro_plan[#Headers],0))-INDEX(Biuro_rzeczywiste[],MATCH(INDEX(Biuro_odchylenia[],ROW()-ROW(Biuro_odchylenia[[#Headers],[Gru]]),1),INDEX(Biuro_plan[],,1),0),MATCH(Biuro_odchylenia[[#Headers],[Gru]],Biuro_rzeczywiste[#Headers],0))","v":{"v":180,"d":"180.00 zł"}},{"$f":"SUM(Biuro_odchylenia[[#This Row],[Sty]:[Gru]])","v":{"v":1080,"d":"1,080.00 zł"}}]
[null,"Materiały biurowe",{"$f":"INDEX(Biuro_plan[],MATCH(INDEX(Biuro_odchylenia[],ROW()-ROW(Biuro_odchylenia[[#Headers],[Sty]]),1),INDEX(Biuro_plan[],,1),0),MATCH(Biuro_odchylenia[[#Headers],[Sty]],Biuro_plan[#Headers],0))-INDEX(Biuro_rzeczywiste[],MATCH(INDEX(Biuro_odchylenia[],ROW()-ROW(Biuro_odchylenia[[#Headers],[Sty]]),1),INDEX(Biuro_plan[],,1),0),MATCH(Biuro_odchylenia[[#Headers],[Sty]],Biuro_rzeczywiste[#Headers],0))","v":{"v":-56,"d":"-56.00 zł"}},{"$f":"INDEX(Biuro_plan[],MATCH(INDEX(Biuro_odchylenia[],ROW()-ROW(Biuro_odchylenia[[#Headers],[Lut]]),1),INDEX(Biuro_plan[],,1),0),MATCH(Biuro_odchylenia[[#Headers],[Lut]],Biuro_plan[#Headers],0))-INDEX(Biuro_rzeczywiste[],MATCH(INDEX(Biuro_odchylenia[],ROW()-ROW(Biuro_odchylenia[[#Headers],[Lut]]),1),INDEX(Biuro_plan[],,1),0),MATCH(Biuro_odchylenia[[#Headers],[Lut]],Biuro_rzeczywiste[#Headers],0))","v":{"v":58,"d":"58.00 zł"}},{"$f":"INDEX(Biuro_plan[],MATCH(INDEX(Biuro_odchylenia[],ROW()-ROW(Biuro_odchylenia[[#Headers],[Mar]]),1),INDEX(Biuro_plan[],,1),0),MATCH(Biuro_odchylenia[[#Headers],[Mar]],Biuro_plan[#Headers],0))-INDEX(Biuro_rzeczywiste[],MATCH(INDEX(Biuro_odchylenia[],ROW()-ROW(Biuro_odchylenia[[#Headers],[Mar]]),1),INDEX(Biuro_plan[],,1),0),MATCH(Biuro_odchylenia[[#Headers],[Mar]],Biuro_rzeczywiste[#Headers],0))","v":{"v":40,"d":"40.00 zł"}},{"$f":"INDEX(Biuro_plan[],MATCH(INDEX(Biuro_odchylenia[],ROW()-ROW(Biuro_odchylenia[[#Headers],[Kwi]]),1),INDEX(Biuro_plan[],,1),0),MATCH(Biuro_odchylenia[[#Headers],[Kwi]],Biuro_plan[#Headers],0))-INDEX(Biuro_rzeczywiste[],MATCH(INDEX(Biuro_odchylenia[],ROW()-ROW(Biuro_odchylenia[[#Headers],[Kwi]]),1),INDEX(Biuro_plan[],,1),0),MATCH(Biuro_odchylenia[[#Headers],[Kwi]],Biuro_rzeczywiste[#Headers],0))","v":{"v":-21,"d":"-21.00 zł"}},{"$f":"INDEX(Biuro_plan[],MATCH(INDEX(Biuro_odchylenia[],ROW()-ROW(Biuro_odchylenia[[#Headers],[Maj]]),1),INDEX(Biuro_plan[],,1),0),MATCH(Biuro_odchylenia[[#Headers],[Maj]],Biuro_plan[#Headers],0))-INDEX(Biuro_rzeczywiste[],MATCH(INDEX(Biuro_odchylenia[],ROW()-ROW(Biuro_odchylenia[[#Headers],[Maj]]),1),INDEX(Biuro_plan[],,1),0),MATCH(Biuro_odchylenia[[#Headers],[Maj]],Biuro_rzeczywiste[#Headers],0))","v":{"v":-56,"d":"-56.00 zł"}},{"$f":"INDEX(Biuro_plan[],MATCH(INDEX(Biuro_odchylenia[],ROW()-ROW(Biuro_odchylenia[[#Headers],[Cze]]),1),INDEX(Biuro_plan[],,1),0),MATCH(Biuro_odchylenia[[#Headers],[Cze]],Biuro_plan[#Headers],0))-INDEX(Biuro_rzeczywiste[],MATCH(INDEX(Biuro_odchylenia[],ROW()-ROW(Biuro_odchylenia[[#Headers],[Cze]]),1),INDEX(Biuro_plan[],,1),0),MATCH(Biuro_odchylenia[[#Headers],[Cze]],Biuro_rzeczywiste[#Headers],0))","v":{"v":-40,"d":"-40.00 zł"}},{"$f":"INDEX(Biuro_plan[],MATCH(INDEX(Biuro_odchylenia[],ROW()-ROW(Biuro_odchylenia[[#Headers],[Lip]]),1),INDEX(Biuro_plan[],,1),0),MATCH(Biuro_odchylenia[[#Headers],[Lip]],Biuro_plan[#Headers],0))-INDEX(Biuro_rzeczywiste[],MATCH(INDEX(Biuro_odchylenia[],ROW()-ROW(Biuro_odchylenia[[#Headers],[Lip]]),1),INDEX(Biuro_plan[],,1),0),MATCH(Biuro_odchylenia[[#Headers],[Lip]],Biuro_rzeczywiste[#Headers],0))","v":{"v":200,"d":"200.00 zł"}},{"$f":"INDEX(Biuro_plan[],MATCH(INDEX(Biuro_odchylenia[],ROW()-ROW(Biuro_odchylenia[[#Headers],[Sie]]),1),INDEX(Biuro_plan[],,1),0),MATCH(Biuro_odchylenia[[#Headers],[Sie]],Biuro_plan[#Headers],0))-INDEX(Biuro_rzeczywiste[],MATCH(INDEX(Biuro_odchylenia[],ROW()-ROW(Biuro_odchylenia[[#Headers],[Sie]]),1),INDEX(Biuro_plan[],,1),0),MATCH(Biuro_odchylenia[[#Headers],[Sie]],Biuro_rzeczywiste[#Headers],0))","v":{"v":200,"d":"200.00 zł"}},{"$f":"INDEX(Biuro_plan[],MATCH(INDEX(Biuro_odchylenia[],ROW()-ROW(Biuro_odchylenia[[#Headers],[Wrz]]),1),INDEX(Biuro_plan[],,1),0),MATCH(Biuro_odchylenia[[#Headers],[Wrz]],Biuro_plan[#Headers],0))-INDEX(Biuro_rzeczywiste[],MATCH(INDEX(Biuro_odchylenia[],ROW()-ROW(Biuro_odchylenia[[#Headers],[Wrz]]),1),INDEX(Biuro_plan[],,1),0),MATCH(Biuro_odchylenia[[#Headers],[Wrz]],Biuro_rzeczywiste[#Headers],0))","v":{"v":200,"d":"200.00 zł"}},{"$f":"INDEX(Biuro_plan[],MATCH(INDEX(Biuro_odchylenia[],ROW()-ROW(Biuro_odchylenia[[#Headers],[Paź]]),1),INDEX(Biuro_plan[],,1),0),MATCH(Biuro_odchylenia[[#Headers],[Paź]],Biuro_plan[#Headers],0))-INDEX(Biuro_rzeczywiste[],MATCH(INDEX(Biuro_odchylenia[],ROW()-ROW(Biuro_odchylenia[[#Headers],[Paź]]),1),INDEX(Biuro_plan[],,1),0),MATCH(Biuro_odchylenia[[#Headers],[Paź]],Biuro_rzeczywiste[#Headers],0))","v":{"v":200,"d":"200.00 zł"}},{"$f":"INDEX(Biuro_plan[],MATCH(INDEX(Biuro_odchylenia[],ROW()-ROW(Biuro_odchylenia[[#Headers],[Lis]]),1),INDEX(Biuro_plan[],,1),0),MATCH(Biuro_odchylenia[[#Headers],[Lis]],Biuro_plan[#Headers],0))-INDEX(Biuro_rzeczywiste[],MATCH(INDEX(Biuro_odchylenia[],ROW()-ROW(Biuro_odchylenia[[#Headers],[Lis]]),1),INDEX(Biuro_plan[],,1),0),MATCH(Biuro_odchylenia[[#Headers],[Lis]],Biuro_rzeczywiste[#Headers],0))","v":{"v":200,"d":"200.00 zł"}},{"$f":"INDEX(Biuro_plan[],MATCH(INDEX(Biuro_odchylenia[],ROW()-ROW(Biuro_odchylenia[[#Headers],[Gru]]),1),INDEX(Biuro_plan[],,1),0),MATCH(Biuro_odchylenia[[#Headers],[Gru]],Biuro_plan[#Headers],0))-INDEX(Biuro_rzeczywiste[],MATCH(INDEX(Biuro_odchylenia[],ROW()-ROW(Biuro_odchylenia[[#Headers],[Gru]]),1),INDEX(Biuro_plan[],,1),0),MATCH(Biuro_odchylenia[[#Headers],[Gru]],Biuro_rzeczywiste[#Headers],0))","v":{"v":200,"d":"200.00 zł"}},{"$f":"SUM(Biuro_odchylenia[[#This Row],[Sty]:[Gru]])","v":{"v":1125,"d":"1,125.00 zł"}}]
[null,"Zabezpieczenia",{"$f":"INDEX(Biuro_plan[],MATCH(INDEX(Biuro_odchylenia[],ROW()-ROW(Biuro_odchylenia[[#Headers],[Sty]]),1),INDEX(Biuro_plan[],,1),0),MATCH(Biuro_odchylenia[[#Headers],[Sty]],Biuro_plan[#Headers],0))-INDEX(Biuro_rzeczywiste[],MATCH(INDEX(Biuro_odchylenia[],ROW()-ROW(Biuro_odchylenia[[#Headers],[Sty]]),1),INDEX(Biuro_plan[],,1),0),MATCH(Biuro_odchylenia[[#Headers],[Sty]],Biuro_rzeczywiste[#Headers],0))","v":{"v":0,"d":"0.00 zł"}},{"$f":"INDEX(Biuro_plan[],MATCH(INDEX(Biuro_odchylenia[],ROW()-ROW(Biuro_odchylenia[[#Headers],[Lut]]),1),INDEX(Biuro_plan[],,1),0),MATCH(Biuro_odchylenia[[#Headers],[Lut]],Biuro_plan[#Headers],0))-INDEX(Biuro_rzeczywiste[],MATCH(INDEX(Biuro_odchylenia[],ROW()-ROW(Biuro_odchylenia[[#Headers],[Lut]]),1),INDEX(Biuro_plan[],,1),0),MATCH(Biuro_odchylenia[[#Headers],[Lut]],Biuro_rzeczywiste[#Headers],0))","v":{"v":0,"d":"0.00 zł"}},{"$f":"INDEX(Biuro_plan[],MATCH(INDEX(Biuro_odchylenia[],ROW()-ROW(Biuro_odchylenia[[#Headers],[Mar]]),1),INDEX(Biuro_plan[],,1),0),MATCH(Biuro_odchylenia[[#Headers],[Mar]],Biuro_plan[#Headers],0))-INDEX(Biuro_rzeczywiste[],MATCH(INDEX(Biuro_odchylenia[],ROW()-ROW(Biuro_odchylenia[[#Headers],[Mar]]),1),INDEX(Biuro_plan[],,1),0),MATCH(Biuro_odchylenia[[#Headers],[Mar]],Biuro_rzeczywiste[#Headers],0))","v":{"v":0,"d":"0.00 zł"}},{"$f":"INDEX(Biuro_plan[],MATCH(INDEX(Biuro_odchylenia[],ROW()-ROW(Biuro_odchylenia[[#Headers],[Kwi]]),1),INDEX(Biuro_plan[],,1),0),MATCH(Biuro_odchylenia[[#Headers],[Kwi]],Biuro_plan[#Headers],0))-INDEX(Biuro_rzeczywiste[],MATCH(INDEX(Biuro_odchylenia[],ROW()-ROW(Biuro_odchylenia[[#Headers],[Kwi]]),1),INDEX(Biuro_plan[],,1),0),MATCH(Biuro_odchylenia[[#Headers],[Kwi]],Biuro_rzeczywiste[#Headers],0))","v":{"v":0,"d":"0.00 zł"}},{"$f":"INDEX(Biuro_plan[],MATCH(INDEX(Biuro_odchylenia[],ROW()-ROW(Biuro_odchylenia[[#Headers],[Maj]]),1),INDEX(Biuro_plan[],,1),0),MATCH(Biuro_odchylenia[[#Headers],[Maj]],Biuro_plan[#Headers],0))-INDEX(Biuro_rzeczywiste[],MATCH(INDEX(Biuro_odchylenia[],ROW()-ROW(Biuro_odchylenia[[#Headers],[Maj]]),1),INDEX(Biuro_plan[],,1),0),MATCH(Biuro_odchylenia[[#Headers],[Maj]],Biuro_rzeczywiste[#Headers],0))","v":{"v":0,"d":"0.00 zł"}},{"$f":"INDEX(Biuro_plan[],MATCH(INDEX(Biuro_odchylenia[],ROW()-ROW(Biuro_odchylenia[[#Headers],[Cze]]),1),INDEX(Biuro_plan[],,1),0),MATCH(Biuro_odchylenia[[#Headers],[Cze]],Biuro_plan[#Headers],0))-INDEX(Biuro_rzeczywiste[],MATCH(INDEX(Biuro_odchylenia[],ROW()-ROW(Biuro_odchylenia[[#Headers],[Cze]]),1),INDEX(Biuro_plan[],,1),0),MATCH(Biuro_odchylenia[[#Headers],[Cze]],Biuro_rzeczywiste[#Headers],0))","v":{"v":0,"d":"0.00 zł"}},{"$f":"INDEX(Biuro_plan[],MATCH(INDEX(Biuro_odchylenia[],ROW()-ROW(Biuro_odchylenia[[#Headers],[Lip]]),1),INDEX(Biuro_plan[],,1),0),MATCH(Biuro_odchylenia[[#Headers],[Lip]],Biuro_plan[#Headers],0))-INDEX(Biuro_rzeczywiste[],MATCH(INDEX(Biuro_odchylenia[],ROW()-ROW(Biuro_odchylenia[[#Headers],[Lip]]),1),INDEX(Biuro_plan[],,1),0),MATCH(Biuro_odchylenia[[#Headers],[Lip]],Biuro_rzeczywiste[#Headers],0))","v":{"v":600,"d":"600.00 zł"}},{"$f":"INDEX(Biuro_plan[],MATCH(INDEX(Biuro_odchylenia[],ROW()-ROW(Biuro_odchylenia[[#Headers],[Sie]]),1),INDEX(Biuro_plan[],,1),0),MATCH(Biuro_odchylenia[[#Headers],[Sie]],Biuro_plan[#Headers],0))-INDEX(Biuro_rzeczywiste[],MATCH(INDEX(Biuro_odchylenia[],ROW()-ROW(Biuro_odchylenia[[#Headers],[Sie]]),1),INDEX(Biuro_plan[],,1),0),MATCH(Biuro_odchylenia[[#Headers],[Sie]],Biuro_rzeczywiste[#Headers],0))","v":{"v":600,"d":"600.00 zł"}},{"$f":"INDEX(Biuro_plan[],MATCH(INDEX(Biuro_odchylenia[],ROW()-ROW(Biuro_odchylenia[[#Headers],[Wrz]]),1),INDEX(Biuro_plan[],,1),0),MATCH(Biuro_odchylenia[[#Headers],[Wrz]],Biuro_plan[#Headers],0))-INDEX(Biuro_rzeczywiste[],MATCH(INDEX(Biuro_odchylenia[],ROW()-ROW(Biuro_odchylenia[[#Headers],[Wrz]]),1),INDEX(Biuro_plan[],,1),0),MATCH(Biuro_odchylenia[[#Headers],[Wrz]],Biuro_rzeczywiste[#Headers],0))","v":{"v":600,"d":"600.00 zł"}},{"$f":"INDEX(Biuro_plan[],MATCH(INDEX(Biuro_odchylenia[],ROW()-ROW(Biuro_odchylenia[[#Headers],[Paź]]),1),INDEX(Biuro_plan[],,1),0),MATCH(Biuro_odchylenia[[#Headers],[Paź]],Biuro_plan[#Headers],0))-INDEX(Biuro_rzeczywiste[],MATCH(INDEX(Biuro_odchylenia[],ROW()-ROW(Biuro_odchylenia[[#Headers],[Paź]]),1),INDEX(Biuro_plan[],,1),0),MATCH(Biuro_odchylenia[[#Headers],[Paź]],Biuro_rzeczywiste[#Headers],0))","v":{"v":600,"d":"600.00 zł"}},{"$f":"INDEX(Biuro_plan[],MATCH(INDEX(Biuro_odchylenia[],ROW()-ROW(Biuro_odchylenia[[#Headers],[Lis]]),1),INDEX(Biuro_plan[],,1),0),MATCH(Biuro_odchylenia[[#Headers],[Lis]],Biuro_plan[#Headers],0))-INDEX(Biuro_rzeczywiste[],MATCH(INDEX(Biuro_odchylenia[],ROW()-ROW(Biuro_odchylenia[[#Headers],[Lis]]),1),INDEX(Biuro_plan[],,1),0),MATCH(Biuro_odchylenia[[#Headers],[Lis]],Biuro_rzeczywiste[#Headers],0))","v":{"v":600,"d":"600.00 zł"}},{"$f":"INDEX(Biuro_plan[],MATCH(INDEX(Biuro_odchylenia[],ROW()-ROW(Biuro_odchylenia[[#Headers],[Gru]]),1),INDEX(Biuro_plan[],,1),0),MATCH(Biuro_odchylenia[[#Headers],[Gru]],Biuro_plan[#Headers],0))-INDEX(Biuro_rzeczywiste[],MATCH(INDEX(Biuro_odchylenia[],ROW()-ROW(Biuro_odchylenia[[#Headers],[Gru]]),1),INDEX(Biuro_plan[],,1),0),MATCH(Biuro_odchylenia[[#Headers],[Gru]],Biuro_rzeczywiste[#Headers],0))","v":{"v":600,"d":"600.00 zł"}},{"$f":"SUM(Biuro_odchylenia[[#This Row],[Sty]:[Gru]])","v":{"v":3600,"d":"3,600.00 zł"}}]
[null,"Suma częściowa",{"$f":"SUBTOTAL(109,Biuro_odchylenia[Sty])","v":{"v":-17,"d":"-17.00 zł"}},{"$f":"SUBTOTAL(109,Biuro_odchylenia[Lut])","v":{"v":72,"d":"72.00 zł"}},{"$f":"SUBTOTAL(109,Biuro_odchylenia[Mar])","v":{"v":78,"d":"78.00 zł"}},{"$f":"SUBTOTAL(109,Biuro_odchylenia[Kwi])","v":{"v":-141,"d":"-141.00 zł"}},{"$f":"SUBTOTAL(109,Biuro_odchylenia[Maj])","v":{"v":-38,"d":"-38.00 zł"}},{"$f":"SUBTOTAL(109,Biuro_odchylenia[Cze])","v":{"v":16,"d":"16.00 zł"}},{"$f":"SUBTOTAL(109,Biuro_odchylenia[Lip])","v":{"v":11470,"d":"11,470.00 zł"}},{"$f":"SUBTOTAL(109,Biuro_odchylenia[Sie])","v":{"v":11470,"d":"11,470.00 zł"}},{"$f":"SUBTOTAL(109,Biuro_odchylenia[Wrz])","v":{"v":11470,"d":"11,470.00 zł"}},{"$f":"SUBTOTAL(109,Biuro_odchylenia[Paź])","v":{"v":11470,"d":"11,470.00 zł"}},{"$f":"SUBTOTAL(109,Biuro_odchylenia[Lis])","v":{"v":11770,"d":"11,770.00 zł"}},{"$f":"SUBTOTAL(109,Biuro_odchylenia[Gru])","v":{"v":11770,"d":"11,770.00 zł"}},{"$f":"SUBTOTAL(109,Biuro_odchylenia[ROK])","v":{"v":69390,"d":"69,390.00 zł"}}]
[]
["W tabeli Marketing — odchylenia zaczynającej się w komórce po prawej stronie jest automatycznie obliczane odchylenie koszty marketingu. Dalsze instrukcje znajdują się w komórce A30.","Koszty marketingu","Sty","Lut","Mar","Kwi","Maj","Cze","Lip","Sie","Wrz","Paź","Lis","Gru","ROK"]
[null,"Hosting witryny internetowej",{"$f":"INDEX(Marketing_plan[],MATCH(INDEX(Marketing_odchylenia[],ROW()-ROW(Marketing_odchylenia[[#Headers],[Sty]]),1),INDEX(Marketing_plan[],,1),0),MATCH(Marketing_odchylenia[[#Headers],[Sty]],Marketing_plan[#Headers],0))-INDEX(Marketing_rzeczywiste[],MATCH(INDEX(Marketing_odchylenia[],ROW()-ROW(Marketing_odchylenia[[#Headers],[Sty]]),1),INDEX(Marketing_plan[],,1),0),MATCH(Marketing_odchylenia[[#Headers],[Sty]],Marketing_rzeczywiste[#Headers],0))","v":{"v":0,"d":"0.00 zł"}},{"$f":"INDEX(Marketing_plan[],MATCH(INDEX(Marketing_odchylenia[],ROW()-ROW(Marketing_odchylenia[[#Headers],[Lut]]),1),INDEX(Marketing_plan[],,1),0),MATCH(Marketing_odchylenia[[#Headers],[Lut]],Marketing_plan[#Headers],0))-INDEX(Marketing_rzeczywiste[],MATCH(INDEX(Marketing_odchylenia[],ROW()-ROW(Marketing_odchylenia[[#Headers],[Lut]]),1),INDEX(Marketing_plan[],,1),0),MATCH(Marketing_odchylenia[[#Headers],[Lut]],Marketing_rzeczywiste[#Headers],0))","v":{"v":0,"d":"0.00 zł"}},{"$f":"INDEX(Marketing_plan[],MATCH(INDEX(Marketing_odchylenia[],ROW()-ROW(Marketing_odchylenia[[#Headers],[Mar]]),1),INDEX(Marketing_plan[],,1),0),MATCH(Marketing_odchylenia[[#Headers],[Mar]],Marketing_plan[#Headers],0))-INDEX(Marketing_rzeczywiste[],MATCH(INDEX(Marketing_odchylenia[],ROW()-ROW(Marketing_odchylenia[[#Headers],[Mar]]),1),INDEX(Marketing_plan[],,1),0),MATCH(Marketing_odchylenia[[#Headers],[Mar]],Marketing_rzeczywiste[#Headers],0))","v":{"v":0,"d":"0.00 zł"}},{"$f":"INDEX(Marketing_plan[],MATCH(INDEX(Marketing_odchylenia[],ROW()-ROW(Marketing_odchylenia[[#Headers],[Kwi]]),1),INDEX(Marketing_plan[],,1),0),MATCH(Marketing_odchylenia[[#Headers],[Kwi]],Marketing_plan[#Headers],0))-INDEX(Marketing_rzeczywiste[],MATCH(INDEX(Marketing_odchylenia[],ROW()-ROW(Marketing_odchylenia[[#Headers],[Kwi]]),1),INDEX(Marketing_plan[],,1),0),MATCH(Marketing_odchylenia[[#Headers],[Kwi]],Marketing_rzeczywiste[#Headers],0))","v":{"v":0,"d":"0.00 zł"}},{"$f":"INDEX(Marketing_plan[],MATCH(INDEX(Marketing_odchylenia[],ROW()-ROW(Marketing_odchylenia[[#Headers],[Maj]]),1),INDEX(Marketing_plan[],,1),0),MATCH(Marketing_odchylenia[[#Headers],[Maj]],Marketing_plan[#Headers],0))-INDEX(Marketing_rzeczywiste[],MATCH(INDEX(Marketing_odchylenia[],ROW()-ROW(Marketing_odchylenia[[#Headers],[Maj]]),1),INDEX(Marketing_plan[],,1),0),MATCH(Marketing_odchylenia[[#Headers],[Maj]],Marketing_rzeczywiste[#Headers],0))","v":{"v":0,"d":"0.00 zł"}},{"$f":"INDEX(Marketing_plan[],MATCH(INDEX(Marketing_odchylenia[],ROW()-ROW(Marketing_odchylenia[[#Headers],[Cze]]),1),INDEX(Marketing_plan[],,1),0),MATCH(Marketing_odchylenia[[#Headers],[Cze]],Marketing_plan[#Headers],0))-INDEX(Marketing_rzeczywiste[],MATCH(INDEX(Marketing_odchylenia[],ROW()-ROW(Marketing_odchylenia[[#Headers],[Cze]]),1),INDEX(Marketing_plan[],,1),0),MATCH(Marketing_odchylenia[[#Headers],[Cze]],Marketing_rzeczywiste[#Headers],0))","v":{"v":0,"d":"0.00 zł"}},{"$f":"INDEX(Marketing_plan[],MATCH(INDEX(Marketing_odchylenia[],ROW()-ROW(Marketing_odchylenia[[#Headers],[Lip]]),1),INDEX(Marketing_plan[],,1),0),MATCH(Marketing_odchylenia[[#Headers],[Lip]],Marketing_plan[#Headers],0))-INDEX(Marketing_rzeczywiste[],MATCH(INDEX(Marketing_odchylenia[],ROW()-ROW(Marketing_odchylenia[[#Headers],[Lip]]),1),INDEX(Marketing_plan[],,1),0),MATCH(Marketing_odchylenia[[#Headers],[Lip]],Marketing_rzeczywiste[#Headers],0))","v":{"v":500,"d":"500.00 zł"}},{"$f":"INDEX(Marketing_plan[],MATCH(INDEX(Marketing_odchylenia[],ROW()-ROW(Marketing_odchylenia[[#Headers],[Sie]]),1),INDEX(Marketing_plan[],,1),0),MATCH(Marketing_odchylenia[[#Headers],[Sie]],Marketing_plan[#Headers],0))-INDEX(Marketing_rzeczywiste[],MATCH(INDEX(Marketing_odchylenia[],ROW()-ROW(Marketing_odchylenia[[#Headers],[Sie]]),1),INDEX(Marketing_plan[],,1),0),MATCH(Marketing_odchylenia[[#Headers],[Sie]],Marketing_rzeczywiste[#Headers],0))","v":{"v":500,"d":"500.00 zł"}},{"$f":"INDEX(Marketing_plan[],MATCH(INDEX(Marketing_odchylenia[],ROW()-ROW(Marketing_odchylenia[[#Headers],[Wrz]]),1),INDEX(Marketing_plan[],,1),0),MATCH(Marketing_odchylenia[[#Headers],[Wrz]],Marketing_plan[#Headers],0))-INDEX(Marketing_rzeczywiste[],MATCH(INDEX(Marketing_odchylenia[],ROW()-ROW(Marketing_odchylenia[[#Headers],[Wrz]]),1),INDEX(Marketing_plan[],,1),0),MATCH(Marketing_odchylenia[[#Headers],[Wrz]],Marketing_rzeczywiste[#Headers],0))","v":{"v":500,"d":"500.00 zł"}},{"$f":"INDEX(Marketing_plan[],MATCH(INDEX(Marketing_odchylenia[],ROW()-ROW(Marketing_odchylenia[[#Headers],[Paź]]),1),INDEX(Marketing_plan[],,1),0),MATCH(Marketing_odchylenia[[#Headers],[Paź]],Marketing_plan[#Headers],0))-INDEX(Marketing_rzeczywiste[],MATCH(INDEX(Marketing_odchylenia[],ROW()-ROW(Marketing_odchylenia[[#Headers],[Paź]]),1),INDEX(Marketing_plan[],,1),0),MATCH(Marketing_odchylenia[[#Headers],[Paź]],Marketing_rzeczywiste[#Headers],0))","v":{"v":500,"d":"500.00 zł"}},{"$f":"INDEX(Marketing_plan[],MATCH(INDEX(Marketing_odchylenia[],ROW()-ROW(Marketing_odchylenia[[#Headers],[Lis]]),1),INDEX(Marketing_plan[],,1),0),MATCH(Marketing_odchylenia[[#Headers],[Lis]],Marketing_plan[#Headers],0))-INDEX(Marketing_rzeczywiste[],MATCH(INDEX(Marketing_odchylenia[],ROW()-ROW(Marketing_odchylenia[[#Headers],[Lis]]),1),INDEX(Marketing_plan[],,1),0),MATCH(Marketing_odchylenia[[#Headers],[Lis]],Marketing_rzeczywiste[#Headers],0))","v":{"v":500,"d":"500.00 zł"}},{"$f":"INDEX(Marketing_plan[],MATCH(INDEX(Marketing_odchylenia[],ROW()-ROW(Marketing_odchylenia[[#Headers],[Gru]]),1),INDEX(Marketing_plan[],,1),0),MATCH(Marketing_odchylenia[[#Headers],[Gru]],Marketing_plan[#Headers],0))-INDEX(Marketing_rzeczywiste[],MATCH(INDEX(Marketing_odchylenia[],ROW()-ROW(Marketing_odchylenia[[#Headers],[Gru]]),1),INDEX(Marketing_plan[],,1),0),MATCH(Marketing_odchylenia[[#Headers],[Gru]],Marketing_rzeczywiste[#Headers],0))","v":{"v":500,"d":"500.00 zł"}},{"$f":"SUM(Marketing_odchylenia[[#This Row],[Sty]:[Gru]])","v":{"v":3000,"d":"3,000.00 zł"}}]
[null,"Aktualizacje witryny internetowej",{"$f":"INDEX(Marketing_plan[],MATCH(INDEX(Marketing_odchylenia[],ROW()-ROW(Marketing_odchylenia[[#Headers],[Sty]]),1),INDEX(Marketing_plan[],,1),0),MATCH(Marketing_odchylenia[[#Headers],[Sty]],Marketing_plan[#Headers],0))-INDEX(Marketing_rzeczywiste[],MATCH(INDEX(Marketing_odchylenia[],ROW()-ROW(Marketing_odchylenia[[#Headers],[Sty]]),1),INDEX(Marketing_plan[],,1),0),MATCH(Marketing_odchylenia[[#Headers],[Sty]],Marketing_rzeczywiste[#Headers],0))","v":{"v":0,"d":"0.00 zł"}},{"$f":"INDEX(Marketing_plan[],MATCH(INDEX(Marketing_odchylenia[],ROW()-ROW(Marketing_odchylenia[[#Headers],[Lut]]),1),INDEX(Marketing_plan[],,1),0),MATCH(Marketing_odchylenia[[#Headers],[Lut]],Marketing_plan[#Headers],0))-INDEX(Marketing_rzeczywiste[],MATCH(INDEX(Marketing_odchylenia[],ROW()-ROW(Marketing_odchylenia[[#Headers],[Lut]]),1),INDEX(Marketing_plan[],,1),0),MATCH(Marketing_odchylenia[[#Headers],[Lut]],Marketing_rzeczywiste[#Headers],0))","v":{"v":0,"d":"0.00 zł"}},{"$f":"INDEX(Marketing_plan[],MATCH(INDEX(Marketing_odchylenia[],ROW()-ROW(Marketing_odchylenia[[#Headers],[Mar]]),1),INDEX(Marketing_plan[],,1),0),MATCH(Marketing_odchylenia[[#Headers],[Mar]],Marketing_plan[#Headers],0))-INDEX(Marketing_rzeczywiste[],MATCH(INDEX(Marketing_odchylenia[],ROW()-ROW(Marketing_odchylenia[[#Headers],[Mar]]),1),INDEX(Marketing_plan[],,1),0),MATCH(Marketing_odchylenia[[#Headers],[Mar]],Marketing_rzeczywiste[#Headers],0))","v":{"v":0,"d":"0.00 zł"}},{"$f":"INDEX(Marketing_plan[],MATCH(INDEX(Marketing_odchylenia[],ROW()-ROW(Marketing_odchylenia[[#Headers],[Kwi]]),1),INDEX(Marketing_plan[],,1),0),MATCH(Marketing_odchylenia[[#Headers],[Kwi]],Marketing_plan[#Headers],0))-INDEX(Marketing_rzeczywiste[],MATCH(INDEX(Marketing_odchylenia[],ROW()-ROW(Marketing_odchylenia[[#Headers],[Kwi]]),1),INDEX(Marketing_plan[],,1),0),MATCH(Marketing_odchylenia[[#Headers],[Kwi]],Marketing_rzeczywiste[#Headers],0))","v":{"v":0,"d":"0.00 zł"}},{"$f":"INDEX(Marketing_plan[],MATCH(INDEX(Marketing_odchylenia[],ROW()-ROW(Marketing_odchylenia[[#Headers],[Maj]]),1),INDEX(Marketing_plan[],,1),0),MATCH(Marketing_odchylenia[[#Headers],[Maj]],Marketing_plan[#Headers],0))-INDEX(Marketing_rzeczywiste[],MATCH(INDEX(Marketing_odchylenia[],ROW()-ROW(Marketing_odchylenia[[#Headers],[Maj]]),1),INDEX(Marketing_plan[],,1),0),MATCH(Marketing_odchylenia[[#Headers],[Maj]],Marketing_rzeczywiste[#Headers],0))","v":{"v":0,"d":"0.00 zł"}},{"$f":"INDEX(Marketing_plan[],MATCH(INDEX(Marketing_odchylenia[],ROW()-ROW(Marketing_odchylenia[[#Headers],[Cze]]),1),INDEX(Marketing_plan[],,1),0),MATCH(Marketing_odchylenia[[#Headers],[Cze]],Marketing_plan[#Headers],0))-INDEX(Marketing_rzeczywiste[],MATCH(INDEX(Marketing_odchylenia[],ROW()-ROW(Marketing_odchylenia[[#Headers],[Cze]]),1),INDEX(Marketing_plan[],,1),0),MATCH(Marketing_odchylenia[[#Headers],[Cze]],Marketing_rzeczywiste[#Headers],0))","v":{"v":-500,"d":"-500.00 zł"}},{"$f":"INDEX(Marketing_plan[],MATCH(INDEX(Marketing_odchylenia[],ROW()-ROW(Marketing_odchylenia[[#Headers],[Lip]]),1),INDEX(Marketing_plan[],,1),0),MATCH(Marketing_odchylenia[[#Headers],[Lip]],Marketing_plan[#Headers],0))-INDEX(Marketing_rzeczywiste[],MATCH(INDEX(Marketing_odchylenia[],ROW()-ROW(Marketing_odchylenia[[#Headers],[Lip]]),1),INDEX(Marketing_plan[],,1),0),MATCH(Marketing_odchylenia[[#Headers],[Lip]],Marketing_rzeczywiste[#Headers],0))","v":{"v":200,"d":"200.00 zł"}},{"$f":"INDEX(Marketing_plan[],MATCH(INDEX(Marketing_odchylenia[],ROW()-ROW(Marketing_odchylenia[[#Headers],[Sie]]),1),INDEX(Marketing_plan[],,1),0),MATCH(Marketing_odchylenia[[#Headers],[Sie]],Marketing_plan[#Headers],0))-INDEX(Marketing_rzeczywiste[],MATCH(INDEX(Marketing_odchylenia[],ROW()-ROW(Marketing_odchylenia[[#Headers],[Sie]]),1),INDEX(Marketing_plan[],,1),0),MATCH(Marketing_odchylenia[[#Headers],[Sie]],Marketing_rzeczywiste[#Headers],0))","v":{"v":200,"d":"200.00 zł"}},{"$f":"INDEX(Marketing_plan[],MATCH(INDEX(Marketing_odchylenia[],ROW()-ROW(Marketing_odchylenia[[#Headers],[Wrz]]),1),INDEX(Marketing_plan[],,1),0),MATCH(Marketing_odchylenia[[#Headers],[Wrz]],Marketing_plan[#Headers],0))-INDEX(Marketing_rzeczywiste[],MATCH(INDEX(Marketing_odchylenia[],ROW()-ROW(Marketing_odchylenia[[#Headers],[Wrz]]),1),INDEX(Marketing_plan[],,1),0),MATCH(Marketing_odchylenia[[#Headers],[Wrz]],Marketing_rzeczywiste[#Headers],0))","v":{"v":200,"d":"200.00 zł"}},{"$f":"INDEX(Marketing_plan[],MATCH(INDEX(Marketing_odchylenia[],ROW()-ROW(Marketing_odchylenia[[#Headers],[Paź]]),1),INDEX(Marketing_plan[],,1),0),MATCH(Marketing_odchylenia[[#Headers],[Paź]],Marketing_plan[#Headers],0))-INDEX(Marketing_rzeczywiste[],MATCH(INDEX(Marketing_odchylenia[],ROW()-ROW(Marketing_odchylenia[[#Headers],[Paź]]),1),INDEX(Marketing_plan[],,1),0),MATCH(Marketing_odchylenia[[#Headers],[Paź]],Marketing_rzeczywiste[#Headers],0))","v":{"v":200,"d":"200.00 zł"}},{"$f":"INDEX(Marketing_plan[],MATCH(INDEX(Marketing_odchylenia[],ROW()-ROW(Marketing_odchylenia[[#Headers],[Lis]]),1),INDEX(Marketing_plan[],,1),0),MATCH(Marketing_odchylenia[[#Headers],[Lis]],Marketing_plan[#Headers],0))-INDEX(Marketing_rzeczywiste[],MATCH(INDEX(Marketing_odchylenia[],ROW()-ROW(Marketing_odchylenia[[#Headers],[Lis]]),1),INDEX(Marketing_plan[],,1),0),MATCH(Marketing_odchylenia[[#Headers],[Lis]],Marketing_rzeczywiste[#Headers],0))","v":{"v":200,"d":"200.00 zł"}},{"$f":"INDEX(Marketing_plan[],MATCH(INDEX(Marketing_odchylenia[],ROW()-ROW(Marketing_odchylenia[[#Headers],[Gru]]),1),INDEX(Marketing_plan[],,1),0),MATCH(Marketing_odchylenia[[#Headers],[Gru]],Marketing_plan[#Headers],0))-INDEX(Marketing_rzeczywiste[],MATCH(INDEX(Marketing_odchylenia[],ROW()-ROW(Marketing_odchylenia[[#Headers],[Gru]]),1),INDEX(Marketing_plan[],,1),0),MATCH(Marketing_odchylenia[[#Headers],[Gru]],Marketing_rzeczywiste[#Headers],0))","v":{"v":1000,"d":"1,000.00 zł"}},{"$f":"SUM(Marketing_odchylenia[[#This Row],[Sty]:[Gru]])","v":{"v":1500,"d":"1,500.00 zł"}}]
[null,"Przygotowywanie materiałów dodatkowych",{"$f":"INDEX(Marketing_plan[],MATCH(INDEX(Marketing_odchylenia[],ROW()-ROW(Marketing_odchylenia[[#Headers],[Sty]]),1),INDEX(Marketing_plan[],,1),0),MATCH(Marketing_odchylenia[[#Headers],[Sty]],Marketing_plan[#Headers],0))-INDEX(Marketing_rzeczywiste[],MATCH(INDEX(Marketing_odchylenia[],ROW()-ROW(Marketing_odchylenia[[#Headers],[Sty]]),1),INDEX(Marketing_plan[],,1),0),MATCH(Marketing_odchylenia[[#Headers],[Sty]],Marketing_rzeczywiste[#Headers],0))","v":{"v":200,"d":"200.00 zł"}},{"$f":"INDEX(Marketing_plan[],MATCH(INDEX(Marketing_odchylenia[],ROW()-ROW(Marketing_odchylenia[[#Headers],[Lut]]),1),INDEX(Marketing_plan[],,1),0),MATCH(Marketing_odchylenia[[#Headers],[Lut]],Marketing_plan[#Headers],0))-INDEX(Marketing_rzeczywiste[],MATCH(INDEX(Marketing_odchylenia[],ROW()-ROW(Marketing_odchylenia[[#Headers],[Lut]]),1),INDEX(Marketing_plan[],,1),0),MATCH(Marketing_odchylenia[[#Headers],[Lut]],Marketing_rzeczywiste[#Headers],0))","v":{"v":0,"d":"0.00 zł"}},{"$f":"INDEX(Marketing_plan[],MATCH(INDEX(Marketing_odchylenia[],ROW()-ROW(Marketing_odchylenia[[#Headers],[Mar]]),1),INDEX(Marketing_plan[],,1),0),MATCH(Marketing_odchylenia[[#Headers],[Mar]],Marketing_plan[#Headers],0))-INDEX(Marketing_rzeczywiste[],MATCH(INDEX(Marketing_odchylenia[],ROW()-ROW(Marketing_odchylenia[[#Headers],[Mar]]),1),INDEX(Marketing_plan[],,1),0),MATCH(Marketing_odchylenia[[#Headers],[Mar]],Marketing_rzeczywiste[#Headers],0))","v":{"v":0,"d":"0.00 zł"}},{"$f":"INDEX(Marketing_plan[],MATCH(INDEX(Marketing_odchylenia[],ROW()-ROW(Marketing_odchylenia[[#Headers],[Kwi]]),1),INDEX(Marketing_plan[],,1),0),MATCH(Marketing_odchylenia[[#Headers],[Kwi]],Marketing_plan[#Headers],0))-INDEX(Marketing_rzeczywiste[],MATCH(INDEX(Marketing_odchylenia[],ROW()-ROW(Marketing_odchylenia[[#Headers],[Kwi]]),1),INDEX(Marketing_plan[],,1),0),MATCH(Marketing_odchylenia[[#Headers],[Kwi]],Marketing_rzeczywiste[#Headers],0))","v":{"v":-500,"d":"-500.00 zł"}},{"$f":"INDEX(Marketing_plan[],MATCH(INDEX(Marketing_odchylenia[],ROW()-ROW(Marketing_odchylenia[[#Headers],[Maj]]),1),INDEX(Marketing_plan[],,1),0),MATCH(Marketing_odchylenia[[#Headers],[Maj]],Marketing_plan[#Headers],0))-INDEX(Marketing_rzeczywiste[],MATCH(INDEX(Marketing_odchylenia[],ROW()-ROW(Marketing_odchylenia[[#Headers],[Maj]]),1),INDEX(Marketing_plan[],,1),0),MATCH(Marketing_odchylenia[[#Headers],[Maj]],Marketing_rzeczywiste[#Headers],0))","v":{"v":0,"d":"0.00 zł"}},{"$f":"INDEX(Marketing_plan[],MATCH(INDEX(Marketing_odchylenia[],ROW()-ROW(Marketing_odchylenia[[#Headers],[Cze]]),1),INDEX(Marketing_plan[],,1),0),MATCH(Marketing_odchylenia[[#Headers],[Cze]],Marketing_plan[#Headers],0))-INDEX(Marketing_rzeczywiste[],MATCH(INDEX(Marketing_odchylenia[],ROW()-ROW(Marketing_odchylenia[[#Headers],[Cze]]),1),INDEX(Marketing_plan[],,1),0),MATCH(Marketing_odchylenia[[#Headers],[Cze]],Marketing_rzeczywiste[#Headers],0))","v":{"v":0,"d":"0.00 zł"}},{"$f":"INDEX(Marketing_plan[],MATCH(INDEX(Marketing_odchylenia[],ROW()-ROW(Marketing_odchylenia[[#Headers],[Lip]]),1),INDEX(Marketing_plan[],,1),0),MATCH(Marketing_odchylenia[[#Headers],[Lip]],Marketing_plan[#Headers],0))-INDEX(Marketing_rzeczywiste[],MATCH(INDEX(Marketing_odchylenia[],ROW()-ROW(Marketing_odchylenia[[#Headers],[Lip]]),1),INDEX(Marketing_plan[],,1),0),MATCH(Marketing_odchylenia[[#Headers],[Lip]],Marketing_rzeczywiste[#Headers],0))","v":{"v":5000,"d":"5,000.00 zł"}},{"$f":"INDEX(Marketing_plan[],MATCH(INDEX(Marketing_odchylenia[],ROW()-ROW(Marketing_odchylenia[[#Headers],[Sie]]),1),INDEX(Marketing_plan[],,1),0),MATCH(Marketing_odchylenia[[#Headers],[Sie]],Marketing_plan[#Headers],0))-INDEX(Marketing_rzeczywiste[],MATCH(INDEX(Marketing_odchylenia[],ROW()-ROW(Marketing_odchylenia[[#Headers],[Sie]]),1),INDEX(Marketing_plan[],,1),0),MATCH(Marketing_odchylenia[[#Headers],[Sie]],Marketing_rzeczywiste[#Headers],0))","v":{"v":0,"d":"0.00 zł"}},{"$f":"INDEX(Marketing_plan[],MATCH(INDEX(Marketing_odchylenia[],ROW()-ROW(Marketing_odchylenia[[#Headers],[Wrz]]),1),INDEX(Marketing_plan[],,1),0),MATCH(Marketing_odchylenia[[#Headers],[Wrz]],Marketing_plan[#Headers],0))-INDEX(Marketing_rzeczywiste[],MATCH(INDEX(Marketing_odchylenia[],ROW()-ROW(Marketing_odchylenia[[#Headers],[Wrz]]),1),INDEX(Marketing_plan[],,1),0),MATCH(Marketing_odchylenia[[#Headers],[Wrz]],Marketing_rzeczywiste[#Headers],0))","v":{"v":0,"d":"0.00 zł"}},{"$f":"INDEX(Marketing_plan[],MATCH(INDEX(Marketing_odchylenia[],ROW()-ROW(Marketing_odchylenia[[#Headers],[Paź]]),1),INDEX(Marketing_plan[],,1),0),MATCH(Marketing_odchylenia[[#Headers],[Paź]],Marketing_plan[#Headers],0))-INDEX(Marketing_rzeczywiste[],MATCH(INDEX(Marketing_odchylenia[],ROW()-ROW(Marketing_odchylenia[[#Headers],[Paź]]),1),INDEX(Marketing_plan[],,1),0),MATCH(Marketing_odchylenia[[#Headers],[Paź]],Marketing_rzeczywiste[#Headers],0))","v":{"v":5000,"d":"5,000.00 zł"}},{"$f":"INDEX(Marketing_plan[],MATCH(INDEX(Marketing_odchylenia[],ROW()-ROW(Marketing_odchylenia[[#Headers],[Lis]]),1),INDEX(Marketing_plan[],,1),0),MATCH(Marketing_odchylenia[[#Headers],[Lis]],Marketing_plan[#Headers],0))-INDEX(Marketing_rzeczywiste[],MATCH(INDEX(Marketing_odchylenia[],ROW()-ROW(Marketing_odchylenia[[#Headers],[Lis]]),1),INDEX(Marketing_plan[],,1),0),MATCH(Marketing_odchylenia[[#Headers],[Lis]],Marketing_rzeczywiste[#Headers],0))","v":{"v":0,"d":"0.00 zł"}},{"$f":"INDEX(Marketing_plan[],MATCH(INDEX(Marketing_odchylenia[],ROW()-ROW(Marketing_odchylenia[[#Headers],[Gru]]),1),INDEX(Marketing_plan[],,1),0),MATCH(Marketing_odchylenia[[#Headers],[Gru]],Marketing_plan[#Headers],0))-INDEX(Marketing_rzeczywiste[],MATCH(INDEX(Marketing_odchylenia[],ROW()-ROW(Marketing_odchylenia[[#Headers],[Gru]]),1),INDEX(Marketing_plan[],,1),0),MATCH(Marketing_odchylenia[[#Headers],[Gru]],Marketing_rzeczywiste[#Headers],0))","v":{"v":0,"d":"0.00 zł"}},{"$f":"SUM(Marketing_odchylenia[[#This Row],[Sty]:[Gru]])","v":{"v":9700,"d":"9,700.00 zł"}}]
[null,"Drukowanie materiałów dodatkowych",{"$f":"INDEX(Marketing_plan[],MATCH(INDEX(Marketing_odchylenia[],ROW()-ROW(Marketing_odchylenia[[#Headers],[Sty]]),1),INDEX(Marketing_plan[],,1),0),MATCH(Marketing_odchylenia[[#Headers],[Sty]],Marketing_plan[#Headers],0))-INDEX(Marketing_rzeczywiste[],MATCH(INDEX(Marketing_odchylenia[],ROW()-ROW(Marketing_odchylenia[[#Headers],[Sty]]),1),INDEX(Marketing_plan[],,1),0),MATCH(Marketing_odchylenia[[#Headers],[Sty]],Marketing_rzeczywiste[#Headers],0))","v":{"v":100,"d":"100.00 zł"}},{"$f":"INDEX(Marketing_plan[],MATCH(INDEX(Marketing_odchylenia[],ROW()-ROW(Marketing_odchylenia[[#Headers],[Lut]]),1),INDEX(Marketing_plan[],,1),0),MATCH(Marketing_odchylenia[[#Headers],[Lut]],Marketing_plan[#Headers],0))-INDEX(Marketing_rzeczywiste[],MATCH(INDEX(Marketing_odchylenia[],ROW()-ROW(Marketing_odchylenia[[#Headers],[Lut]]),1),INDEX(Marketing_plan[],,1),0),MATCH(Marketing_odchylenia[[#Headers],[Lut]],Marketing_rzeczywiste[#Headers],0))","v":{"v":-300,"d":"-300.00 zł"}},{"$f":"INDEX(Marketing_plan[],MATCH(INDEX(Marketing_odchylenia[],ROW()-ROW(Marketing_odchylenia[[#Headers],[Mar]]),1),INDEX(Marketing_plan[],,1),0),MATCH(Marketing_odchylenia[[#Headers],[Mar]],Marketing_plan[#Headers],0))-INDEX(Marketing_rzeczywiste[],MATCH(INDEX(Marketing_odchylenia[],ROW()-ROW(Marketing_odchylenia[[#Headers],[Mar]]),1),INDEX(Marketing_plan[],,1),0),MATCH(Marketing_odchylenia[[#Headers],[Mar]],Marketing_rzeczywiste[#Headers],0))","v":{"v":100,"d":"100.00 zł"}},{"$f":"INDEX(Marketing_plan[],MATCH(INDEX(Marketing_odchylenia[],ROW()-ROW(Marketing_odchylenia[[#Headers],[Kwi]]),1),INDEX(Marketing_plan[],,1),0),MATCH(Marketing_odchylenia[[#Headers],[Kwi]],Marketing_plan[#Headers],0))-INDEX(Marketing_rzeczywiste[],MATCH(INDEX(Marketing_odchylenia[],ROW()-ROW(Marketing_odchylenia[[#Headers],[Kwi]]),1),INDEX(Marketing_plan[],,1),0),MATCH(Marketing_odchylenia[[#Headers],[Kwi]],Marketing_rzeczywiste[#Headers],0))","v":{"v":100,"d":"100.00 zł"}},{"$f":"INDEX(Marketing_plan[],MATCH(INDEX(Marketing_odchylenia[],ROW()-ROW(Marketing_odchylenia[[#Headers],[Maj]]),1),INDEX(Marketing_plan[],,1),0),MATCH(Marketing_odchylenia[[#Headers],[Maj]],Marketing_plan[#Headers],0))-INDEX(Marketing_rzeczywiste[],MATCH(INDEX(Marketing_odchylenia[],ROW()-ROW(Marketing_odchylenia[[#Headers],[Maj]]),1),INDEX(Marketing_plan[],,1),0),MATCH(Marketing_odchylenia[[#Headers],[Maj]],Marketing_rzeczywiste[#Headers],0))","v":{"v":-400,"d":"-400.00 zł"}},{"$f":"INDEX(Marketing_plan[],MATCH(INDEX(Marketing_odchylenia[],ROW()-ROW(Marketing_odchylenia[[#Headers],[Cze]]),1),INDEX(Marketing_plan[],,1),0),MATCH(Marketing_odchylenia[[#Headers],[Cze]],Marketing_plan[#Headers],0))-INDEX(Marketing_rzeczywiste[],MATCH(INDEX(Marketing_odchylenia[],ROW()-ROW(Marketing_odchylenia[[#Headers],[Cze]]),1),INDEX(Marketing_plan[],,1),0),MATCH(Marketing_odchylenia[[#Headers],[Cze]],Marketing_rzeczywiste[#Headers],0))","v":{"v":20,"d":"20.00 zł"}},{"$f":"INDEX(Marketing_plan[],MATCH(INDEX(Marketing_odchylenia[],ROW()-ROW(Marketing_odchylenia[[#Headers],[Lip]]),1),INDEX(Marketing_plan[],,1),0),MATCH(Marketing_odchylenia[[#Headers],[Lip]],Marketing_plan[#Headers],0))-INDEX(Marketing_rzeczywiste[],MATCH(INDEX(Marketing_odchylenia[],ROW()-ROW(Marketing_odchylenia[[#Headers],[Lip]]),1),INDEX(Marketing_plan[],,1),0),MATCH(Marketing_odchylenia[[#Headers],[Lip]],Marketing_rzeczywiste[#Headers],0))","v":{"v":200,"d":"200.00 zł"}},{"$f":"INDEX(Marketing_plan[],MATCH(INDEX(Marketing_odchylenia[],ROW()-ROW(Marketing_odchylenia[[#Headers],[Sie]]),1),INDEX(Marketing_plan[],,1),0),MATCH(Marketing_odchylenia[[#Headers],[Sie]],Marketing_plan[#Headers],0))-INDEX(Marketing_rzeczywiste[],MATCH(INDEX(Marketing_odchylenia[],ROW()-ROW(Marketing_odchylenia[[#Headers],[Sie]]),1),INDEX(Marketing_plan[],,1),0),MATCH(Marketing_odchylenia[[#Headers],[Sie]],Marketing_rzeczywiste[#Headers],0))","v":{"v":200,"d":"200.00 zł"}},{"$f":"INDEX(Marketing_plan[],MATCH(INDEX(Marketing_odchylenia[],ROW()-ROW(Marketing_odchylenia[[#Headers],[Wrz]]),1),INDEX(Marketing_plan[],,1),0),MATCH(Marketing_odchylenia[[#Headers],[Wrz]],Marketing_plan[#Headers],0))-INDEX(Marketing_rzeczywiste[],MATCH(INDEX(Marketing_odchylenia[],ROW()-ROW(Marketing_odchylenia[[#Headers],[Wrz]]),1),INDEX(Marketing_plan[],,1),0),MATCH(Marketing_odchylenia[[#Headers],[Wrz]],Marketing_rzeczywiste[#Headers],0))","v":{"v":200,"d":"200.00 zł"}},{"$f":"INDEX(Marketing_plan[],MATCH(INDEX(Marketing_odchylenia[],ROW()-ROW(Marketing_odchylenia[[#Headers],[Paź]]),1),INDEX(Marketing_plan[],,1),0),MATCH(Marketing_odchylenia[[#Headers],[Paź]],Marketing_plan[#Headers],0))-INDEX(Marketing_rzeczywiste[],MATCH(INDEX(Marketing_odchylenia[],ROW()-ROW(Marketing_odchylenia[[#Headers],[Paź]]),1),INDEX(Marketing_plan[],,1),0),MATCH(Marketing_odchylenia[[#Headers],[Paź]],Marketing_rzeczywiste[#Headers],0))","v":{"v":200,"d":"200.00 zł"}},{"$f":"INDEX(Marketing_plan[],MATCH(INDEX(Marketing_odchylenia[],ROW()-ROW(Marketing_odchylenia[[#Headers],[Lis]]),1),INDEX(Marketing_plan[],,1),0),MATCH(Marketing_odchylenia[[#Headers],[Lis]],Marketing_plan[#Headers],0))-INDEX(Marketing_rzeczywiste[],MATCH(INDEX(Marketing_odchylenia[],ROW()-ROW(Marketing_odchylenia[[#Headers],[Lis]]),1),INDEX(Marketing_plan[],,1),0),MATCH(Marketing_odchylenia[[#Headers],[Lis]],Marketing_rzeczywiste[#Headers],0))","v":{"v":200,"d":"200.00 zł"}},{"$f":"INDEX(Marketing_plan[],MATCH(INDEX(Marketing_odchylenia[],ROW()-ROW(Marketing_odchylenia[[#Headers],[Gru]]),1),INDEX(Marketing_plan[],,1),0),MATCH(Marketing_odchylenia[[#Headers],[Gru]],Marketing_plan[#Headers],0))-INDEX(Marketing_rzeczywiste[],MATCH(INDEX(Marketing_odchylenia[],ROW()-ROW(Marketing_odchylenia[[#Headers],[Gru]]),1),INDEX(Marketing_plan[],,1),0),MATCH(Marketing_odchylenia[[#Headers],[Gru]],Marketing_rzeczywiste[#Headers],0))","v":{"v":200,"d":"200.00 zł"}},{"$f":"SUM(Marketing_odchylenia[[#This Row],[Sty]:[Gru]])","v":{"v":820,"d":"820.00 zł"}}]
[null,"Wydarzenia marketingowe",{"$f":"INDEX(Marketing_plan[],MATCH(INDEX(Marketing_odchylenia[],ROW()-ROW(Marketing_odchylenia[[#Headers],[Sty]]),1),INDEX(Marketing_plan[],,1),0),MATCH(Marketing_odchylenia[[#Headers],[Sty]],Marketing_plan[#Headers],0))-INDEX(Marketing_rzeczywiste[],MATCH(INDEX(Marketing_odchylenia[],ROW()-ROW(Marketing_odchylenia[[#Headers],[Sty]]),1),INDEX(Marketing_plan[],,1),0),MATCH(Marketing_odchylenia[[#Headers],[Sty]],Marketing_rzeczywiste[#Headers],0))","v":{"v":200,"d":"200.00 zł"}},{"$f":"INDEX(Marketing_plan[],MATCH(INDEX(Marketing_odchylenia[],ROW()-ROW(Marketing_odchylenia[[#Headers],[Lut]]),1),INDEX(Marketing_plan[],,1),0),MATCH(Marketing_odchylenia[[#Headers],[Lut]],Marketing_plan[#Headers],0))-INDEX(Marketing_rzeczywiste[],MATCH(INDEX(Marketing_odchylenia[],ROW()-ROW(Marketing_odchylenia[[#Headers],[Lut]]),1),INDEX(Marketing_plan[],,1),0),MATCH(Marketing_odchylenia[[#Headers],[Lut]],Marketing_rzeczywiste[#Headers],0))","v":{"v":-200,"d":"-200.00 zł"}},{"$f":"INDEX(Marketing_plan[],MATCH(INDEX(Marketing_odchylenia[],ROW()-ROW(Marketing_odchylenia[[#Headers],[Mar]]),1),INDEX(Marketing_plan[],,1),0),MATCH(Marketing_odchylenia[[#Headers],[Mar]],Marketing_plan[#Headers],0))-INDEX(Marketing_rzeczywiste[],MATCH(INDEX(Marketing_odchylenia[],ROW()-ROW(Marketing_odchylenia[[#Headers],[Mar]]),1),INDEX(Marketing_plan[],,1),0),MATCH(Marketing_odchylenia[[#Headers],[Mar]],Marketing_rzeczywiste[#Headers],0))","v":{"v":-200,"d":"-200.00 zł"}},{"$f":"INDEX(Marketing_plan[],MATCH(INDEX(Marketing_odchylenia[],ROW()-ROW(Marketing_odchylenia[[#Headers],[Kwi]]),1),INDEX(Marketing_plan[],,1),0),MATCH(Marketing_odchylenia[[#Headers],[Kwi]],Marketing_plan[#Headers],0))-INDEX(Marketing_rzeczywiste[],MATCH(INDEX(Marketing_odchylenia[],ROW()-ROW(Marketing_odchylenia[[#Headers],[Kwi]]),1),INDEX(Marketing_plan[],,1),0),MATCH(Marketing_odchylenia[[#Headers],[Kwi]],Marketing_rzeczywiste[#Headers],0))","v":{"v":300,"d":"300.00 zł"}},{"$f":"INDEX(Marketing_plan[],MATCH(INDEX(Marketing_odchylenia[],ROW()-ROW(Marketing_odchylenia[[#Headers],[Maj]]),1),INDEX(Marketing_plan[],,1),0),MATCH(Marketing_odchylenia[[#Headers],[Maj]],Marketing_plan[#Headers],0))-INDEX(Marketing_rzeczywiste[],MATCH(INDEX(Marketing_odchylenia[],ROW()-ROW(Marketing_odchylenia[[#Headers],[Maj]]),1),INDEX(Marketing_plan[],,1),0),MATCH(Marketing_odchylenia[[#Headers],[Maj]],Marketing_rzeczywiste[#Headers],0))","v":{"v":500,"d":"500.00 zł"}},{"$f":"INDEX(Marketing_plan[],MATCH(INDEX(Marketing_odchylenia[],ROW()-ROW(Marketing_odchylenia[[#Headers],[Cze]]),1),INDEX(Marketing_plan[],,1),0),MATCH(Marketing_odchylenia[[#Headers],[Cze]],Marketing_plan[#Headers],0))-INDEX(Marketing_rzeczywiste[],MATCH(INDEX(Marketing_odchylenia[],ROW()-ROW(Marketing_odchylenia[[#Headers],[Cze]]),1),INDEX(Marketing_plan[],,1),0),MATCH(Marketing_odchylenia[[#Headers],[Cze]],Marketing_rzeczywiste[#Headers],0))","v":{"v":-300,"d":"-300.00 zł"}},{"$f":"INDEX(Marketing_plan[],MATCH(INDEX(Marketing_odchylenia[],ROW()-ROW(Marketing_odchylenia[[#Headers],[Lip]]),1),INDEX(Marketing_plan[],,1),0),MATCH(Marketing_odchylenia[[#Headers],[Lip]],Marketing_plan[#Headers],0))-INDEX(Marketing_rzeczywiste[],MATCH(INDEX(Marketing_odchylenia[],ROW()-ROW(Marketing_odchylenia[[#Headers],[Lip]]),1),INDEX(Marketing_plan[],,1),0),MATCH(Marketing_odchylenia[[#Headers],[Lip]],Marketing_rzeczywiste[#Headers],0))","v":{"v":2000,"d":"2,000.00 zł"}},{"$f":"INDEX(Marketing_plan[],MATCH(INDEX(Marketing_odchylenia[],ROW()-ROW(Marketing_odchylenia[[#Headers],[Sie]]),1),INDEX(Marketing_plan[],,1),0),MATCH(Marketing_odchylenia[[#Headers],[Sie]],Marketing_plan[#Headers],0))-INDEX(Marketing_rzeczywiste[],MATCH(INDEX(Marketing_odchylenia[],ROW()-ROW(Marketing_odchylenia[[#Headers],[Sie]]),1),INDEX(Marketing_plan[],,1),0),MATCH(Marketing_odchylenia[[#Headers],[Sie]],Marketing_rzeczywiste[#Headers],0))","v":{"v":5000,"d":"5,000.00 zł"}},{"$f":"INDEX(Marketing_plan[],MATCH(INDEX(Marketing_odchylenia[],ROW()-ROW(Marketing_odchylenia[[#Headers],[Wrz]]),1),INDEX(Marketing_plan[],,1),0),MATCH(Marketing_odchylenia[[#Headers],[Wrz]],Marketing_plan[#Headers],0))-INDEX(Marketing_rzeczywiste[],MATCH(INDEX(Marketing_odchylenia[],ROW()-ROW(Marketing_odchylenia[[#Headers],[Wrz]]),1),INDEX(Marketing_plan[],,1),0),MATCH(Marketing_odchylenia[[#Headers],[Wrz]],Marketing_rzeczywiste[#Headers],0))","v":{"v":2000,"d":"2,000.00 zł"}},{"$f":"INDEX(Marketing_plan[],MATCH(INDEX(Marketing_odchylenia[],ROW()-ROW(Marketing_odchylenia[[#Headers],[Paź]]),1),INDEX(Marketing_plan[],,1),0),MATCH(Marketing_odchylenia[[#Headers],[Paź]],Marketing_plan[#Headers],0))-INDEX(Marketing_rzeczywiste[],MATCH(INDEX(Marketing_odchylenia[],ROW()-ROW(Marketing_odchylenia[[#Headers],[Paź]]),1),INDEX(Marketing_plan[],,1),0),MATCH(Marketing_odchylenia[[#Headers],[Paź]],Marketing_rzeczywiste[#Headers],0))","v":{"v":2000,"d":"2,000.00 zł"}},{"$f":"INDEX(Marketing_plan[],MATCH(INDEX(Marketing_odchylenia[],ROW()-ROW(Marketing_odchylenia[[#Headers],[Lis]]),1),INDEX(Marketing_plan[],,1),0),MATCH(Marketing_odchylenia[[#Headers],[Lis]],Marketing_plan[#Headers],0))-INDEX(Marketing_rzeczywiste[],MATCH(INDEX(Marketing_odchylenia[],ROW()-ROW(Marketing_odchylenia[[#Headers],[Lis]]),1),INDEX(Marketing_plan[],,1),0),MATCH(Marketing_odchylenia[[#Headers],[Lis]],Marketing_rzeczywiste[#Headers],0))","v":{"v":2000,"d":"2,000.00 zł"}},{"$f":"INDEX(Marketing_plan[],MATCH(INDEX(Marketing_odchylenia[],ROW()-ROW(Marketing_odchylenia[[#Headers],[Gru]]),1),INDEX(Marketing_plan[],,1),0),MATCH(Marketing_odchylenia[[#Headers],[Gru]],Marketing_plan[#Headers],0))-INDEX(Marketing_rzeczywiste[],MATCH(INDEX(Marketing_odchylenia[],ROW()-ROW(Marketing_odchylenia[[#Headers],[Gru]]),1),INDEX(Marketing_plan[],,1),0),MATCH(Marketing_odchylenia[[#Headers],[Gru]],Marketing_rzeczywiste[#Headers],0))","v":{"v":5000,"d":"5,000.00 zł"}},{"$f":"SUM(Marketing_odchylenia[[#This Row],[Sty]:[Gru]])","v":{"v":18300,"d":"18,300.00 zł"}}]
[null,"Różne wydatki",{"$f":"INDEX(Marketing_plan[],MATCH(INDEX(Marketing_odchylenia[],ROW()-ROW(Marketing_odchylenia[[#Headers],[Sty]]),1),INDEX(Marketing_plan[],,1),0),MATCH(Marketing_odchylenia[[#Headers],[Sty]],Marketing_plan[#Headers],0))-INDEX(Marketing_rzeczywiste[],MATCH(INDEX(Marketing_odchylenia[],ROW()-ROW(Marketing_odchylenia[[#Headers],[Sty]]),1),INDEX(Marketing_plan[],,1),0),MATCH(Marketing_odchylenia[[#Headers],[Sty]],Marketing_rzeczywiste[#Headers],0))","v":{"v":55,"d":"55.00 zł"}},{"$f":"INDEX(Marketing_plan[],MATCH(INDEX(Marketing_odchylenia[],ROW()-ROW(Marketing_odchylenia[[#Headers],[Lut]]),1),INDEX(Marketing_plan[],,1),0),MATCH(Marketing_odchylenia[[#Headers],[Lut]],Marketing_plan[#Headers],0))-INDEX(Marketing_rzeczywiste[],MATCH(INDEX(Marketing_odchylenia[],ROW()-ROW(Marketing_odchylenia[[#Headers],[Lut]]),1),INDEX(Marketing_plan[],,1),0),MATCH(Marketing_odchylenia[[#Headers],[Lut]],Marketing_rzeczywiste[#Headers],0))","v":{"v":44,"d":"44.00 zł"}},{"$f":"INDEX(Marketing_plan[],MATCH(INDEX(Marketing_odchylenia[],ROW()-ROW(Marketing_odchylenia[[#Headers],[Mar]]),1),INDEX(Marketing_plan[],,1),0),MATCH(Marketing_odchylenia[[#Headers],[Mar]],Marketing_plan[#Headers],0))-INDEX(Marketing_rzeczywiste[],MATCH(INDEX(Marketing_odchylenia[],ROW()-ROW(Marketing_odchylenia[[#Headers],[Mar]]),1),INDEX(Marketing_plan[],,1),0),MATCH(Marketing_odchylenia[[#Headers],[Mar]],Marketing_rzeczywiste[#Headers],0))","v":{"v":77,"d":"77.00 zł"}},{"$f":"INDEX(Marketing_plan[],MATCH(INDEX(Marketing_odchylenia[],ROW()-ROW(Marketing_odchylenia[[#Headers],[Kwi]]),1),INDEX(Marketing_plan[],,1),0),MATCH(Marketing_odchylenia[[#Headers],[Kwi]],Marketing_plan[#Headers],0))-INDEX(Marketing_rzeczywiste[],MATCH(INDEX(Marketing_odchylenia[],ROW()-ROW(Marketing_odchylenia[[#Headers],[Kwi]]),1),INDEX(Marketing_plan[],,1),0),MATCH(Marketing_odchylenia[[#Headers],[Kwi]],Marketing_rzeczywiste[#Headers],0))","v":{"v":-23,"d":"-23.00 zł"}},{"$f":"INDEX(Marketing_plan[],MATCH(INDEX(Marketing_odchylenia[],ROW()-ROW(Marketing_odchylenia[[#Headers],[Maj]]),1),INDEX(Marketing_plan[],,1),0),MATCH(Marketing_odchylenia[[#Headers],[Maj]],Marketing_plan[#Headers],0))-INDEX(Marketing_rzeczywiste[],MATCH(INDEX(Marketing_odchylenia[],ROW()-ROW(Marketing_odchylenia[[#Headers],[Maj]]),1),INDEX(Marketing_plan[],,1),0),MATCH(Marketing_odchylenia[[#Headers],[Maj]],Marketing_rzeczywiste[#Headers],0))","v":{"v":13,"d":"13.00 zł"}},{"$f":"INDEX(Marketing_plan[],MATCH(INDEX(Marketing_odchylenia[],ROW()-ROW(Marketing_odchylenia[[#Headers],[Cze]]),1),INDEX(Marketing_plan[],,1),0),MATCH(Marketing_odchylenia[[#Headers],[Cze]],Marketing_plan[#Headers],0))-INDEX(Marketing_rzeczywiste[],MATCH(INDEX(Marketing_odchylenia[],ROW()-ROW(Marketing_odchylenia[[#Headers],[Cze]]),1),INDEX(Marketing_plan[],,1),0),MATCH(Marketing_odchylenia[[#Headers],[Cze]],Marketing_rzeczywiste[#Headers],0))","v":{"v":-45,"d":"-45.00 zł"}},{"$f":"INDEX(Marketing_plan[],MATCH(INDEX(Marketing_odchylenia[],ROW()-ROW(Marketing_odchylenia[[#Headers],[Lip]]),1),INDEX(Marketing_plan[],,1),0),MATCH(Marketing_odchylenia[[#Headers],[Lip]],Marketing_plan[#Headers],0))-INDEX(Marketing_rzeczywiste[],MATCH(INDEX(Marketing_odchylenia[],ROW()-ROW(Marketing_odchylenia[[#Headers],[Lip]]),1),INDEX(Marketing_plan[],,1),0),MATCH(Marketing_odchylenia[[#Headers],[Lip]],Marketing_rzeczywiste[#Headers],0))","v":{"v":200,"d":"200.00 zł"}},{"$f":"INDEX(Marketing_plan[],MATCH(INDEX(Marketing_odchylenia[],ROW()-ROW(Marketing_odchylenia[[#Headers],[Sie]]),1),INDEX(Marketing_plan[],,1),0),MATCH(Marketing_odchylenia[[#Headers],[Sie]],Marketing_plan[#Headers],0))-INDEX(Marketing_rzeczywiste[],MATCH(INDEX(Marketing_odchylenia[],ROW()-ROW(Marketing_odchylenia[[#Headers],[Sie]]),1),INDEX(Marketing_plan[],,1),0),MATCH(Marketing_odchylenia[[#Headers],[Sie]],Marketing_rzeczywiste[#Headers],0))","v":{"v":200,"d":"200.00 zł"}},{"$f":"INDEX(Marketing_plan[],MATCH(INDEX(Marketing_odchylenia[],ROW()-ROW(Marketing_odchylenia[[#Headers],[Wrz]]),1),INDEX(Marketing_plan[],,1),0),MATCH(Marketing_odchylenia[[#Headers],[Wrz]],Marketing_plan[#Headers],0))-INDEX(Marketing_rzeczywiste[],MATCH(INDEX(Marketing_odchylenia[],ROW()-ROW(Marketing_odchylenia[[#Headers],[Wrz]]),1),INDEX(Marketing_plan[],,1),0),MATCH(Marketing_odchylenia[[#Headers],[Wrz]],Marketing_rzeczywiste[#Headers],0))","v":{"v":200,"d":"200.00 zł"}},{"$f":"INDEX(Marketing_plan[],MATCH(INDEX(Marketing_odchylenia[],ROW()-ROW(Marketing_odchylenia[[#Headers],[Paź]]),1),INDEX(Marketing_plan[],,1),0),MATCH(Marketing_odchylenia[[#Headers],[Paź]],Marketing_plan[#Headers],0))-INDEX(Marketing_rzeczywiste[],MATCH(INDEX(Marketing_odchylenia[],ROW()-ROW(Marketing_odchylenia[[#Headers],[Paź]]),1),INDEX(Marketing_plan[],,1),0),MATCH(Marketing_odchylenia[[#Headers],[Paź]],Marketing_rzeczywiste[#Headers],0))","v":{"v":200,"d":"200.00 zł"}},{"$f":"INDEX(Marketing_plan[],MATCH(INDEX(Marketing_odchylenia[],ROW()-ROW(Marketing_odchylenia[[#Headers],[Lis]]),1),INDEX(Marketing_plan[],,1),0),MATCH(Marketing_odchylenia[[#Headers],[Lis]],Marketing_plan[#Headers],0))-INDEX(Marketing_rzeczywiste[],MATCH(INDEX(Marketing_odchylenia[],ROW()-ROW(Marketing_odchylenia[[#Headers],[Lis]]),1),INDEX(Marketing_plan[],,1),0),MATCH(Marketing_odchylenia[[#Headers],[Lis]],Marketing_rzeczywiste[#Headers],0))","v":{"v":200,"d":"200.00 zł"}},{"$f":"INDEX(Marketing_plan[],MATCH(INDEX(Marketing_odchylenia[],ROW()-ROW(Marketing_odchylenia[[#Headers],[Gru]]),1),INDEX(Marketing_plan[],,1),0),MATCH(Marketing_odchylenia[[#Headers],[Gru]],Marketing_plan[#Headers],0))-INDEX(Marketing_rzeczywiste[],MATCH(INDEX(Marketing_odchylenia[],ROW()-ROW(Marketing_odchylenia[[#Headers],[Gru]]),1),INDEX(Marketing_plan[],,1),0),MATCH(Marketing_odchylenia[[#Headers],[Gru]],Marketing_rzeczywiste[#Headers],0))","v":{"v":200,"d":"200.00 zł"}},{"$f":"SUM(Marketing_odchylenia[[#This Row],[Sty]:[Gru]])","v":{"v":1321,"d":"1,321.00 zł"}}]
[null,"Suma częściowa",{"$f":"SUBTOTAL(109,Marketing_odchylenia[Sty])","v":{"v":555,"d":"555.00 zł"}},{"$f":"SUBTOTAL(109,Marketing_odchylenia[Lut])","v":{"v":-456,"d":"-456.00 zł"}},{"$f":"SUBTOTAL(109,Marketing_odchylenia[Mar])","v":{"v":-23,"d":"-23.00 zł"}},{"$f":"SUBTOTAL(109,Marketing_odchylenia[Kwi])","v":{"v":-123,"d":"-123.00 zł"}},{"$f":"SUBTOTAL(109,Marketing_odchylenia[Maj])","v":{"v":113,"d":"113.00 zł"}},{"$f":"SUBTOTAL(109,Marketing_odchylenia[Cze])","v":{"v":-825,"d":"-825.00 zł"}},{"$f":"SUBTOTAL(109,Marketing_odchylenia[Lip])","v":{"v":8100,"d":"8,100.00 zł"}},{"$f":"SUBTOTAL(109,Marketing_odchylenia[Sie])","v":{"v":6100,"d":"6,100.00 zł"}},{"$f":"SUBTOTAL(109,Marketing_odchylenia[Wrz])","v":{"v":3100,"d":"3,100.00 zł"}},{"$f":"SUBTOTAL(109,Marketing_odchylenia[Paź])","v":{"v":8100,"d":"8,100.00 zł"}},{"$f":"SUBTOTAL(109,Marketing_odchylenia[Lis])","v":{"v":3100,"d":"3,100.00 zł"}},{"$f":"SUBTOTAL(109,Marketing_odchylenia[Gru])","v":{"v":6900,"d":"6,900.00 zł"}},{"$f":"SUBTOTAL(109,Marketing_odchylenia[ROK])","v":{"v":34641,"d":"34,641.00 zł"}}]
[]
["W tabeli Szkolenia i podróże — odchylenia zaczynającej się w komórce po prawej stronie jest automatycznie obliczane odchylenie kosztów szkoleń i podróży. Dalsze instrukcje znajdują się w komórce A35.","Szkolenia/podróże","Sty","Lut","Mar","Kwi","Maj","Cze","Lip","Sie","Wrz","Paź","Lis","Gru","ROK"]
[null,"Zajęcia szkoleniowe",{"$f":"INDEX(Szkolenia_i_podróże_plan[],MATCH(INDEX(Szkolenia_i_podróże_odchylenia[],ROW()-ROW(Szkolenia_i_podróże_odchylenia[[#Headers],[Sty]]),1),INDEX(Szkolenia_i_podróże_plan[],,1),0),MATCH(Szkolenia_i_podróże_odchylenia[[#Headers],[Sty]],Szkolenia_i_podróże_plan[#Headers],0))-INDEX(Szkolenia_i_podróże_rzeczywiste[],MATCH(INDEX(Szkolenia_i_podróże_odchylenia[],ROW()-ROW(Szkolenia_i_podróże_odchylenia[[#Headers],[Sty]]),1),INDEX(Szkolenia_i_podróże_plan[],,1),0),MATCH(Szkolenia_i_podróże_odchylenia[[#Headers],[Sty]],Szkolenia_i_podróże_rzeczywiste[#Headers],0))","v":{"v":400,"d":"400.00 zł"}},{"$f":"INDEX(Szkolenia_i_podróże_plan[],MATCH(INDEX(Szkolenia_i_podróże_odchylenia[],ROW()-ROW(Szkolenia_i_podróże_odchylenia[[#Headers],[Lut]]),1),INDEX(Szkolenia_i_podróże_plan[],,1),0),MATCH(Szkolenia_i_podróże_odchylenia[[#Headers],[Lut]],Szkolenia_i_podróże_plan[#Headers],0))-INDEX(Szkolenia_i_podróże_rzeczywiste[],MATCH(INDEX(Szkolenia_i_podróże_odchylenia[],ROW()-ROW(Szkolenia_i_podróże_odchylenia[[#Headers],[Lut]]),1),INDEX(Szkolenia_i_podróże_plan[],,1),0),MATCH(Szkolenia_i_podróże_odchylenia[[#Headers],[Lut]],Szkolenia_i_podróże_rzeczywiste[#Headers],0))","v":{"v":-400,"d":"-400.00 zł"}},{"$f":"INDEX(Szkolenia_i_podróże_plan[],MATCH(INDEX(Szkolenia_i_podróże_odchylenia[],ROW()-ROW(Szkolenia_i_podróże_odchylenia[[#Headers],[Mar]]),1),INDEX(Szkolenia_i_podróże_plan[],,1),0),MATCH(Szkolenia_i_podróże_odchylenia[[#Headers],[Mar]],Szkolenia_i_podróże_plan[#Headers],0))-INDEX(Szkolenia_i_podróże_rzeczywiste[],MATCH(INDEX(Szkolenia_i_podróże_odchylenia[],ROW()-ROW(Szkolenia_i_podróże_odchylenia[[#Headers],[Mar]]),1),INDEX(Szkolenia_i_podróże_plan[],,1),0),MATCH(Szkolenia_i_podróże_odchylenia[[#Headers],[Mar]],Szkolenia_i_podróże_rzeczywiste[#Headers],0))","v":{"v":600,"d":"600.00 zł"}},{"$f":"INDEX(Szkolenia_i_podróże_plan[],MATCH(INDEX(Szkolenia_i_podróże_odchylenia[],ROW()-ROW(Szkolenia_i_podróże_odchylenia[[#Headers],[Kwi]]),1),INDEX(Szkolenia_i_podróże_plan[],,1),0),MATCH(Szkolenia_i_podróże_odchylenia[[#Headers],[Kwi]],Szkolenia_i_podróże_plan[#Headers],0))-INDEX(Szkolenia_i_podróże_rzeczywiste[],MATCH(INDEX(Szkolenia_i_podróże_odchylenia[],ROW()-ROW(Szkolenia_i_podróże_odchylenia[[#Headers],[Kwi]]),1),INDEX(Szkolenia_i_podróże_plan[],,1),0),MATCH(Szkolenia_i_podróże_odchylenia[[#Headers],[Kwi]],Szkolenia_i_podróże_rzeczywiste[#Headers],0))","v":{"v":400,"d":"400.00 zł"}},{"$f":"INDEX(Szkolenia_i_podróże_plan[],MATCH(INDEX(Szkolenia_i_podróże_odchylenia[],ROW()-ROW(Szkolenia_i_podróże_odchylenia[[#Headers],[Maj]]),1),INDEX(Szkolenia_i_podróże_plan[],,1),0),MATCH(Szkolenia_i_podróże_odchylenia[[#Headers],[Maj]],Szkolenia_i_podróże_plan[#Headers],0))-INDEX(Szkolenia_i_podróże_rzeczywiste[],MATCH(INDEX(Szkolenia_i_podróże_odchylenia[],ROW()-ROW(Szkolenia_i_podróże_odchylenia[[#Headers],[Maj]]),1),INDEX(Szkolenia_i_podróże_plan[],,1),0),MATCH(Szkolenia_i_podróże_odchylenia[[#Headers],[Maj]],Szkolenia_i_podróże_rzeczywiste[#Headers],0))","v":{"v":800,"d":"800.00 zł"}},{"$f":"INDEX(Szkolenia_i_podróże_plan[],MATCH(INDEX(Szkolenia_i_podróże_odchylenia[],ROW()-ROW(Szkolenia_i_podróże_odchylenia[[#Headers],[Cze]]),1),INDEX(Szkolenia_i_podróże_plan[],,1),0),MATCH(Szkolenia_i_podróże_odchylenia[[#Headers],[Cze]],Szkolenia_i_podróże_plan[#Headers],0))-INDEX(Szkolenia_i_podróże_rzeczywiste[],MATCH(INDEX(Szkolenia_i_podróże_odchylenia[],ROW()-ROW(Szkolenia_i_podróże_odchylenia[[#Headers],[Cze]]),1),INDEX(Szkolenia_i_podróże_plan[],,1),0),MATCH(Szkolenia_i_podróże_odchylenia[[#Headers],[Cze]],Szkolenia_i_podróże_rzeczywiste[#Headers],0))","v":{"v":-800,"d":"-800.00 zł"}},{"$f":"INDEX(Szkolenia_i_podróże_plan[],MATCH(INDEX(Szkolenia_i_podróże_odchylenia[],ROW()-ROW(Szkolenia_i_podróże_odchylenia[[#Headers],[Lip]]),1),INDEX(Szkolenia_i_podróże_plan[],,1),0),MATCH(Szkolenia_i_podróże_odchylenia[[#Headers],[Lip]],Szkolenia_i_podróże_plan[#Headers],0))-INDEX(Szkolenia_i_podróże_rzeczywiste[],MATCH(INDEX(Szkolenia_i_podróże_odchylenia[],ROW()-ROW(Szkolenia_i_podróże_odchylenia[[#Headers],[Lip]]),1),INDEX(Szkolenia_i_podróże_plan[],,1),0),MATCH(Szkolenia_i_podróże_odchylenia[[#Headers],[Lip]],Szkolenia_i_podróże_rzeczywiste[#Headers],0))","v":{"v":2000,"d":"2,000.00 zł"}},{"$f":"INDEX(Szkolenia_i_podróże_plan[],MATCH(INDEX(Szkolenia_i_podróże_odchylenia[],ROW()-ROW(Szkolenia_i_podróże_odchylenia[[#Headers],[Sie]]),1),INDEX(Szkolenia_i_podróże_plan[],,1),0),MATCH(Szkolenia_i_podróże_odchylenia[[#Headers],[Sie]],Szkolenia_i_podróże_plan[#Headers],0))-INDEX(Szkolenia_i_podróże_rzeczywiste[],MATCH(INDEX(Szkolenia_i_podróże_odchylenia[],ROW()-ROW(Szkolenia_i_podróże_odchylenia[[#Headers],[Sie]]),1),INDEX(Szkolenia_i_podróże_plan[],,1),0),MATCH(Szkolenia_i_podróże_odchylenia[[#Headers],[Sie]],Szkolenia_i_podróże_rzeczywiste[#Headers],0))","v":{"v":2000,"d":"2,000.00 zł"}},{"$f":"INDEX(Szkolenia_i_podróże_plan[],MATCH(INDEX(Szkolenia_i_podróże_odchylenia[],ROW()-ROW(Szkolenia_i_podróże_odchylenia[[#Headers],[Wrz]]),1),INDEX(Szkolenia_i_podróże_plan[],,1),0),MATCH(Szkolenia_i_podróże_odchylenia[[#Headers],[Wrz]],Szkolenia_i_podróże_plan[#Headers],0))-INDEX(Szkolenia_i_podróże_rzeczywiste[],MATCH(INDEX(Szkolenia_i_podróże_odchylenia[],ROW()-ROW(Szkolenia_i_podróże_odchylenia[[#Headers],[Wrz]]),1),INDEX(Szkolenia_i_podróże_plan[],,1),0),MATCH(Szkolenia_i_podróże_odchylenia[[#Headers],[Wrz]],Szkolenia_i_podróże_rzeczywiste[#Headers],0))","v":{"v":2000,"d":"2,000.00 zł"}},{"$f":"INDEX(Szkolenia_i_podróże_plan[],MATCH(INDEX(Szkolenia_i_podróże_odchylenia[],ROW()-ROW(Szkolenia_i_podróże_odchylenia[[#Headers],[Paź]]),1),INDEX(Szkolenia_i_podróże_plan[],,1),0),MATCH(Szkolenia_i_podróże_odchylenia[[#Headers],[Paź]],Szkolenia_i_podróże_plan[#Headers],0))-INDEX(Szkolenia_i_podróże_rzeczywiste[],MATCH(INDEX(Szkolenia_i_podróże_odchylenia[],ROW()-ROW(Szkolenia_i_podróże_odchylenia[[#Headers],[Paź]]),1),INDEX(Szkolenia_i_podróże_plan[],,1),0),MATCH(Szkolenia_i_podróże_odchylenia[[#Headers],[Paź]],Szkolenia_i_podróże_rzeczywiste[#Headers],0))","v":{"v":2000,"d":"2,000.00 zł"}},{"$f":"INDEX(Szkolenia_i_podróże_plan[],MATCH(INDEX(Szkolenia_i_podróże_odchylenia[],ROW()-ROW(Szkolenia_i_podróże_odchylenia[[#Headers],[Lis]]),1),INDEX(Szkolenia_i_podróże_plan[],,1),0),MATCH(Szkolenia_i_podróże_odchylenia[[#Headers],[Lis]],Szkolenia_i_podróże_plan[#Headers],0))-INDEX(Szkolenia_i_podróże_rzeczywiste[],MATCH(INDEX(Szkolenia_i_podróże_odchylenia[],ROW()-ROW(Szkolenia_i_podróże_odchylenia[[#Headers],[Lis]]),1),INDEX(Szkolenia_i_podróże_plan[],,1),0),MATCH(Szkolenia_i_podróże_odchylenia[[#Headers],[Lis]],Szkolenia_i_podróże_rzeczywiste[#Headers],0))","v":{"v":2000,"d":"2,000.00 zł"}},{"$f":"INDEX(Szkolenia_i_podróże_plan[],MATCH(INDEX(Szkolenia_i_podróże_odchylenia[],ROW()-ROW(Szkolenia_i_podróże_odchylenia[[#Headers],[Gru]]),1),INDEX(Szkolenia_i_podróże_plan[],,1),0),MATCH(Szkolenia_i_podróże_odchylenia[[#Headers],[Gru]],Szkolenia_i_podróże_plan[#Headers],0))-INDEX(Szkolenia_i_podróże_rzeczywiste[],MATCH(INDEX(Szkolenia_i_podróże_odchylenia[],ROW()-ROW(Szkolenia_i_podróże_odchylenia[[#Headers],[Gru]]),1),INDEX(Szkolenia_i_podróże_plan[],,1),0),MATCH(Szkolenia_i_podróże_odchylenia[[#Headers],[Gru]],Szkolenia_i_podróże_rzeczywiste[#Headers],0))","v":{"v":2000,"d":"2,000.00 zł"}},{"$f":"SUM(Szkolenia_i_podróże_odchylenia[[#This Row],[Sty]:[Gru]])","v":{"v":13000,"d":"13,000.00 zł"}}]
[null,"Koszty podróży związane ze szkoleniami",{"$f":"INDEX(Szkolenia_i_podróże_plan[],MATCH(INDEX(Szkolenia_i_podróże_odchylenia[],ROW()-ROW(Szkolenia_i_podróże_odchylenia[[#Headers],[Sty]]),1),INDEX(Szkolenia_i_podróże_plan[],,1),0),MATCH(Szkolenia_i_podróże_odchylenia[[#Headers],[Sty]],Szkolenia_i_podróże_plan[#Headers],0))-INDEX(Szkolenia_i_podróże_rzeczywiste[],MATCH(INDEX(Szkolenia_i_podróże_odchylenia[],ROW()-ROW(Szkolenia_i_podróże_odchylenia[[#Headers],[Sty]]),1),INDEX(Szkolenia_i_podróże_plan[],,1),0),MATCH(Szkolenia_i_podróże_odchylenia[[#Headers],[Sty]],Szkolenia_i_podróże_rzeczywiste[#Headers],0))","v":{"v":800,"d":"800.00 zł"}},{"$f":"INDEX(Szkolenia_i_podróże_plan[],MATCH(INDEX(Szkolenia_i_podróże_odchylenia[],ROW()-ROW(Szkolenia_i_podróże_odchylenia[[#Headers],[Lut]]),1),INDEX(Szkolenia_i_podróże_plan[],,1),0),MATCH(Szkolenia_i_podróże_odchylenia[[#Headers],[Lut]],Szkolenia_i_podróże_plan[#Headers],0))-INDEX(Szkolenia_i_podróże_rzeczywiste[],MATCH(INDEX(Szkolenia_i_podróże_odchylenia[],ROW()-ROW(Szkolenia_i_podróże_odchylenia[[#Headers],[Lut]]),1),INDEX(Szkolenia_i_podróże_plan[],,1),0),MATCH(Szkolenia_i_podróże_odchylenia[[#Headers],[Lut]],Szkolenia_i_podróże_rzeczywiste[#Headers],0))","v":{"v":-200,"d":"-200.00 zł"}},{"$f":"INDEX(Szkolenia_i_podróże_plan[],MATCH(INDEX(Szkolenia_i_podróże_odchylenia[],ROW()-ROW(Szkolenia_i_podróże_odchylenia[[#Headers],[Mar]]),1),INDEX(Szkolenia_i_podróże_plan[],,1),0),MATCH(Szkolenia_i_podróże_odchylenia[[#Headers],[Mar]],Szkolenia_i_podróże_plan[#Headers],0))-INDEX(Szkolenia_i_podróże_rzeczywiste[],MATCH(INDEX(Szkolenia_i_podróże_odchylenia[],ROW()-ROW(Szkolenia_i_podróże_odchylenia[[#Headers],[Mar]]),1),INDEX(Szkolenia_i_podróże_plan[],,1),0),MATCH(Szkolenia_i_podróże_odchylenia[[#Headers],[Mar]],Szkolenia_i_podróże_rzeczywiste[#Headers],0))","v":{"v":600,"d":"600.00 zł"}},{"$f":"INDEX(Szkolenia_i_podróże_plan[],MATCH(INDEX(Szkolenia_i_podróże_odchylenia[],ROW()-ROW(Szkolenia_i_podróże_odchylenia[[#Headers],[Kwi]]),1),INDEX(Szkolenia_i_podróże_plan[],,1),0),MATCH(Szkolenia_i_podróże_odchylenia[[#Headers],[Kwi]],Szkolenia_i_podróże_plan[#Headers],0))-INDEX(Szkolenia_i_podróże_rzeczywiste[],MATCH(INDEX(Szkolenia_i_podróże_odchylenia[],ROW()-ROW(Szkolenia_i_podróże_odchylenia[[#Headers],[Kwi]]),1),INDEX(Szkolenia_i_podróże_plan[],,1),0),MATCH(Szkolenia_i_podróże_odchylenia[[#Headers],[Kwi]],Szkolenia_i_podróże_rzeczywiste[#Headers],0))","v":{"v":800,"d":"800.00 zł"}},{"$f":"INDEX(Szkolenia_i_podróże_plan[],MATCH(INDEX(Szkolenia_i_podróże_odchylenia[],ROW()-ROW(Szkolenia_i_podróże_odchylenia[[#Headers],[Maj]]),1),INDEX(Szkolenia_i_podróże_plan[],,1),0),MATCH(Szkolenia_i_podróże_odchylenia[[#Headers],[Maj]],Szkolenia_i_podróże_plan[#Headers],0))-INDEX(Szkolenia_i_podróże_rzeczywiste[],MATCH(INDEX(Szkolenia_i_podróże_odchylenia[],ROW()-ROW(Szkolenia_i_podróże_odchylenia[[#Headers],[Maj]]),1),INDEX(Szkolenia_i_podróże_plan[],,1),0),MATCH(Szkolenia_i_podróże_odchylenia[[#Headers],[Maj]],Szkolenia_i_podróże_rzeczywiste[#Headers],0))","v":{"v":1200,"d":"1,200.00 zł"}},{"$f":"INDEX(Szkolenia_i_podróże_plan[],MATCH(INDEX(Szkolenia_i_podróże_odchylenia[],ROW()-ROW(Szkolenia_i_podróże_odchylenia[[#Headers],[Cze]]),1),INDEX(Szkolenia_i_podróże_plan[],,1),0),MATCH(Szkolenia_i_podróże_odchylenia[[#Headers],[Cze]],Szkolenia_i_podróże_plan[#Headers],0))-INDEX(Szkolenia_i_podróże_rzeczywiste[],MATCH(INDEX(Szkolenia_i_podróże_odchylenia[],ROW()-ROW(Szkolenia_i_podróże_odchylenia[[#Headers],[Cze]]),1),INDEX(Szkolenia_i_podróże_plan[],,1),0),MATCH(Szkolenia_i_podróże_odchylenia[[#Headers],[Cze]],Szkolenia_i_podróże_rzeczywiste[#Headers],0))","v":{"v":-1500,"d":"-1,500.00 zł"}},{"$f":"INDEX(Szkolenia_i_podróże_plan[],MATCH(INDEX(Szkolenia_i_podróże_odchylenia[],ROW()-ROW(Szkolenia_i_podróże_odchylenia[[#Headers],[Lip]]),1),INDEX(Szkolenia_i_podróże_plan[],,1),0),MATCH(Szkolenia_i_podróże_odchylenia[[#Headers],[Lip]],Szkolenia_i_podróże_plan[#Headers],0))-INDEX(Szkolenia_i_podróże_rzeczywiste[],MATCH(INDEX(Szkolenia_i_podróże_odchylenia[],ROW()-ROW(Szkolenia_i_podróże_odchylenia[[#Headers],[Lip]]),1),INDEX(Szkolenia_i_podróże_plan[],,1),0),MATCH(Szkolenia_i_podróże_odchylenia[[#Headers],[Lip]],Szkolenia_i_podróże_rzeczywiste[#Headers],0))","v":{"v":2000,"d":"2,000.00 zł"}},{"$f":"INDEX(Szkolenia_i_podróże_plan[],MATCH(INDEX(Szkolenia_i_podróże_odchylenia[],ROW()-ROW(Szkolenia_i_podróże_odchylenia[[#Headers],[Sie]]),1),INDEX(Szkolenia_i_podróże_plan[],,1),0),MATCH(Szkolenia_i_podróże_odchylenia[[#Headers],[Sie]],Szkolenia_i_podróże_plan[#Headers],0))-INDEX(Szkolenia_i_podróże_rzeczywiste[],MATCH(INDEX(Szkolenia_i_podróże_odchylenia[],ROW()-ROW(Szkolenia_i_podróże_odchylenia[[#Headers],[Sie]]),1),INDEX(Szkolenia_i_podróże_plan[],,1),0),MATCH(Szkolenia_i_podróże_odchylenia[[#Headers],[Sie]],Szkolenia_i_podróże_rzeczywiste[#Headers],0))","v":{"v":2000,"d":"2,000.00 zł"}},{"$f":"INDEX(Szkolenia_i_podróże_plan[],MATCH(INDEX(Szkolenia_i_podróże_odchylenia[],ROW()-ROW(Szkolenia_i_podróże_odchylenia[[#Headers],[Wrz]]),1),INDEX(Szkolenia_i_podróże_plan[],,1),0),MATCH(Szkolenia_i_podróże_odchylenia[[#Headers],[Wrz]],Szkolenia_i_podróże_plan[#Headers],0))-INDEX(Szkolenia_i_podróże_rzeczywiste[],MATCH(INDEX(Szkolenia_i_podróże_odchylenia[],ROW()-ROW(Szkolenia_i_podróże_odchylenia[[#Headers],[Wrz]]),1),INDEX(Szkolenia_i_podróże_plan[],,1),0),MATCH(Szkolenia_i_podróże_odchylenia[[#Headers],[Wrz]],Szkolenia_i_podróże_rzeczywiste[#Headers],0))","v":{"v":2000,"d":"2,000.00 zł"}},{"$f":"INDEX(Szkolenia_i_podróże_plan[],MATCH(INDEX(Szkolenia_i_podróże_odchylenia[],ROW()-ROW(Szkolenia_i_podróże_odchylenia[[#Headers],[Paź]]),1),INDEX(Szkolenia_i_podróże_plan[],,1),0),MATCH(Szkolenia_i_podróże_odchylenia[[#Headers],[Paź]],Szkolenia_i_podróże_plan[#Headers],0))-INDEX(Szkolenia_i_podróże_rzeczywiste[],MATCH(INDEX(Szkolenia_i_podróże_odchylenia[],ROW()-ROW(Szkolenia_i_podróże_odchylenia[[#Headers],[Paź]]),1),INDEX(Szkolenia_i_podróże_plan[],,1),0),MATCH(Szkolenia_i_podróże_odchylenia[[#Headers],[Paź]],Szkolenia_i_podróże_rzeczywiste[#Headers],0))","v":{"v":2000,"d":"2,000.00 zł"}},{"$f":"INDEX(Szkolenia_i_podróże_plan[],MATCH(INDEX(Szkolenia_i_podróże_odchylenia[],ROW()-ROW(Szkolenia_i_podróże_odchylenia[[#Headers],[Lis]]),1),INDEX(Szkolenia_i_podróże_plan[],,1),0),MATCH(Szkolenia_i_podróże_odchylenia[[#Headers],[Lis]],Szkolenia_i_podróże_plan[#Headers],0))-INDEX(Szkolenia_i_podróże_rzeczywiste[],MATCH(INDEX(Szkolenia_i_podróże_odchylenia[],ROW()-ROW(Szkolenia_i_podróże_odchylenia[[#Headers],[Lis]]),1),INDEX(Szkolenia_i_podróże_plan[],,1),0),MATCH(Szkolenia_i_podróże_odchylenia[[#Headers],[Lis]],Szkolenia_i_podróże_rzeczywiste[#Headers],0))","v":{"v":2000,"d":"2,000.00 zł"}},{"$f":"INDEX(Szkolenia_i_podróże_plan[],MATCH(INDEX(Szkolenia_i_podróże_odchylenia[],ROW()-ROW(Szkolenia_i_podróże_odchylenia[[#Headers],[Gru]]),1),INDEX(Szkolenia_i_podróże_plan[],,1),0),MATCH(Szkolenia_i_podróże_odchylenia[[#Headers],[Gru]],Szkolenia_i_podróże_plan[#Headers],0))-INDEX(Szkolenia_i_podróże_rzeczywiste[],MATCH(INDEX(Szkolenia_i_podróże_odchylenia[],ROW()-ROW(Szkolenia_i_podróże_odchylenia[[#Headers],[Gru]]),1),INDEX(Szkolenia_i_podróże_plan[],,1),0),MATCH(Szkolenia_i_podróże_odchylenia[[#Headers],[Gru]],Szkolenia_i_podróże_rzeczywiste[#Headers],0))","v":{"v":2000,"d":"2,000.00 zł"}},{"$f":"SUM(Szkolenia_i_podróże_odchylenia[[#This Row],[Sty]:[Gru]])","v":{"v":13700,"d":"13,700.00 zł"}}]
[null,"Suma częściowa",{"$f":"SUBTOTAL(109,Szkolenia_i_podróże_odchylenia[Sty])","v":{"v":1200,"d":"1,200.00 zł"}},{"$f":"SUBTOTAL(109,Szkolenia_i_podróże_odchylenia[Lut])","v":{"v":-600,"d":"-600.00 zł"}},{"$f":"SUBTOTAL(109,Szkolenia_i_podróże_odchylenia[Mar])","v":{"v":1200,"d":"1,200.00 zł"}},{"$f":"SUBTOTAL(109,Szkolenia_i_podróże_odchylenia[Kwi])","v":{"v":1200,"d":"1,200.00 zł"}},{"$f":"SUBTOTAL(109,Szkolenia_i_podróże_odchylenia[Maj])","v":{"v":2000,"d":"2,000.00 zł"}},{"$f":"SUBTOTAL(109,Szkolenia_i_podróże_odchylenia[Cze])","v":{"v":-2300,"d":"-2,300.00 zł"}},{"$f":"SUBTOTAL(109,Szkolenia_i_podróże_odchylenia[Lip])","v":{"v":4000,"d":"4,000.00 zł"}},{"$f":"SUBTOTAL(109,Szkolenia_i_podróże_odchylenia[Sie])","v":{"v":4000,"d":"4,000.00 zł"}},{"$f":"SUBTOTAL(109,Szkolenia_i_podróże_odchylenia[Wrz])","v":{"v":4000,"d":"4,000.00 zł"}},{"$f":"SUBTOTAL(109,Szkolenia_i_podróże_odchylenia[Paź])","v":{"v":4000,"d":"4,000.00 zł"}},{"$f":"SUBTOTAL(109,Szkolenia_i_podróże_odchylenia[Lis])","v":{"v":4000,"d":"4,000.00 zł"}},{"$f":"SUBTOTAL(109,Szkolenia_i_podróże_odchylenia[Gru])","v":{"v":4000,"d":"4,000.00 zł"}},{"$f":"SUBTOTAL(109,Szkolenia_i_podróże_odchylenia[ROK])","v":{"v":26700,"d":"26,700.00 zł"}}]
[]
["W tabeli Suma odchyleń zaczynającej się w komórce po prawej stronie są automatycznie odchylenia wydatków wydatków.","SUMY","Sty","Lut","Mar","Kwi","Maj","Cze","Lip","Sie","Wrz","Paź","Lis","Gru","Rok"]
[null,"Rzeczywiste wydatki miesięczne",{"$f":"Szkolenia_i_podróże_odchylenia[[#Totals],[Sty]]+Marketing_odchylenia[[#Totals],[Sty]]+Biuro_odchylenia[[#Totals],[Sty]]+Pracownicy_odchylenia[[#Totals],[Sty]]","v":{"v":1738,"d":"1,738.00 zł"}},{"$f":"Szkolenia_i_podróże_odchylenia[[#Totals],[Lut]]+Marketing_odchylenia[[#Totals],[Lut]]+Biuro_odchylenia[[#Totals],[Lut]]+Pracownicy_odchylenia[[#Totals],[Lut]]","v":{"v":-984,"d":"-984.00 zł"}},{"$f":"Szkolenia_i_podróże_odchylenia[[#Totals],[Mar]]+Marketing_odchylenia[[#Totals],[Mar]]+Biuro_odchylenia[[#Totals],[Mar]]+Pracownicy_odchylenia[[#Totals],[Mar]]","v":{"v":1255,"d":"1,255.00 zł"}},{"$f":"Szkolenia_i_podróże_odchylenia[[#Totals],[Kwi]]+Marketing_odchylenia[[#Totals],[Kwi]]+Biuro_odchylenia[[#Totals],[Kwi]]+Pracownicy_odchylenia[[#Totals],[Kwi]]","v":{"v":301,"d":"301.00 zł"}},{"$f":"Szkolenia_i_podróże_odchylenia[[#Totals],[Maj]]+Marketing_odchylenia[[#Totals],[Maj]]+Biuro_odchylenia[[#Totals],[Maj]]+Pracownicy_odchylenia[[#Totals],[Maj]]","v":{"v":1440,"d":"1,440.00 zł"}},{"$f":"Szkolenia_i_podróże_odchylenia[[#Totals],[Cze]]+Marketing_odchylenia[[#Totals],[Cze]]+Biuro_odchylenia[[#Totals],[Cze]]+Pracownicy_odchylenia[[#Totals],[Cze]]","v":{"v":-3744,"d":"-3,744.00 zł"}},{"$f":"Szkolenia_i_podróże_odchylenia[[#Totals],[Lip]]+Marketing_odchylenia[[#Totals],[Lip]]+Biuro_odchylenia[[#Totals],[Lip]]+Pracownicy_odchylenia[[#Totals],[Lip]]","v":{"v":134695,"d":"134,695.00 zł"}},{"$f":"Szkolenia_i_podróże_odchylenia[[#Totals],[Sie]]+Marketing_odchylenia[[#Totals],[Sie]]+Biuro_odchylenia[[#Totals],[Sie]]+Pracownicy_odchylenia[[#Totals],[Sie]]","v":{"v":138918,"d":"138,918.00 zł"}},{"$f":"Szkolenia_i_podróże_odchylenia[[#Totals],[Wrz]]+Marketing_odchylenia[[#Totals],[Wrz]]+Biuro_odchylenia[[#Totals],[Wrz]]+Pracownicy_odchylenia[[#Totals],[Wrz]]","v":{"v":135918,"d":"135,918.00 zł"}},{"$f":"Szkolenia_i_podróże_odchylenia[[#Totals],[Paź]]+Marketing_odchylenia[[#Totals],[Paź]]+Biuro_odchylenia[[#Totals],[Paź]]+Pracownicy_odchylenia[[#Totals],[Paź]]","v":{"v":140918,"d":"140,918.00 zł"}},{"$f":"Szkolenia_i_podróże_odchylenia[[#Totals],[Lis]]+Marketing_odchylenia[[#Totals],[Lis]]+Biuro_odchylenia[[#Totals],[Lis]]+Pracownicy_odchylenia[[#Totals],[Lis]]","v":{"v":136218,"d":"136,218.00 zł"}},{"$f":"Szkolenia_i_podróże_odchylenia[[#Totals],[Gru]]+Marketing_odchylenia[[#Totals],[Gru]]+Biuro_odchylenia[[#Totals],[Gru]]+Pracownicy_odchylenia[[#Totals],[Gru]]","v":{"v":140018,"d":"140,018.00 zł"}},{"$f":"Szkolenia_i_podróże_odchylenia[[#Totals],[ROK]]+Marketing_odchylenia[[#Totals],[ROK]]+Biuro_odchylenia[[#Totals],[ROK]]+Pracownicy_odchylenia[[#Totals],[ROK]]","v":{"v":826691,"d":"826,691.00 zł"}}]
[null,"SUMA wydatków rzeczywistych",{"$f":"SUM($C$36:C36)","v":{"v":1738,"d":"1,738.00 zł"}},{"$f":"SUM($C$36:D36)","v":{"v":754,"d":"754.00 zł"}},{"$f":"SUM($C$36:E36)","v":{"v":2009,"d":"2,009.00 zł"}},{"$f":"SUM($C$36:F36)","v":{"v":2310,"d":"2,310.00 zł"}},{"$f":"SUM($C$36:G36)","v":{"v":3750,"d":"3,750.00 zł"}},{"$f":"SUM($C$36:H36)","v":{"v":6,"d":"6.00 zł"}},{"$f":"SUM($C$36:I36)","v":{"v":134701,"d":"134,701.00 zł"}},{"$f":"SUM($C$36:J36)","v":{"v":273619,"d":"273,619.00 zł"}},{"$f":"SUM($C$36:K36)","v":{"v":409537,"d":"409,537.00 zł"}},{"$f":"SUM($C$36:L36)","v":{"v":550455,"d":"550,455.00 zł"}},{"$f":"SUM($C$36:M36)","v":{"v":686673,"d":"686,673.00 zł"}},{"$f":"SUM($C$36:N36)","v":{"v":826691,"d":"826,691.00 zł"}}]

{"sheet":"ANALIZA WYDATKÓW","index":4,"n_rows":14,"n_cols":16,"rows_kept":14,"merged":[[1,1,2,3],[1,5,1,6],[2,4,2,6],[11,1,11,2],[11,3,11,5],[13,1,36,5]]}
["W tym arkuszu dla każdej kategorii wydatków są automatycznie aktualizowane planowane i wydatki rzeczywiste, odchylenia wydatków oraz wartość procentowa odchylenia. W komórkach w tej kolumnie podano przydatne instrukcje na temat korzystania z tego arkusza. Naciśnij strzałkę w dół, aby rozpocząć pracę. ",{"$nulls":5}," ",{"$nulls":8}," "]
["W komórce po prawej stronie jest automatycznie aktualizowana nazwa firmy. W komórce F2 wprowadź Logo.",{"$f":"'WYDATKI PLANOWANE'!B2:D3","v":"Nazwa firmy"},{"$nulls":3},"W tej komórce znajduje się symbol zastępczy logo."]
["Tytuł tego arkusza znajduje się w komórce E3. Dalsze instrukcje znajdują się w komórce A5.",{"$nulls":3},{"$f":"_xlnm.Sheet_Title","v":"Szczegółowe szacunki wydatków"}]
[]
["W tabeli Analiza zaczynającej się w komórce po prawej stronie są automatycznie obliczane wydatki planowane, wydatki rzeczywiste, odchylenie wydatków oraz wartość procentowa odchylenia. Dalsze instrukcje znajdują się w komórce A12.","Kategoria wydatków","Wydatki planowane","Wydatki rzeczywiste","Odchylenia wydatków","Wartość procentowa odchylenia"]
[null,"Koszty pracowników",{"$f":"Pracownicy_plan[[#Totals],[ROK]]","v":{"v":1355090,"d":"1,355,090.00 zł"}},{"$f":"Pracownicy_rzeczywiste[[#Totals],[ROK]]","v":{"v":659130,"d":"659,130.00 zł"}},{"$f":"C6-D6","v":{"v":695960,"d":"695,960.00 zł"}},{"$f":"E6/C6","v":{"v":0.5135895032802249,"d":"51%"}}]
[null,{"$f":"'WYDATKI PLANOWANE'!B10","v":"Koszty biura"},{"$f":"Biuro_plan[[#Totals],[ROK]]","v":{"v":138740,"d":"138,740.00 zł"}},{"$f":"Biuro_rzeczywiste[[#Totals],[ROK]]","v":{"v":69350,"d":"69,350.00 zł"}},{"$f":"C7-D7","v":{"v":69390,"d":"69,390.00 zł"}},{"$f":"E7/C7","v":{"v":0.5001441545336601,"d":"50%"}}]
[null,{"$f":"'WYDATKI PLANOWANE'!B21","v":"Koszty marketingu"},{"$f":"Marketing_plan[[#Totals],[ROK]]","v":{"v":67800,"d":"67,800.00 zł"}},{"$f":"Marketing_rzeczywiste[[#Totals],[ROK]]","v":{"v":33159,"d":"33,159.00 zł"}},{"$f":"C8-D8","v":{"v":34641,"d":"34,641.00 zł"}},{"$f":"E8/C8","v":{"v":0.510929203539823,"d":"51%"}}]
[null,{"$f":"'WYDATKI PLANOWANE'!B30","v":"Szkolenia/podróże"},{"$f":"Szkolenia_i_podróże_plan[[#Totals],[ROK]]","v":{"v":48000,"d":"48,000.00 zł"}},{"$f":"Szkolenia_i_podróże_rzeczywiste[[#Totals],[ROK]]","v":{"v":21300,"d":"21,300.00 zł"}},{"$f":"C9-D9","v":{"v":26700,"d":"26,700.00 zł"}},{"$f":"E9/C9","v":{"v":0.55625,"d":"56%"}}]
[null,{"$f":"'WYDATKI PLANOWANE'!B35","v":"SUMY"},{"$f":"'WYDATKI PLANOWANE'!O36","v":{"v":1609630,"d":"1,609,630.00 zł"}},{"$f":"'WYDATKI RZECZYWISTE'!O36","v":{"v":782939,"d":"782,939.00 zł"}},{"$f":"C10-D10","v":{"v":826691,"d":"826,691.00 zł"}},{"$f":"E10/C10","v":{"v":0.5135907009685455,"d":"51%"}}]
[]
["W komórce po prawej stronie znajduje się wykres kołowy wydatki planowane, a w komórce D12 — wydatki rzeczywiste. Dalsze instrukcje znajdują się w komórce A14.","W tej komórce znajduje się wykres kołowy przedstawiający wydatki planowane z różnych kategorii.",null,"W tej komórce znajduje się wykres kołowy przedstawiający poniesione wydatki rzeczywiste z różnych kategorii."]
[]
["W komórce po prawej stronie znajduje się wykres przedstawiający planowane i rzeczywiste wydatki miesięczne oraz ich odchylenie."]